{"text_format":"1","workbook":"xlsx","n_sheets":7,"sheets":["Úvodní list","Zadání","Tabulky specifikace betonu","Skrytý list se vzorci","Skrytý list se vzorci 2","Export formulář Dalux","Export KZP Dalux"],"not_rendered":{"charts":0,"images":2,"macros":1,"external_links":0,"defined_names":7,"comments":0,"pivot_tables":0},"unopened":[],"bounds":{"document_bytes":16777216,"sheet_cells":100000,"rows_first":2000,"rows_last":500,"rows_between":2000,"halvings":0,"cell_chars":16384,"cell_head_chars":4096},"cells_cut":0,"cells_raw":0,"read":"part_too_large","date_system":"1900"}

{"sheet":"Úvodní list","index":0,"n_rows":32,"n_cols":2,"rows_kept":32,"cut":false,"hidden":false,"merged":[[31,1,31,7],[3,1,3,7],[24,1,24,7],[5,1,5,7],[7,1,7,7],[22,1,22,7],[26,1,26,7],[29,1,29,7]]}
[]
[]
[]
[null,"ČESKÉ VYSOKÉ UČENÍ TECHNICKÉ"]
[]
[null,"FAKULTA STAVEBNÍ"]
[]
[null,"KATEDRA TECHNOLOGIE STAVEB"]
[]
[]
[]
[]
[]
[]
[]
[]
[]
[]
[]
[]
[]
[]
[null,"DIPLOMOVÁ PRÁCE"]
[]
[null,"DIGITALIZACE KONTROLY KVALITY VE STAVEBNICTVÍ"]
[]
[null,"PŘEVODNÍK KZP DO DIGITÁLNÍ FORMY"]
[]
[]
[null,"Bc. Milan Červený"]
[]
[null,2020]

{"sheet":"Zadání","index":1,"n_rows":38,"n_cols":6,"rows_kept":38,"cut":false,"hidden":false,"merged":[[35,1,35,3],[23,0,23,1],[18,0,18,2],[17,0,17,5],[21,0,21,5],[31,1,31,3],[25,1,25,2],[25,3,25,4],[27,1,27,3],[8,0,8,2],[4,2,4,5],[5,2,6,5],[5,0,6,1],[4,0,4,1],[7,0,7,5],[9,0,9,5],[20,0,20,2],[19,0,19,5],[10,0,10,2],[15,0,15,5],[13,0,13,5],[12,0,12,2],[14,0,14,2],[16,0,16,2],[11,0,11,5]]}
["Číslo:",200617]
["Datum:","2020-09-28",null,"Adresář exportu:","C:\\Export Dalux"]
["Název:","DP_Červený"]
["Typ:","Vzorový objekt",null,"Vypracoval:","Bc. Milan Červený"]
["Základní údaje",null,"Rodinný dům MARLEN, Nad Hřištěm, k.ů. Horní Planá, p.č. 690/99"]
["Přesný popis objektu",null,"Rodinný dům je umístěn v nové zástavbě v kopci nad Lipnem. Parcela domu má obdelníkový tvar o rozměrech 19,4 x 45 m. Přízemí tvoří společenskou část domu, zatímco podkroví tvoří soukromou. Obytné místnosti jsou orientovány na jih, obslužné komunikace a příslušenství se nachází na severní straně domu. Po vstupu přes závětří a zádvěří se vchází do předsíně. Na severní stěně se nachází křivočaré schodiště, které pod sebou ukrývá WC. Z obytného prostoru je výstup na terasu, která výškově navazuje na zahradu."]
[]
[]
["Hydroizolace spodní stavby:"]
[]
["Materiál nosných konstrukcí:"]
[]
["Typ střechy:"]
[]
["Technologie příček:"]
[]
["Povrchová úprava stěn:"]
[]
["Technologie podlah:"]
[]
["Typ fasády:"]
[]
[]
["Bližší požadavky:"]
[]
[null,"1. Geometrická přesnost \ndle ČSN 74 4505 pro:",null,"Místnosti pro pobyt osob",null,{"$f":"IF(Zadání!D26='Skrytý list se vzorci'!L6,'Skrytý list se vzorci'!M6,IF(Zadání!D26='Skrytý list se vzorci'!L7,'Skrytý list se vzorci'!M7,IF(Zadání!D26='Skrytý list se vzorci'!L8,'Skrytý list se vzorci'!M8)))","v":"±2mm/2m"}]
[]
[null,"2. Specifikace betonu pro nosné svislé konstrukce:"]
[null,"Pevnost betonu v tlaku",{"$f":"Tabulka2[[#Headers],[Stupeň vlivu prostředí]]","v":"Stupeň vlivu prostředí"},{"$f":"Tabulka5[[#Headers],[Maximální obsah chloridů]]","v":"Maximální obsah chloridů"},{"$f":"Tabulka7[[#Headers],[Maximální velikost zrna kameniva v mm]]","v":"Maximální velikost zrna kameniva v mm"},{"$f":"Tabulka6[[#Headers],[Konzistence betonu sednutí kužele]]","v":"Konzistence betonu sednutí kužele"}]
[null,"C 25/30","XC3","Cl 0,4","Dmax 22","S4"]
[]
[null,"3. Specifikace betonu pro bílou vanu:"]
[null,"Pevnost betonu v tlaku",{"$f":"Tabulka2[[#Headers],[Stupeň vlivu prostředí]]","v":"Stupeň vlivu prostředí"},{"$f":"Tabulka5[[#Headers],[Maximální obsah chloridů]]","v":"Maximální obsah chloridů"},{"$f":"Tabulka7[[#Headers],[Maximální velikost zrna kameniva v mm]]","v":"Maximální velikost zrna kameniva v mm"},{"$f":"Tabulka6[[#Headers],[Konzistence betonu sednutí kužele]]","v":"Konzistence betonu sednutí kužele"}]
[null,"C 30/37","XF3","Cl 0,2","Dmax 22","S5"]
[]
[null,"4. Specifikace betonu pro nenosné zdivo:"]
[null,"Pevnost betonu v tlaku",{"$f":"Tabulka2[[#Headers],[Stupeň vlivu prostředí]]","v":"Stupeň vlivu prostředí"},{"$f":"Tabulka5[[#Headers],[Maximální obsah chloridů]]","v":"Maximální obsah chloridů"},{"$f":"Tabulka7[[#Headers],[Maximální velikost zrna kameniva v mm]]","v":"Maximální velikost zrna kameniva v mm"},{"$f":"Tabulka6[[#Headers],[Konzistence betonu sednutí kužele]]","v":"Konzistence betonu sednutí kužele"}]
[null,"C 20/25","XC1","Cl 0,4","Dmax 22","S4"]

{"sheet":"Tabulky specifikace betonu","index":2,"n_rows":31,"n_cols":4,"rows_kept":31,"cut":false,"hidden":false,"merged":[]}
["Stupeň vlivu prostředí","Stupeň","Popis prostředí","Min. doporučená tř. betonu"]
["Bez nebezpečí koroze nebo narušení","X0","Bez nebezpečí koroze nebo narušení","C 12/15"]
["Koroze vlivem karbonatace","XC1","suché nebo stále mokré","C 20/25"]
["Koroze vlivem karbonatace","XC2","mokré, občas suché","C 25/30"]
["Koroze vlivem karbonatace","XC3","středně mokré, vlhké","C 30/37"]
["Koroze vlivem karbonatace","XC4","střídavé mokré, suché","C 30/37"]
["Koroze vlivem chloridů, ne z mořské vody","XD1","středně mokré, vlhké","C 30/37"]
["Koroze vlivem chloridů, ne z mořské vody","XD2","mokré, občas suché","C 30/37"]
["Koroze vlivem chloridů, ne z mořské vody","XD3","střídavé mokré a suché","C 35/45"]
["Střídavé působení mrazu","XF1","mírně nasycen vodou, bez rozmrazovacích prostředků","C 30/37"]
["Střídavé působení mrazu","XF2","mírně nasycen vodou, s rozmrazovacími prostředky","C 25/30"]
["Střídavé působení mrazu","XF3","značně nasycen vodou, bez rozmrazoivacích prostředků","C 30/37"]
["Střídavé působení mrazu","XF4","značně nasycen vodou, s rozmrazovacími prostředky nebo mořskou vodou","C 30/37"]
["Chemicky agresivní prostředí","XA1","slabě agresivní chemické prostředí","C 30/37"]
["Chemicky agresivní prostředí","XA2","středně agresivní chemické prostřední","C 30/37"]
["Chemicky agresivní prostředí","XA3","vysoce agresivní chemické prostředí","C 35/45"]
[]
["Pevnost Betonu v tlaku",null,"Maximální obsah chloridů","Typ konstrukce"]
["C 12/15",null,"Cl 0,2","předpjatý beton"]
["C 16/20",null,"Cl 0,4","železobetonové konstrukce"]
["C 20/25",null,"Cl 1,0","prostý beton"]
["C 25/30"]
["C 30/37",null,"Konzistence betonu sednutí kužele","sednutí"]
["C 35/45",null,"S1","10 - 40mm"]
["C 40/50",null,"S2","50 - 90 mm"]
[null,null,"S3","100 - 150 mm"]
["Maximální velikost zrna kameniva v mm",null,"S4","160 - 210 mm"]
["Dmax 8",null,"S5","víc nebo rovno 220 mm"]
["Dmax 11"]
["Dmax 16"]
["Dmax 22"]

{"sheet":"Skrytý list se vzorci","index":3,"n_rows":138,"n_cols":18,"rows_kept":138,"cut":false,"hidden":true,"merged":[[1,0,1,3],[14,0,15,0],[2,0,3,0],[4,0,5,0],[6,0,7,0],[8,0,9,0],[10,0,11,0],[12,0,13,0]]}
[]
["Zvolené možnosti",null,null,null,null,null,null,null,null,null,null,null,null,null,null,null,"datum",{"$f":"Zadání!B2","v":"2020-09-28"}]
["Hydroizolace spodní stavby:","Bílá Vana","Asfalt"]
[null,false,true,null,null,null,null,null,null,null,null,"M","N","O","P",null,"1. Geometrická přesnost"]
["Materiál nosných konstrukcí:","Beton","Zděné","Ocel",null,null,null,null,null,null,5,"Geometrická přesnost dle ČSN 74 4505","Rovinnost",null,"1. Geometrická přesnost",null,{"$f":"IF(Zadání!D26='Skrytý list se vzorci'!L6,'Skrytý list se vzorci'!O6,IF(Zadání!D26='Skrytý list se vzorci'!L7,'Skrytý list se vzorci'!O7,IF(Zadání!D26='Skrytý list se vzorci'!L8,'Skrytý list se vzorci'!O8)))","v":"a) Vzhled povrchu je bez puklin a výstupků, jednolitý povrch.\nb) Nutno zkontrolovat vodorovnost a rovinnost. Pro místní rovinnost platí přípustná mezní odchylka  ±2mm/2m. Měří se dvoumetrovou latí, která může mít na obou koncích gumové podložky. Jednotlivé klady latě se rozmístí po kontrolované ploše, lať musí být min. 100 mm od hran kontrolované plochy a především tam, kde předpokládáme největší odchylky. Pro vodorovné konstrukce se na každých 100 m2 kontrolované plochy se provede nejméně 5 měření, nejmenší počet kladů latě na ucelené ploše je 5. "}]
[null,true,false,false,null,null,null,null,null,null,6,"Místnosti pro pobyt osob","±2mm/2m",null,"a) Vzhled povrchu je bez puklin a výstupků, jednolitý povrch.\nb) Nutno zkontrolovat vodorovnost a rovinnost. Pro místní rovinnost platí přípustná mezní odchylka  ±2mm/2m. Měří se dvoumetrovou latí, která může mít na obou koncích gumové podložky. Jednotlivé klady latě se rozmístí po kontrolované ploše, lať musí být min. 100 mm od hran kontrolované plochy a především tam, kde předpokládáme největší odchylky. Pro vodorovné konstrukce se na každých 100 m2 kontrolované plochy se provede nejméně 5 měření, nejmenší počet kladů latě na ucelené ploše je 5. ",null,"ČSN 73 0205, ČSN EN 13914-2\na) Povrch omítek nesmí vykazovat puchýře, pecky ani trhliny (kromě vlasových trhlinek vzniklých smrštěním malty). Vrstva omítky musí být pevně spojena s omítaným povrchem.\nb) Místní rovinnost je Dle ČSN EN 13914-2, Tab.1: (Rovinnost omítky závisí na rovinnosti podkladu, pro podkladní beton rovinnosti ±9mm/2m je doporučena třída 3) ±5mm/2m pro rovinnost podkladu ±10mm/2m; (vyšší přesnost rovinnosti omítky lze požadovat pouze při vyšší přesnosti rovinnosti podkladu). \nMístní rovinnost dle ČSN 73 0205, Tab.A.4: "]
["Typ střechy","Plochá ","Šikmá",null,null,null,null,null,null,null,7,"Ostatní místnosti","±3mm/2m",null,"a) Vzhled povrchu je bez puklin a výstupků, jednolitý povrch.\nb) Nutno zkontrolovat vodorovnost a rovinnost. Pro místní rovinnost platí přípustná mezní odchylka  ±3mm/2m. Měří se dvoumetrovou latí, která může mít na obou koncích gumové podložky. Jednotlivé klady latě se rozmístí po kontrolované ploše, lať musí být min. 100 mm od hran kontrolované plochy a především tam, kde předpokládáme největší odchylky. Pro vodorovné konstrukce se na každých 100 m2 kontrolované plochy se provede nejméně 5 měření, nejmenší počet kladů latě na ucelené ploše je 5. ",null,{"$f":"IF(Zadání!D26='Skrytý list se vzorci'!L6,'Skrytý list se vzorci'!L6&\" - \"&M6,IF(Zadání!D26='Skrytý list se vzorci'!L7,'Skrytý list se vzorci'!L7&\" - \"&'Skrytý list se vzorci'!M7,IF(Zadání!D26='Skrytý list se vzorci'!L8,'Skrytý list se vzorci'!L7&\" - \"&'Skrytý list se vzorci'!M7,)))","v":"Místnosti pro pobyt osob - ±2mm/2m"}]
[null,false,true,null,null,null,null,null,null,null,8,"Výrobní a skladovací haly, garáže","±5mm/2m",null,"a) Vzhled povrchu je bez puklin a výstupků, jednolitý povrch.\nb) Nutno zkontrolovat vodorovnost a rovinnost. Pro místní rovinnost platí přípustná mezní odchylka  ±5mm/2m. Měří se dvoumetrovou latí, která může mít na obou koncích gumové podložky. Jednotlivé klady latě se rozmístí po kontrolované ploše, lať musí být min. 100 mm od hran kontrolované plochy a především tam, kde předpokládáme největší odchylky. Pro vodorovné konstrukce se na každých 100 m2 kontrolované plochy se provede nejméně 5 měření, nejmenší počet kladů latě na ucelené ploše je 5. ",null,"U detailů v okolí dveří, podlahových lišt a dalších obkladových prvků, které by mohly zvýraznit nerovnost omítek je požadována max. odchylka rovinnosti ±2mm/2m. \nMěřeno 2m lať na podložkách, na každých 25m2 plochy min. 5 kladů latě vrovnoměrně rozmístěných, min. počet kladů na jednu plochu (stěna) je 5.\nc) Svislost povrchu - Dle ČSN 73 0205, Tab.A.7: ±10mm do 4m, ±12mm pro 4-8m, ±15mm nad 8m. Měřeno 100mm od podlahy a stropu a 100mm od svislých hran kce geodeticky nebo k vztažné přímce (provázek, laserový paprsek).\nd) Úhel ostění a stěn je Dle ČSN EN 13914-2, Tab.2: ±3mm do vzdálenosti 0,25m od rohu, ±5mm do 0,5m, ±6mm do 1m, ±8mm do 3m. Měřeno 100mm od hran ve svislém i vodorovném směru, měřit úhelníkem. Úhly místností – měřit 100 nad podlahou, pomocí pravoúhlého trojúhelníku 3-4-5 (provázek, ocel. lanko s vyznačenými stejnými díly), odchylku změřit na nejkratším rameni."]
["Technologie provádění výplňových konstrukcí:","Zděné","SDK Montované","Monolitické",null,null,null,null,null,null,null,null,null,null,null,null,{"$f":"Q6& \"\" &Q7& \".\n\" &Q8","v":"ČSN 73 0205, ČSN EN 13914-2\na) Povrch omítek nesmí vykazovat puchýře, pecky ani trhliny (kromě vlasových trhlinek vzniklých smrštěním malty). Vrstva omítky musí být pevně spojena s omítaným povrchem.\nb) Místní rovinnost je Dle ČSN EN 13914-2, Tab.1: (Rovinnost omítky závisí na rovinnosti podkladu, pro podkladní beton rovinnosti ±9mm/2m je doporučena třída 3) ±5mm/2m pro rovinnost podkladu ±10mm/2m; (vyšší přesnost rovinnosti omítky lze požadovat pouze při vyšší přesnosti rovinnosti podkladu). \nMístní rovinnost dle ČSN 73 0205, Tab.A.4: Místnosti pro pobyt osob - ±2mm/2m.\nU detailů v okolí dveří, podlahových lišt a dalších obkladových prvků, které by mohly zvýraznit nerovnost omítek je požadována max. odchylka rovinnosti ±2mm/2m. \nMěřeno 2m lať na podložkách, na každých 25m2 plochy min. 5 kladů latě vrovnoměrně rozmístěných, min. počet kladů na jednu plochu (stěna) je 5.\nc) Svislost povrchu - Dle ČSN 73 0205, Tab.A.7: ±10mm do 4m, ±12mm pro 4-8m, ±15mm nad 8m. Měřeno 100mm od podlahy a stropu a 100mm od svislých hran kce geodeticky nebo k vztažné přímce (provázek, laserový paprsek).\nd) Úhel ostění a stěn je Dle ČSN EN 13914-2, Tab.2: ±3mm do vzdálenosti 0,25m od rohu, ±5mm do 0,5m, ±6mm do 1m, ±8mm do 3m. Měřeno 100mm od hran ve svislém i vodorovném směru, měřit úhelníkem. Úhly místností – měřit 100 nad podlahou, pomocí pravoúhlého trojúhelníku 3-4-5 (provázek, ocel. lanko s vyznačenými stejnými díly), odchylku změřit na nejkratším rameni."}]
[null,true,true,false,null,null,null,null,null,null,null,"Pevnost Betonu v tlaku",null,"Maximální obsah chloridů","Typ konstrukce"]
["Typ povrchových úprav stěn:","Omítky","Keramické obklady",null,null,null,null,null,null,null,null,"C 12/15",null,"Cl 0,2","předpjatý beton"]
[null,true,true,null,null,null,null,null,null,null,null,"C 16/20",null,"Cl 0,4","železobetonové konstrukce"]
["Technologie provádění podlah:","Polyuretanové","Lité",null,null,null,null,null,null,null,null,"C 20/25",null,"Cl 1,0","prostý beton"]
[null,false,true,null,null,null,null,null,null,null,null,"C 25/30",null,null,null,null,"2. žb stěny"]
["Typ konstrukce fasády:","Provětrávaná","ETICS",null,null,null,null,null,null,null,null,"C 30/37",null,null,null,null,{"$f":"Zadání!B30& \" - \" &Zadání!C30& \"  - \" &Zadání!D30& \"  - \" &Zadání!E30& \"  - \" &Zadání!F30","v":"C 25/30 - XC3  - Cl 0,4  - Dmax 22  - S4"}]
[null,false,true,null,null,null,null,null,null,null,null,"C 35/45",null,null,null,null,"Druh betonu"]
[null,null,null,null,null,null,null,null,null,null,null,"C 40/50",null,null,null,null,"Certifikát betonárky, kvalita směsi dle  ČSN EN 13 670-1 ověření vyrobené betonové směsi krychelnými zkouškami. "]
[null,null,null,null,null,null,null,null,null,null,null,null,null,null,null,null,{"$f":"IF(Zadání!F30='Skrytý list se vzorci'!L37,'Skrytý list se vzorci'!N37,IF(Zadání!F30='Skrytý list se vzorci'!L38,'Skrytý list se vzorci'!N38,IF(Zadání!F30='Skrytý list se vzorci'!L39,'Skrytý list se vzorci'!N39,IF(Zadání!F30='Skrytý list se vzorci'!L40,'Skrytý list se vzorci'!N40,IF(Zadání!F30='Skrytý list se vzorci'!L41,'Skrytý list se vzorci'!N41,0)))))","v":"Pro konzistenci bude provedena zkouška sednutí kužele, která se provede ze vzorku směsi po vyprázdnění cca 0,3 m3 betonové směsi z autodomíchávače. Na rovnou plochu se položí podkladní deska, která se navlhčí a uložen íse na ni forma tvaru kužele, tato forma se plní po třetinách, každá vrstva se hutní 25 vpichy tyčí, druhá a třetí vrstva se hutní tak, aby vpichy zasahovali mírně do předchozí vrstvy. Po zarovnání se forma pomalým pohybem odstraní a ihned se změří rozdíl mezi formou a betonovým kuželem. Pro stupeň konzistence S4, ve které se dodává, musí být sednutí 160 - 210 mm. Zkoušku provést na vzorku z každé dodávky směsi.\nPro laboratorní zkoušky pevnosti betonu a průsaku tlakovou vodou bude odebrán beton na zkušební tělesa 150 x 150 mm\\."}]
[null,null,null,null,null,null,null,null,null,null,null,"Stupeň vlivu prostředí","Stupeň","Popis prostředí","Min. doporučená tř. betonu",null,{"$f":"\"a) \"&Q16& \" \" &Q15& \" - \" &Q17& \"\nb) \" &Q18","v":"a) Druh betonu C 25/30 - XC3  - Cl 0,4  - Dmax 22  - S4 - Certifikát betonárky, kvalita směsi dle  ČSN EN 13 670-1 ověření vyrobené betonové směsi krychelnými zkouškami. \nb) Pro konzistenci bude provedena zkouška sednutí kužele, která se provede ze vzorku směsi po vyprázdnění cca 0,3 m3 betonové směsi z autodomíchávače. Na rovnou plochu se položí podkladní deska, která se navlhčí a uložen íse na ni forma tvaru kužele, tato forma se plní po třetinách, každá vrstva se hutní 25 vpichy tyčí, druhá a třetí vrstva se hutní tak, aby vpichy zasahovali mírně do předchozí vrstvy. Po zarovnání se forma pomalým pohybem odstraní a ihned se změří rozdíl mezi formou a betonovým kuželem. Pro stupeň konzistence S4, ve které se dodává, musí být sednutí 160 - 210 mm. Zkoušku provést na vzorku z každé dodávky směsi.\nPro laboratorní zkoušky pevnosti betonu a průsaku tlakovou vodou bude odebrán beton na zkušební tělesa 150 x 150 mm\\."}]
["Typ konstrukce","Pol","Kontrolovaný proces/činnost","Kontrola, zkouška, konstrukce, prvek","Rozsah, místo, způsob a minimální četnost kontrol","Požadovaná kritéria, hodnoty, tolerance","Záznam","Odpovědný pracovník",null,null,null,"Bez nebezpečí koroze nebo narušení","X0","Bez nebezpečí koroze nebo narušení","C 12/15"]
["01_Hydroizolace spodní stavby\n",1,"Doklady před zahájením prací","a) Projektová dokumentace \nb) Technologický postup \nc) Kontrola vstupních materiálů \nd) Doložení kvality materiálů \ne) Odborná způsobilost pracovníků","Vizuální kontrola\nKaždá dodávka\nKaždý doklad","a) Odsouhlasena dle PP \nb) Technologický postup schválen před zahájením prací \nc) Převzetí materiálu - kompletnost a kvalita dle PD - zápis v dodacím listu \nd) Certifikáty, atesty a prohlášení o shodě dle zákona č. 22/1997 Sb., Nařízení vlády č. 163/2002 Sb. Nebo Nařízení vlády č. 190/2002 Sb. \ne) ČSN 05 705 nebo ČSN EN 13067 - platné svářečské průkazy","Záznam o kontrole kvality, SD","Přípravář\nstavbyvedoucí\nmistr",null,null,null,"Koroze vlivem karbonatace","XC1","suché nebo stále mokré","C 20/25",null,"3. Bílá vana"]
["Asfaltové pásy",2,"Příprava pro provádění prací","a) Kontrola rovinnosti a spádů\nb) Kvalita podkladů\nc) Povětrnostní podmínky\nd) Příprava a kontrola izolačních pasů\n\n","Přeměření 10ti míst 2m latí\nVizuální kontrola\nVšechny pasy","a) Rovinnosti 5mm/2m; spády - tolerance max. 25% od předepsaného spádu v PD \nb) Dostatečná tvarová pevnost a stálost, bez volných částí. Nerovnosti - poměr vzdálenosti k výšce sousední nerovnosti 1/20, max. 20 mm na 100 mm základny. Zaoblení hran rmin=200 mm  \nc) Teplota +5°C až 30°C; doporučená relativní vlhkost 60% \nd) Izolační pásy rozložit před aplikací, aby se vyrovnaly do požadovaného tvaru a aby při jejich instalaci nedocházelo k tvarové deformaci","Záznam o kontrole kvality, SD","Mistr",null,null,null,"Koroze vlivem karbonatace","XC2","mokré, občas suché","C 25/30",null,{"$f":"Zadání!B34& \"  - \" &Zadání!C34& \"  - \" &Zadání!D34& \"  - \" &Zadání!E34& \"  - \" &Zadání!F34","v":"C 30/37  - XF3  - Cl 0,2  - Dmax 22  - S5"}]
[null,3,"Prostupy konstrukcemi","a) Poloha prostupů\nb) Světlý rozměr","Přeměření","a) ±25 mm\nb) Pravoúhlý otvor ±25 mm, kulatý otvor ±10 mm od průměru","Záznam o kontrole kvality","Mistr",null,null,null,"Koroze vlivem karbonatace","XC3","středně mokré, vlhké","C 30/37",null,"Nutné zkontrolovat s každou dodávkou množství, pevnostní třídu, stupeň vlivu prostředí, maximální frakci kameniva, vodní součinitel, stupeň konzistence a obsah chloridů a dobu zpracovatelnosti betonu. Požadavky v dodacím listu musí odpovídat požadavkům v PD. Nadefinovaný beton pro bílou vanu odpovídá druhu betonu "]
[null,4,"Provádění izolace z asfaltových modifikovaných pasů","a) Příprava podkladu\nb) Kladení a spojování pasů \nc) Kouty, hrany, prostupy a detaily \nd) Ochranné vrstvy","Vizuální kontrola\nPřeměření \nCelá plocha, každý kout, hrana, prostup, detail","a) Penetrační nátěr - druh materiálu dle PD, proveden na všech betonových plochách  \nb) Materiál první i druhé vrstvy dle PD. Podélný přesah 10cm; příčný přesah 15cm; čelní pásy provedeny na vazbu; ve všech vrstvách shodný směr kladení od nejnižšího místa k vyššímu, tak aby přesahy nebyly proti spádu; boční přesahy vystřídany min. o 300 mm, neměly by docházet ke křížové važbě +. \nc) Provedeny dle technologického postupu \nd) Geotextílie - materiál v g/m2 dle PD","Záznam o kontrole kvality","Mistr",null,null,null,"Koroze vlivem karbonatace","XC4","střídavé mokré, suché","C 30/37",null,{"$f":"IF(Zadání!F34='Skrytý list se vzorci'!L37,'Skrytý list se vzorci'!N37,IF(Zadání!F34='Skrytý list se vzorci'!L38,'Skrytý list se vzorci'!N38,IF(Zadání!F34='Skrytý list se vzorci'!L39,'Skrytý list se vzorci'!N39,IF(Zadání!F34='Skrytý list se vzorci'!L40,'Skrytý list se vzorci'!N40,IF(Zadání!F34='Skrytý list se vzorci'!L41,'Skrytý list se vzorci'!N41,0)))))","v":"Pro konzistenci bude provedena zkouška sednutí kužele, která se provede ze vzorku směsi po vyprázdnění cca 0,3 m3 betonové směsi z autodomíchávače. Na rovnou plochu se položí podkladní deska, která se navlhčí a uložen íse na ni forma tvaru kužele, tato forma se plní po třetinách, každá vrstva se hutní 25 vpichy tyčí, druhá a třetí vrstva se hutní tak, aby vpichy zasahovali mírně do předchozí vrstvy. Po zarovnání se forma pomalým pohybem odstraní a ihned se změří rozdíl mezi formou a betonovým kuželem. Pro stupeň konzistence S5, ve které se dodává, musí být sednutí >220 mm. Zkoušku provést na vzorku z každé dodávky směsi.\nPro laboratorní zkoušky pevnosti betonu a průsaku tlakovou vodou bude odebrán beton na zkušební tělesa 150 x 150 mm\\."}]
[null,5,"Kontrola provedení","a) Kontrola svárů\nb) Technická prohlídka","Vizuální a mechanická kontrola všech svárů, včetně detailů\nJednotlivé vrstvy po sekcích","a) Sváry pásů - tl. Výronku min. 5 mm v celé délce sváru, nesmí být upraveny stěrkou. Sváry koutů, hran, prostupů a detailů - upraveny stěrkou, nesmí být odkryta výztužná vložka. Mechanická - izolatérskou lžící (nesmí proniknout do sváru)\nb) Provedení ve shodě s PD a TP, vč. detailů; povrch není porušen; přitavení pásů plnoplošné, bez vln a výdutí - kontrola poklepem diagnostickou koulí (změna zvuku odezvy - dutý zvuk -> pás není plnoplošně nataven!)","Záznam o kontrole kvality","Mistr",null,null,null,"Koroze vlivem chloridů, ne z mořské vody","XD1","středně mokré, vlhké","C 30/37",null,{"$f":"\"a) \"&Q23&\" \"&Q22&\".\"\n&\"\nb) \"&Q24","v":"a) Nutné zkontrolovat s každou dodávkou množství, pevnostní třídu, stupeň vlivu prostředí, maximální frakci kameniva, vodní součinitel, stupeň konzistence a obsah chloridů a dobu zpracovatelnosti betonu. Požadavky v dodacím listu musí odpovídat požadavkům v PD. Nadefinovaný beton pro bílou vanu odpovídá druhu betonu  C 30/37  - XF3  - Cl 0,2  - Dmax 22  - S5.\nb) Pro konzistenci bude provedena zkouška sednutí kužele, která se provede ze vzorku směsi po vyprázdnění cca 0,3 m3 betonové směsi z autodomíchávače. Na rovnou plochu se položí podkladní deska, která se navlhčí a uložen íse na ni forma tvaru kužele, tato forma se plní po třetinách, každá vrstva se hutní 25 vpichy tyčí, druhá a třetí vrstva se hutní tak, aby vpichy zasahovali mírně do předchozí vrstvy. Po zarovnání se forma pomalým pohybem odstraní a ihned se změří rozdíl mezi formou a betonovým kuželem. Pro stupeň konzistence S5, ve které se dodává, musí být sednutí >220 mm. Zkoušku provést na vzorku z každé dodávky směsi.\nPro laboratorní zkoušky pevnosti betonu a průsaku tlakovou vodou bude odebrán beton na zkušební tělesa 150 x 150 mm\\."}]
[null,6,"Závěrečná výstupní kontrola kvality dokončené zakázky, nebo ucelené části zakázky","a) Závěrečná kontrola provedení \nb) Kontrola odstranění a vypořádání neshod zjištěných v průběhu realizace \nc) Kontrola dokladů o kvalitě zabudovaných materiálů","Kontrola celého rozsahu zakázky \nP - prohlídka a posouzení stavu\nD - porovnání s PD a TPř, Tpo\nN - porovnání s technickými normami\nA- atesty (prohlášení o shodě, certifikáty)","a) Revizní zprávy a měřící protokoly prokazující bezpečnou a spolehlivou funkci zařízení \nb) Požadavky PD, TPř, Tpo a odstranění neshod, soulas s normovými požadavky a odstranění neshod zjištěných v průběhu realizace \nc) Platné doklady o předepsané kvalitě materiálů","Protokol o výstupní kontrole zakázky nebo každou samostatně předávanou část","Stavbyvedoucí",null,null,null,"Koroze vlivem chloridů, ne z mořské vody","XD2","mokré, občas suché","C 30/37"]
["Hydroizolace spodní stavby\n",1,"Doklady před zahájením prací","a) Projektová dokumentace \nb) Technologický postup ","Vizuální kontrola\nKaždá dodávka\nKaždý doklad","a) Odsouhlasena dle PP \nb) Technologický postup schválen před zahájením prací \nc) Převzetí materiálu - kompletnost a kvalita dle PD - zápis v dodacím listu \nd) Certifikáty, atesty a prohlášení o shodě dle zákona č. 22/1997 Sb., Nařízení vlády č. 163/2002 Sb. Nebo Nařízení vlády č. 190/2002 Sb. ","Zápis ve stavebním deníku","Přípravář\nstavbyvedoucí\nmistr",null,null,null,"Koroze vlivem chloridů, ne z mořské vody","XD3","střídavé mokré a suché","C 35/45",null,"4. nenosné stěny"]
["Bílá vana",2,"Podkladní vrstvy","a) Provedení předchozích činností\nb) Kontrola základové spáry\nc) Rozměry výkopů","Vizuální kontrola\nKontrola únosnosti statikem\nPřeměření rozměrů výkopu","a) Nutné zkontrolovat všechy práce a činnosti, které předcházeli provádění bílé vany tedy především výkopové a zemní práce\nb) Zemina pod deskou nesmí být rozbahněná, nesmí obsahovat hroudy hlíny, nesmí být zmrzlá. Naopak musí být zarovnaná, čistá a zhutněná, ke kontrole bude přizván statik, který ověří skutečnou únosnost\nc) Budou zkontrolovány rozměry výkopů a jejich hloubka; hloubka se může lišit o ±15 mm ve vodorovné rovině; v předepsané výškové úrovni pak ± 25 mm","Záznam o kontrole kvality, zápis ve stavebním deníku","Stavbyvedoucí\nMistr",null,null,null,"Střídavé působení mrazu","XF1","mírně nasycen vodou, bez rozmrazovacích prostředků","C 30/37",null,{"$f":"Zadání!B38& \"  - \" &Zadání!C38& \"  - \" &Zadání!D38& \"  - \" &Zadání!E38& \"  - \" &Zadání!F38","v":"C 20/25  - XC1  - Cl 0,4  - Dmax 22  - S4"}]
[null,3,"Kontrola materiálu","a) Bednění\nb) Výztuž\nc) Beton","Vizuální kontrola\nKaždá dodávka\nKaždý doklad",{"$f":"L43&\n\"\nc) \"&Q23&\" \"&Q22&\".\"\n&\" \"&Q24","v":"a) Převzetí materiálu - proběhně shoda s projektovou dokumentací, bude zkontrolován počet prvků a jejich nepoškozenost. Skladování na pevné a odvodněné ploše\nb) Nutné zkontrolovat dodací list, hutní atest a shoda údajů v dodacím listu s údaji v PD. Kontrola množství, kvality, znečištění, označení výztuže a požadovaného naohýbání. Skladování na pevné odvodněné ploše na dřevěných prokladech tak, aby nedošlo k poškození.\nc) Nutné zkontrolovat s každou dodávkou množství, pevnostní třídu, stupeň vlivu prostředí, maximální frakci kameniva, vodní součinitel, stupeň konzistence a obsah chloridů a dobu zpracovatelnosti betonu. Požadavky v dodacím listu musí odpovídat požadavkům v PD. Nadefinovaný beton pro bílou vanu odpovídá druhu betonu  C 30/37  - XF3  - Cl 0,2  - Dmax 22  - S5. Pro konzistenci bude provedena zkouška sednutí kužele, která se provede ze vzorku směsi po vyprázdnění cca 0,3 m3 betonové směsi z autodomíchávače. Na rovnou plochu se položí podkladní deska, která se navlhčí a uložen íse na ni forma tvaru kužele, tato forma se plní po třetinách, každá vrstva se hutní 25 vpichy tyčí, druhá a třetí vrstva se hutní tak, aby vpichy zasahovali mírně do předchozí vrstvy. Po zarovnání se forma pomalým pohybem odstraní a ihned se změří rozdíl mezi formou a betonovým kuželem. Pro stupeň konzistence S5, ve které se dodává, musí být sednutí >220 mm. Zkoušku provést na vzorku z každé dodávky směsi.\nPro laboratorní zkoušky pevnosti betonu a průsaku tlakovou vodou bude odebrán beton na zkušební tělesa 150 x 150 mm\\."},"Záznam o kontrole kvality, zápis ve stavebním deníku","Stavbyvedoucí\nMistr\n",null,null,null,"Střídavé působení mrazu","XF2","mírně nasycen vodou, s rozmrazovacími prostředky","C 25/30",null,"a) Kontrola bednění -  ČSN 73 0210 - 2; Délka, výška tolerance: ± 20mm, odklon od svislice ± 6mm; světlý rozměr otvorů ± 12mm. Bez zbytků materiálu a prachu, těsné, prostorově tuhé, proveden ochranný nástřik.\nb) Kontrola chráničky - materiál, DN a osazení dle PD.\nc) Kontrola výroby betonové směsi - druh betonu"]
[null,4,"Přípravné práce","a) Přípravné práce\nb) Kontrola podkladu","Vizuální kontrola\nMěření teploty teploměrem\nPřeměření","a) Průměrná teplota vzduchu se naměření ze 3 měření v průběhu dne (07:00, 14:00, 21:00), hodnota z posledního měření se započte dvakrát. Teplota +5°C až 30°C, mimo interval zvláštní opatření. Pokles pod +5°C nutnost zachování nízkého teplotního gradientu. Betonáž za vysokých teplot nutno kropit beton a udržovat povrch ve vlhkém stavu, lze ho zakrýt a zabránit tak nadměrnému odpařování vody. Betonáž za silného deště nepřipadá v úvahu, hrozilo by vymývání zrn z betonu.\nb) Neporušenost a celistvost. Min. tloušťka podkladu je 50 mm.","Záznam o kontrole kvality, zápis ve stavebním deníku","Stavbyvedoucí\nMistr\n",null,null,null,"Střídavé působení mrazu","XF3","značně nasycen vodou, bez rozmrazoivacích prostředků","C 30/37",null," - Certifikát betonárky, kvalita směsi dle ČSN EN 13 670-1 ověření vyrobené betonové směsi krychelnými zkouškami."]
[null,5,"Kontrola \nprovedení desky","a) Bednění základové desky\nb) Uložení výztuže\nc) Uložení prostupů a provedení spár\nd) Kontrola betonáže","Vizuální kontrola\nPřeměření\nKaždá spára, spoj, roh\n","a) Poloha bednění s max. odchylkou ± 15 mm, kontrola stabilita bednění, celistvost, utěsněnost a také opatření odbedňovacím přípravkem\nb) Výztuž musí být nepoškozená, čistá, kontrola uložení prutů, jejich průměr, vzdálenosti prutů a jejich shoda s PD, odchylka vzdálenosti max. o 20% větší než v PD nebo max. 30 mm. Kontrola krytí výztuže, počet distančních tělísek dostatečný, kontrola stykování výztuže, poloha styků se může lišit max. o ± 30 mm\nc) Poloha prostupů shodná s PD, max. odchylka osy prostupu ± 25 mm, kontrola provedení pracovní spáry mezi dnem vany a svislou stěnou, plech musí být dobře napojen na výztuž desky a zda se nachází 150 mm od okraje desky, při osazování prostupů kontrolováno, zda jsou opatřeny těsnícím bobtnajícím páskem, při provádění dilatační spáry je dbáno na uložení dilatačního prvku s PVC pásem mezi výztuž\nd) Kontrola způsobu ukládání betonové směsi, max. výška lití směsi je\n1,5 m. Kontrola zhutnění vibrační lištou, nesmí dojít k porušení vyvázání výztuže","Záznam o kontrole kvality, zápis ve stavebním deníku","Stavbyvedoucí\nMistr\n",null,null,null,"Střídavé působení mrazu","XF4","značně nasycen vodou, s rozmrazovacími prostředky nebo mořskou vodou","C 30/37",null,{"$f":"Q29& \" \" &Q28& \"\" &Q30& \"\nd) \" &Q32","v":"a) Kontrola bednění -  ČSN 73 0210 - 2; Délka, výška tolerance: ± 20mm, odklon od svislice ± 6mm; světlý rozměr otvorů ± 12mm. Bez zbytků materiálu a prachu, těsné, prostorově tuhé, proveden ochranný nástřik.\nb) Kontrola chráničky - materiál, DN a osazení dle PD.\nc) Kontrola výroby betonové směsi - druh betonu C 20/25  - XC1  - Cl 0,4  - Dmax 22  - S4 - Certifikát betonárky, kvalita směsi dle ČSN EN 13 670-1 ověření vyrobené betonové směsi krychelnými zkouškami.\nd) Pro konzistenci bude provedena zkouška sednutí kužele, která se provede ze vzorku směsi po vyprázdnění cca 0,3 m3 betonové směsi z autodomíchávače. Na rovnou plochu se položí podkladní deska, která se navlhčí a uložen íse na ni forma tvaru kužele, tato forma se plní po třetinách, každá vrstva se hutní 25 vpichy tyčí, druhá a třetí vrstva se hutní tak, aby vpichy zasahovali mírně do předchozí vrstvy. Po zarovnání se forma pomalým pohybem odstraní a ihned se změří rozdíl mezi formou a betonovým kuželem. Pro stupeň konzistence S4, ve které se dodává, musí být sednutí 160 - 210 mm. Zkoušku provést na vzorku z každé dodávky směsi.\nPro laboratorní zkoušky pevnosti betonu a průsaku tlakovou vodou bude odebrán beton na zkušební tělesa 150 x 150 mm\\."}]
[null,6,"Kontrola ošetřování betonu","a) Ochranný postřik\nb) Plachta\nc) Odbednění","Vizuální kontrola\nCelá konstrukce","a) Postřik musí být nanášen rovnoměrně na celou plochu na čerstvý beton\nb) Kontrola zakrytí betonu plachtou nejméně po dobu 7 dní, celistvost, neponíčená\nc) Odbednění po 7 dnech, dodržení technologické pauzy pro odbednění, kontrolován způsob odbednění, aby se nepoškodila hotová konstrukce","Záznam o kontrole kvality, zápis ve stavebním deníku","Stavbyvedoucí\nMistr\n",null,null,null,"Chemicky agresivní prostředí","XA1","slabě agresivní chemické prostředí","C 30/37",null,{"$f":"IF(Zadání!F38='Skrytý list se vzorci'!L37,'Skrytý list se vzorci'!N37,IF(Zadání!F38='Skrytý list se vzorci'!L38,'Skrytý list se vzorci'!N38,IF(Zadání!F38='Skrytý list se vzorci'!L39,'Skrytý list se vzorci'!N39,IF(Zadání!F38='Skrytý list se vzorci'!L40,'Skrytý list se vzorci'!N40,IF(Zadání!F38='Skrytý list se vzorci'!L41,'Skrytý list se vzorci'!N41,0)))))","v":"Pro konzistenci bude provedena zkouška sednutí kužele, která se provede ze vzorku směsi po vyprázdnění cca 0,3 m3 betonové směsi z autodomíchávače. Na rovnou plochu se položí podkladní deska, která se navlhčí a uložen íse na ni forma tvaru kužele, tato forma se plní po třetinách, každá vrstva se hutní 25 vpichy tyčí, druhá a třetí vrstva se hutní tak, aby vpichy zasahovali mírně do předchozí vrstvy. Po zarovnání se forma pomalým pohybem odstraní a ihned se změří rozdíl mezi formou a betonovým kuželem. Pro stupeň konzistence S4, ve které se dodává, musí být sednutí 160 - 210 mm. Zkoušku provést na vzorku z každé dodávky směsi.\nPro laboratorní zkoušky pevnosti betonu a průsaku tlakovou vodou bude odebrán beton na zkušební tělesa 150 x 150 mm\\."}]
[null,7,"Kontrola provedení prací","a) Shoda s PD\nb) Prostupy\nc) Geometrická přesnost\nd) Tvrdost betonu","Kontrola celého rozsahu zakázky \nP - prohlídka a posouzení stavu\nD - porovnání s PD a TPř, Tpo\nN - porovnání s technickými normami\nA- atesty (prohlášení o shodě, certifikáty)","a) Kompletnost a shoda s PD\nb) Neporušenost, umístění prostupů dle PD\nc) Max. odchylka horní úrovně základové desky se může lišit max. o ± 20 mm od výšky v PD; max. mezní odchylka vychýlení stěny ± 15 mm nebo h/400; Max. odchylka zakřivení stěny max ± 15 mm nebo h/300, ale ne více než 30 mm; max. odchylky rovinnosti stěn je ± 8 mm na 2m\nd) Tvrdost zkoušená po 28 dnech pomocí Schmidtova kladívka, bude zkoušena společně se zkouškou průsaku tlakovou vodou na zkušebních tělesech o hraně délky 150 mm","Protokol o výstupní kontrole zakázky nebo každou samostatně předávanou část","Stavbyvedoucí",null,null,null,"Chemicky agresivní prostředí","XA2","středně agresivní chemické prostřední","C 30/37"]
["02_Materiál nosných konstrukcí \n",1,"Příprava před zahájením prací","a) Projektová dokumentace \nb) Technologický postup \nc) Kontrola vstupních materiálů \nd) Doložení kvality materiálů ","Vizuální kontrola\nKaždá dodávka\nKaždý doklad","a) Odsouhlasena objednatelem; platnost označena na výkresech\nb) Aktualizovaný TP )datum, podpis) je předán před zahájením prací\nc) Převzetí materiálu - kompletnost a kvalita dle PD - zápis v dodacím listu \nd) Certifikáty, atesty a prohlášení o shodě dle zákona č. 22/1997 Sb., Nařízení vlády č. 163/2002 Sb. Nebo Nařízení vlády č. 190/2002 Sb. ","Záznam o kontrole kvality, SD","Přípravář\nstavbyvedoucí\nmistr",null,null,null,"Chemicky agresivní prostředí","XA3","vysoce agresivní chemické prostředí","C 35/45"]
["Beton",2,"Geodetické vytyčení","Vytyčení a osazení výškových bodů","Přeměření","Vytyčení dle PD a ČSN 730420\nVodorovnost montážní roviny max. ± 10mm.","Geodetický protokol\nZáznam o kontrole kvality","Geodet"]
[null,3,"Příprava a práce před betonáží","a) Bednění\nb) Chráničky\nc) Výroba betonové směsi\nd) Konzistence betonové směsi","Vizuální kontrola\nPřeměření\nKaždá sekce\n",{"$f":"L44&\n\"\nc) \"&Q16& \" \" &Q15& \" - \" &Q17& \"\nd) \" &Q18","v":"a) ČSN 73 0210 - 2; Délka, výška tolerance: ± 20mm, odklon od svislice ± 6mm; světlý rozměr otvorů ± 12mm. Bez zbytků materiálu a prachu, těsné, prostorově tuhé, proveden ochranný nástřik.\nb) Materiál, DN a osazení dle PD.\nc) Druh betonu C 25/30 - XC3  - Cl 0,4  - Dmax 22  - S4 - Certifikát betonárky, kvalita směsi dle  ČSN EN 13 670-1 ověření vyrobené betonové směsi krychelnými zkouškami. \nd) Pro konzistenci bude provedena zkouška sednutí kužele, která se provede ze vzorku směsi po vyprázdnění cca 0,3 m3 betonové směsi z autodomíchávače. Na rovnou plochu se položí podkladní deska, která se navlhčí a uložen íse na ni forma tvaru kužele, tato forma se plní po třetinách, každá vrstva se hutní 25 vpichy tyčí, druhá a třetí vrstva se hutní tak, aby vpichy zasahovali mírně do předchozí vrstvy. Po zarovnání se forma pomalým pohybem odstraní a ihned se změří rozdíl mezi formou a betonovým kuželem. Pro stupeň konzistence S4, ve které se dodává, musí být sednutí 160 - 210 mm. Zkoušku provést na vzorku z každé dodávky směsi.\nPro laboratorní zkoušky pevnosti betonu a průsaku tlakovou vodou bude odebrán beton na zkušební tělesa 150 x 150 mm\\."},"Záznam o kontrole kvality","Mistr",null,null,null,"Konzistence betonu sednutí kužele","sednutí",null,"Maximální velikost zrna kameniva v mm"]
[null,4,"Výztuž","a) Správnost použitých profilů\nb) Poloha uložených prutů a styků výztuže\nc) Osazení distančních podlažek - krytí výztuže","Vizuální kontrola\nPřeměření\nKaždá sekce\n","Betonářská ocel B500B\na) Shoda s PD statiky.\nb) Max. odchylka polohy osy výztuže, vzdálenosti výztuže nebo posunu: ± 30mm.\nC) Dilatační podložky dle PD a TP. Krytí výztuže: Dle ČSN 73 12 01.","Záznam o kontrole kvality","Mistr",null,null,null,"S1","10 - 40mm","Pro konzistenci bude provedena zkouška sednutí kužele, která se provede ze vzorku směsi po vyprázdnění cca 0,3 m3 betonové směsi z autodomíchávače. Na rovnou plochu se položí podkladní deska, která se navlhčí a uložen íse na ni forma tvaru kužele, tato forma se plní po třetinách, každá vrstva se hutní 25 vpichy tyčí, druhá a třetí vrstva se hutní tak, aby vpichy zasahovali mírně do předchozí vrstvy. Po zarovnání se forma pomalým pohybem odstraní a ihned se změří rozdíl mezi formou a betonovým kuželem. Pro stupeň konzistence S1, ve které se dodává, musí být sednutí 10 - 40mm. Zkoušku provést na vzorku z každé dodávky směsi.\nPro laboratorní zkoušky pevnosti betonu a průsaku tlakovou vodou bude odebrán beton na zkušební tělesa 150 x 150 mm\\.","Dmax 8"]
[null,5,"Betonování","a) Teplotní podmínky\nb) Uložení betonové směsi\nc) Úprava povrchu","Vizuální kontrola\nPřeměření\nKaždá sekce\n","Betonáž je prováděna v souladu TP.\na) Teplota betonu min. +10°C, teplota povrchu min. +5°C\nb) Rovnoměrné a nepřerušované s vibrováním.\nC) Povrch pod stěrky; viditelné hrany skosené.","Záznam o kontrole kvality","Mistr",null,null,null,"S2","50 - 90 mm","Pro konzistenci bude provedena zkouška sednutí kužele, která se provede ze vzorku směsi po vyprázdnění cca 0,3 m3 betonové směsi z autodomíchávače. Na rovnou plochu se položí podkladní deska, která se navlhčí a uložen íse na ni forma tvaru kužele, tato forma se plní po třetinách, každá vrstva se hutní 25 vpichy tyčí, druhá a třetí vrstva se hutní tak, aby vpichy zasahovali mírně do předchozí vrstvy. Po zarovnání se forma pomalým pohybem odstraní a ihned se změří rozdíl mezi formou a betonovým kuželem. Pro stupeň konzistence S2, ve které se dodává, musí být sednutí 50 - 90 mm. Zkoušku provést na vzorku z každé dodávky směsi.\nPro laboratorní zkoušky pevnosti betonu a průsaku tlakovou vodou bude odebrán beton na zkušební tělesa 150 x 150 mm\\.","Dmax 11"]
[null,6,"Technická prohlídka a zkoušky","a) Vzhled povrchu\nb) Celkové rozměry a poloha\nc) Průřezy konstrukcí\nd) Svislost\ne) Místní rovinnost\nf) Pevnost betonu","Vizuální kontrola Přeměření\nKaždá sekce","ČSN 73 0210-2\na) Bez hnízd, trhlin a výstupků, pukliny max. do 5%\nplochy, stejnorodý povrch.\nb) Tab. A.1.1  25mm.\nc)Tab. A.1.2–stěny do 0,5m8mm; sloupy do 0,5m5mm.\nd)Tab. A.3.1–stěny do 2,5m5mm; sloupy do 2,5m4mm.\ne) Tab. A.2.2 – stěny 6mm/2m.\nf) Výsledky zkoušek po 28 dnech k datu betonáže.","Záznam o kontrole kvality","Mistr",null,null,null,"S3","100 - 150 mm","Pro konzistenci bude provedena zkouška sednutí kužele, která se provede ze vzorku směsi po vyprázdnění cca 0,3 m3 betonové směsi z autodomíchávače. Na rovnou plochu se položí podkladní deska, která se navlhčí a uložen íse na ni forma tvaru kužele, tato forma se plní po třetinách, každá vrstva se hutní 25 vpichy tyčí, druhá a třetí vrstva se hutní tak, aby vpichy zasahovali mírně do předchozí vrstvy. Po zarovnání se forma pomalým pohybem odstraní a ihned se změří rozdíl mezi formou a betonovým kuželem. Pro stupeň konzistence S3, ve které se dodává, musí být sednutí 100 - 150 mm. Zkoušku provést na vzorku z každé dodávky směsi.\nPro laboratorní zkoušky pevnosti betonu a průsaku tlakovou vodou bude odebrán beton na zkušební tělesa 150 x 150 mm\\.","Dmax 16"]
[null,7,"Geodetické zaměření\ntvaru a rozměrů","a) Zaměření skutečného provedení\nb) namátkové provedení kontroly\nmístní rovinnosti","Přeměření\nCelá konstrukce","ČSN 73 0210 – 1 tab. A2, A3\na) Rozměry dle skutečnosti.\nb) délka, výška tolerance  10 mm, odklon od svislice\ntolerance  5 mm.","Záznam o kontrole\nkvality\nGeodetický protokol","Geodet stavby",null,null,null,"S4","160 - 210 mm","Pro konzistenci bude provedena zkouška sednutí kužele, která se provede ze vzorku směsi po vyprázdnění cca 0,3 m3 betonové směsi z autodomíchávače. Na rovnou plochu se položí podkladní deska, která se navlhčí a uložen íse na ni forma tvaru kužele, tato forma se plní po třetinách, každá vrstva se hutní 25 vpichy tyčí, druhá a třetí vrstva se hutní tak, aby vpichy zasahovali mírně do předchozí vrstvy. Po zarovnání se forma pomalým pohybem odstraní a ihned se změří rozdíl mezi formou a betonovým kuželem. Pro stupeň konzistence S4, ve které se dodává, musí být sednutí 160 - 210 mm. Zkoušku provést na vzorku z každé dodávky směsi.\nPro laboratorní zkoušky pevnosti betonu a průsaku tlakovou vodou bude odebrán beton na zkušební tělesa 150 x 150 mm\\.","Dmax 22"]
[null,8,"Závěrečná výstupní\nkontrola kvality\ndokončené zakázky,\nnebo ucelené části\nzakázky","a) závěrečná kontrola provedení\nb) kontrola odstranění a vypořádání\nneshod zjištěných v průběhu\nrealizace\nc) kontrola dokladů o kvalitě\nzabudovaných materiálů","Kontrola celého rozsahu zakázky\nP – prohlídka a posouzení stavu\nD – porovnání s PD a TPř, TPo\nN – porovnání s technickými\nnormami\nA – atesty (prohlášení o shodě,\ncertifikáty)","a) měřicí protokoly prokazující bezpečnou a spolehlivou\nfunkci zařízení\nb) požadavky PD, TPř, TPo a odstranění neshod,\nsoulad s normovými požadavky a odstranění neshod\nzjištěných v průběhu realizace\nc) platné doklady o předepsané kvalitě materiálů.","Protokol o výstupní\nkontrole zakázky\nnebo\npro každou\nsamostatně\npředávanou část","Stavbyvedoucí\nMistr",null,null,null,"S5","víc nebo rovno 220 mm","Pro konzistenci bude provedena zkouška sednutí kužele, která se provede ze vzorku směsi po vyprázdnění cca 0,3 m3 betonové směsi z autodomíchávače. Na rovnou plochu se položí podkladní deska, která se navlhčí a uložen íse na ni forma tvaru kužele, tato forma se plní po třetinách, každá vrstva se hutní 25 vpichy tyčí, druhá a třetí vrstva se hutní tak, aby vpichy zasahovali mírně do předchozí vrstvy. Po zarovnání se forma pomalým pohybem odstraní a ihned se změří rozdíl mezi formou a betonovým kuželem. Pro stupeň konzistence S5, ve které se dodává, musí být sednutí >220 mm. Zkoušku provést na vzorku z každé dodávky směsi.\nPro laboratorní zkoušky pevnosti betonu a průsaku tlakovou vodou bude odebrán beton na zkušební tělesa 150 x 150 mm\\."]
["Materiál nosných konstrukcí \n",1,"Příprava před\nzahájením prací","a) Projektová dokumentace\nb) Technologický postup\nc) Kontrola vstupních materiálů\nd) Doložení kvality materiálů","Vizuální kontrola\nKaždý doklad\nKaždá dodávka","a) Odsouhlasena objednatelem; platnost označena\nna výkresech\nb Aktualizovaný TP (datum, podpis) je předán před\nzahájením prací.\nc) Převzetí materiálů - kompletnost a kvalita dle PD\n– zápis přímo na dodacím listu\nd) Certifikáty, atesty a Prohlášení o shodě dle NV\nč.163/2002 Sb a Zák. č.22/1997/Sb.","Záznam o kontrole\nkvality, SD","Přípravář\nStavbyvedoucí\nMistr"]
["Ocel",2,"Prvky OK","a) Dodaný materiál\nb) Rozměry prvků\nc) Dílenská výroba","Vizuální kontrola\nPřeměření\nKaždá dodávka","a) Kompletnost v rozsahu PD\nb) výška a šířka ± 3mm; přímost a rovnoběžnost ±\n3mm.\nc) Dílce OK vyrobeny s ohledem na montáž.","Záznam o kontrole\nkvality","Mistr",null,null,null,"a) Převzetí materiálu - proběhně shoda s projektovou dokumentací, bude zkontrolován počet prvků a jejich nepoškozenost. Skladování na pevné a odvodněné ploše\nb) Nutné zkontrolovat dodací list, hutní atest a shoda údajů v dodacím listu s údaji v PD. Kontrola množství, kvality, znečištění, označení výztuže a požadovaného naohýbání. Skladování na pevné odvodněné ploše na dřevěných prokladech tak, aby nedošlo k poškození.","Bílá vana"]
[null,3,"Montáž OK","a) Kotvení\nb) Montáž\nc) Spoje\nd) Polohové a výškové\nprovedení","Vizuální kontrola\nPřeměření\nKaždá sekce","a) Kotvení OK provedeno dle kotevního plánu\nb) Montáž OK v souladu s PD a TP.\nc). Šroubové spoje; Použité šrouby ve shodě\ns konstrukční dokumentací, po dotažení viditelné\nmin. 2 závity.\nd) Provedeno dle PD","Záznam o kontrole\nkvality","Mistr",null,null,null,"a) ČSN 73 0210 - 2; Délka, výška tolerance: ± 20mm, odklon od svislice ± 6mm; světlý rozměr otvorů ± 12mm. Bez zbytků materiálu a prachu, těsné, prostorově tuhé, proveden ochranný nástřik.\nb) Materiál, DN a osazení dle PD.","NK -beton"]
[null,4,"Povrchové úpravy","Nátěry","Vizuální kontrola\nPřeměření\nKaždá sekce\nKaždý nátěr","Ocelové konstrukce budou ve výrobě opatřeny\nzákladním nátěrem. Tloušťka nátěrového systému\nmusí být dle ČSN 038240 a ČSN 038260.\nNátěrový systém musí být navržen v souladu s\nprotipožárními nátěry. OK nátěr RAL 9010","Záznam o kontrole\nkvality","Mistr",null,null,null,"a) ČSN 73 0210 - 2; Délka, výška tolerance: ± 20mm, odklon od svislice ± 6mm; světlý rozměr otvorů ± 12mm. Bez zbytků materiálu a prachu, těsné, prostorově tuhé, proveden ochranný nástřik.\nb) Materiál, DN a osazení dle PD.\n","NeK - beton"]
[null,5,"OK po dokončení","a) Jakost ocelových prvků\nb) Montáž\nc) Povrchová úprava","Vizuální kontrola\nPřeměření\nKaždá sekce","a) potvrzení o jakosti a kompletnosti dodávky od\nvýrobce\nb) Osvědčení o jakosti a kompletnosti montáže.\nc) Povrch nepoškozený, stejnorodý. Součet\nopravených ploch max. 10% z celkové plochy.","Záznam o kontrole\nkvality","Mistr"]
[null,6,"Vypořádání","Seznam a vyznačení odchylek\nod projektové dokumentace a\npředepsané tolerance","Celá konstrukce","Seznam provedených opatření a náprav","Záznam o kontrole\nkvality\nStavební deník","Stavbyvedoucí\nVedoucí\nprojektu"]
[null,7,"Závěrečná výstupní\nkontrola kvality\ndokončené zakázky,\nnebo ucelené části\nzakázky","a) závěrečná kontrola provedení\nb) kontrola odstranění a\nvypořádání neshod zjištěných\nv průběhu realizace\nc) kontrola dokladů o kvalitě\nzabudovaných materiálů","Kontrola celého rozsahu\nzakázky\nP – prohlídka a posouzení\nstavu\nD – porovnání s PD a TPř, TPo\nN – porovnání s technickými\nnormami\nA – atesty (prohlášení o shodě,\ncertifikáty)","a) revizní zprávy a měřicí protokoly prokazující\nbezpečnou a spolehlivou funkci zařízení\nb) požadavky PD, TPř, TPo a odstranění neshod,\nsoulad s normovými požadavky a odstranění\nneshod zjištěných v průběhu realizace\nc) platné doklady o předepsané kvalitě materiálů.","Protokol o výstupní\nkontrole zakázky\nnebo\npro každou\nsamostatně\npředávanou část","Stavbyvedoucí"]
[" Materiál nosných konstrukcí \n",1,"Příprava před zahájením\nprací","a) Projektová dokumentace\nb) Technologický postup\nc) Kontrola vstupních materiálů\nd) Doložení kvality materiálů","Vizuální kontrola\nKaždý doklad\nKaždá dodávka","a) Odsouhlasena objednatelem; platnost označena na\nvýkresech\nb Aktualizovaný TP (datum, podpis) je předán před\nzahájením prací.\nc) Převzetí materiálů - kompletnost a kvalita dle PD –\nzápis přímo na dodacím listu\nd) Certifikáty, atesty a Prohlášení o shodě dle NV\nč.163/2002 Sb a Zák. č.22/1997/Sb.","Záznam o kontrole\nkvality, SD","Přípravář\nStavbyvedoucí\nMistr"]
["Zděnné",2,"Příprava a práce před\nzděním","a) Doprava a skladování\nb) Rovinnost podkladu\nc) Připravenost podkladu\nd) Vytyčení a založení zdiva","Vizuální kontrola\nPřeměření\nKaždé podlaží nebo sekce","ČSN EN 1996-2, ČSN 73 0205\na) Zdící prvky nejsou poškozeny, skladová plocha rovná\na odvodněná\nb) Dle TP pro cihly broušené\nc) Povrch bez prachu a ropných látek, dostatečně\nprovlhčený\nd) ČSN 73 0205\nDle TP výrobce zdícího materiálu.\nU cihel broušených dbát zvýšené pozornosti\nvýškovému založení, rovinnosti.","Záznam o kontrole\nkvality","Mistr"]
[null,3,"Zdění za nízkých teplot\npod 0°C","1. Zdění na lepidlo nebo maltu\na) Značka a teplota malty\nb) Ochrana zdících prvků\nc) Teplota podkladu\nd) Ochrana zdiva\n2. Zdění na pěnu\na) Zdící pěna\nb) Ochrana zdících prvků\nc) Teplota","Vizuální kontrola\nPřeměření – na začátku směny\nnebo při náhlém poklesu teploty","1.a) O jeden stupeň vyšší, než je v PD; min. + 15°C\nb) Chráněny před deštěm, sněhem a zmrznutím\nc) Min. + 10°C\nd) Čerstvě uložené zdivo chráněno, pokud krychelná\npevnost malty nedosáhla min. 50% pevnosti.\n2.a) Zdící pěna W-FIX\nb) Chráněny před deštěm, sněhem a zmrznutím\nc) Zdění možno provádět do - 5°C","Záznam o kontrole\nkvality","Mistr"]
[null,4,"Zdivo a příčky z\ncihel","a) Použité materiály\nb) Ukládání cihel\nc) Ložné spáry\nd) Kotvení příček\ne) Lícování příček","Vizuální kontrola\nPřeměření\nKaždé podlaží nebo sekce","ČSN EN 1996-2\na) Shoda s PD: Porotherm AKU P20, YTONG. Typ zdícího materiálu dle PD. Zvýšená pozornost na\npožadovanou akustiku.\nb) Do vodorovných vrstev tak, aby nevznikaly svislé\nprůběžné spáry. Dozdění cca 3cm ke stropu, spára\nbude pružně vyplněna (PU pěna). Dělení a doměrky\nbloků budou prováděny řezáním.( bloková pila). Malta:\ncementová, pevnost dle PD.\nc) Zdění na maltu:\nPrůměrná šířka 10 – 12,5 mm; šířka jednotlivé spáry\nmin. 6 mm a max. 15 mm. Spára do níž se klade\nvýztužná vložka min. o 4 mm širší než  výztužné\nvložky.\nZdění na lepidlo:\nLepidlo se nanáší speciálním válečkem ve vrstvě 1mm.\nZdění na pěnu:\n2 pasy pěny široké cca 3cm vzdálené od okraje cihly\n5cm. Cihly ukládat do 3min. od nanešení pěny.\nd) Dle TP výrobce zdícího materiálu a PD.\ne) Jednostranně\nVšechny způsoby zdění jsou prováděny dle TP.","Záznam o kontrole\nkvality","Mistr"]
[null,5,"Montáž zárubní","a) Kotvení\nb) Překlad v nadpraží\nc) Vyplnění svislých spár","Vizuální kontrola\nPřeměření\nKaždé patro,sekce\n5 zárubní na patře","a) Min. 3 ks na každé straně stojky zárubně\nb) Dle PD.\nc) Spáry zplna zality v průběhu zdění","Záznam o kontrole\nkvality","Mistr"]
[null,6,"Zdivo a příčky po\ndokončení","Mezní odchylky v mm jsou uvedeny\npouze pro nejmenší rozsah\nrozměrů:\na) Rozměry konstrukce\nb) Vzdálenost protilehlých kcí\nc) Mezní odchylky orientace\nkonstrukcí\nd) Místní rovinnost\ne) Přímost hran","Vizuální kontrola\nPřeměření\nKaždé podlaží nebo sekce","ČSN 73 0205, čl. 4, tab. A.1 až A.5\na) Délka, šířka (hloubka): do 4 m  20 mm;\nVýška: do 4 m  25 mm\nb) Délka, šířka (hloubka): do 4 m  15 mm;\nVýška: do 4 m  20 mm\nc) Svislost stěn a sloupů v jednom podlaží do 4 m délky\nkon. 10 mm.Úhel mezi svis. rovin. konstrukcemi ve\nvodorov směru do 4 m 5mm.\nd) Stěny s dokončeným povrchem: 2mm/2m\ne) Celková přímost: do 4 m – 5 mm; Místní přímost: 3\nmm / 2 mm","Záznam o kontrole\nkvality","Mistr"]
[null,7,"Osazené zárubně","a) Odchylka od pravého úhlu\nb) Výška zárubně od úrovně hrubé\npodlahy\nc) Prohnutí stojky zárubně\nd) Výška nadpraží od nivelety\npodlaží\ne) Rovinnost se zdivem","Vizuální kontrola\nPřeměření\nKaždé\npatro,sekce\n5 zárubní na patře (protokol)","a) 1,5 mm\nb) 0 – 3 mm\nc) max. 1,5 mm\nd) 0 – 3 mm\ne) 3 mm / 2 m","Záznam o kontrole kvality","Mistr"]
[null,8,"Závěrečná výstupní\nkontrola kvality\ndokončené zakázky,\nnebo ucelené části\nzakázky","a) závěrečná kontrola provedení\nb) kontrola odstranění a vypořádání\nneshod zjištěných v průběhu\nrealizace\nc) kontrola dokladů o kvalitě\nzabudovaných materiálů","Kontrola celého rozsahu zakázky\nP – prohlídka a posouzení stavu\nD – porovnání s PD a TPř, TPo\nN – porovnání s technickými\nnormami\nA – atesty (prohlášení o shodě,\ncertifikáty)","a) revizní zprávy a měřicí protokoly prokazující\nbezpečnou a spolehlivou funkci zařízení\nb) požadavky PD, TPř, TPo a odstranění neshod,\nsoulad s normovými požadavky a odstranění neshod\nzjištěných v průběhu realizace\nc) platné doklady o předepsané kvalitě materiálů.","Protokol o výstupní\nkontrole zakázky\nnebo\npro každou\nsamostatně\npředávanou část","Stavbyvedoucí"]
["03_Typ střechy\n",1,"Doklady před zahájením prací","a) Projektová dokumentace\nb) Technologický postup\nc) Kontrola vstupních materiálů\nd) Doložení kvality materiálů","Vizuální kontrola\nKaždý doklad\nKaždá dodávka","a) Odsouhlasena objednatelem; platnost označena na\nvýkresech\nb) Zákon č. 309/2006 Sb.,NV č. 591/2006 Sb..\nAktualizovaný TP (datum, podpis) je předán před\nzahájením prací.\nc) Převzetí materiálů - kompletnost a kvalita dle PD –\nzápis přímo na dodacím listu\nd) Certifikáty, atesty a Prohlášení o shodě dle Zákona č\n163/2002 Sb.","Záznam o\nprohlídkách,\nzkouškách a kontrole\nkvality prací","Přípravář\nStavbyvedoucí\nMistr"]
["Plochá střecha",2,"Podklad ","a) Kontrola rovinnosti a spádů\nb) Kvalita podkladu\nc) Povětrnostní podmínky","Vizuální kontrola\nPřeměření\nCelá střecha","a) Rovinnost 5mm/2m; Spády - tolerance max. 25% od\npředepsaného spádu v PD\nb) Povrch bez výstupků a zlomů, vyčnívající zrna jsou\nakceptovatelná do tl. 3 mm, na povrchu nesmí být volné\nčástice, stát voda, sníh, ropné prostředky nebo jiné\nchemikálie.\nc) Dle TP (min 5°C)","Záznam o\nprohlídkách,\nzkouškách a kontrole\nkvality prací","Mistr"]
[null,3,"Skladba, provedení ","a) S1\nb) S2\nc) S3","Vizuální kontrola\nPřeměření\nKaždá vrstva\nCelá střecha","a) Hydroizolace - PVC-P s odolností UV záření 1,5 mm\nSeparační sklovláknitý vlies\nEPS 100 S Stabil 100 mm\nEPS 100 S Stabil 100 mm\nspádové klíny EPS 100 S Stabil 40 - 140 mm\nParozábrana - homogenní nevyztužená folie PE\nb) Hydroizolace - PVC-P s odolností UV záření 1,5 mm\nSeparační sklovláknitý vlies\nTepelně izolační desky z minerální vlny 80 mm\nTepelně izolační desky z minerální vlny 140 mm\nSamolepicí parozábrana s Al vložkou\nc) Hydroizolace - PVC-P s odolností UV záření 1,5 mm\nSeparační sklovláknitý vlies\nEPS 100 S Stabil 80 mm\nEPS 100 S Stabil 80 mm\nspádové klíny EPS 100 S Stabil 40 - 60 mm\nParozábrana - homogenní nevyztužená folie PE\nProvedení všech vrstev v souladu s TP. ","Záznam o\nprohlídkách,\nzkouškách a kontrole\nkvality prací","Stavbyvedoucí\nMistr"]
[null,4,"Provádění modif. Pásů","a) Kladení a spojování\nc) Kouty, hrany , prostupy,\n detaily","Vizuální kontrola\nPřeměření\nJednotlivé vrstvy po sekcích","a) Čelní a boční přesahy min. 80mm; čelní pásy\nprovedeny na vazbu; boční přesahy vystřídány o 1/2\nšířky pásu; plnoplošně nataveno.\nb) Dle PD a TP výrobce živičných pasů.","Záznam o\nprohlídkách,\nzkouškách a kontrole\nkvality prací","Mistr"]
[null,5,"Klempířské práce","a) Klempířské konstrukce\nb) Klimatické podmínky","Vizuální kontrola\nPřeměření\nKaždá sekce, konstrukce","a) ČSN 73 3610\nPoužité plechy ve shodě s PD.\nb) Min. teplota + 5o C (max. 35°C), při nižší teplotě\nzvláštní opatření (temperace folií a pracoviště). Při dešti,\nsněžení a silném větru práce neprovádět.","Záznam o\nprohlídkách,\nzkouškách a kontrole\nkvality prací","Mistr"]
[null,6,"Kontrola provedení ","a) Kontrola svárů\nb) Technická prohlídka","Vizuální kontrola\nKaždá vrstva celé plochy\nKaždý detail\nCelá střecha","Živičné modifikované pasy\na) Vizuální kontrola – výronek 5 - 15mm\nv celé délce sváru. Mechanická kontrola - izolatérskou\nlžící (nesmí proniknout do sváru).\nb) Provedení ve shodě s PD a TP, vč. detailů; povrch\nnení porušen; přitavení plnoplošné, bez vln a výdutí.\nmPVC folie\na) Vizuální kontrola – sváry neshrnuté, nespálené, na\nsvislých prostupech mechanické stažení páskou +\npodtmelení. Mechanická kontrola – jehlou, jehla nesmí\nvniknout do sváru. Odlupovací zkouška – před každým\nzačátkem prací a při výrazné změně teploty ( k přetržení\nmusí dojít mimo svár).\nb) Provedení ve shodě s PD a TP, vč. detailů; povrch\nnení porušen. Zátopová zkouška (po dobu 48 hod –\nnezjištěny průsaky; ","Záznam o\nprohlídkách,\nzkouškách a kontrole\nkvality prací","Mistr"]
[null,7,"Závěrečná výstupní\nkontrola kvality\ndokončené zakázky,\nnebo ucelené části\nzakázky","a) závěrečná kontrola provedení\nb) kontrola dokladů o kvalitě\nzabudovaných materiálů\nc) kontrola odstranění a vypořádání neshod zjištěných v průběhu realizace ","Kontrola celého rozsahu zakázky\nP – prohlídka a posouzení\nstavu\nD – porovnání s PD a TPř, TPo\nN – porovnání s technickými\nnormami\nA – atesty (prohlášení o shodě,\ncertifikáty) ","a) revizní zprávy a měřicí protokoly prokazující\nbezpečnou a spolehlivou funkci zařízení\nb) požadavky PD, TPř, TPo a odstranění neshod.\nc) soulad s normovými požadavky a odstranění neshod\nzjištěných v průběhu realizace\nd) platné doklady o předepsané kvalitě materiálů.","Protokol o výstupní\nkontrole zakázky\nnebo\npro každou\nsamostatně\npředávanou část","Stavbyvedoucí"]
["Typ střechy",1,"Kontrola PD a jiných dokumentů","a) Projektová dokumentace\nb) Technologický postup\nc) Kontrola vstupních materiálů\nd) Doložení kvality materiálů","Vizuální kontrola\nKaždý doklad\nKaždá dodávka","Kontroluje se úplnost a rozsah dokumentace podle vyhl. 499/2006Sb. a ČSN EN 1090-2+A1. Kontroluje se shoda výrobní dokumentace s objednávkou dle PD.","Záznam o kontrole\nkvality, SD","Přípravář\nStavbyvedoucí\nMistr"]
["Šikmá střecha",2,"Příprava pro provádění prací","a) pracoviště\nb) vstupních materiálů\nc) uskladnění\nd) klimatické podmínky","Vizuální kontrola\nPřeměření\nKaždá dodávka\n","a) Zkontrolovat hlavně strop, štítové stěny provedení věnce a atiku - základní rozměry střechy, dokončenost a úplnost konstrukcí, výšku podezdívky. Dále se kontroluje konstrukce podkladu - povrch nesmí být výrazně hrubý, s ostrými hranami a výstupky. Zbaven volných nečistot. Na povrchu nesmí být stojící voda, led nebo sníh. Povrch stropní konstrukce by měl vykazovat mezní výchylku nejvýše 5 mm na 2 metrové lati. Dovolené odchylky rovnoběžnosti: ±10 mm (do 4m); ±12 mm (od 4 m do 8 m); ±20 mm (od 8m do 16 m).\nb) Kontroluje se druh, rozměry, množství a jakost dodaných ocelových a dřevěných prvků a to dle dodacích listů, kusovníků z výroby a PD.\nc) Materiál nesmí být v průběhu skladování ani při ukládání na skládku znehodnocen, poškozen nebo jiným způsobem snížena jeho kvalita a jakost. Skládka je určena dle výkresu zařízení staveniště. Skladování materiálů dle podmínek výrobce, materiál chráněn před povětrnostními vlivy. Jsou zřízeny zamykatelné sklady pro drobný materiál\nd) Kontroluje se stav klimatických podmínek při příchodu na stavbu, případně před započetím prací a provádí záznam každý den do SD. Technologický předpis stanovuje, za jakých podmínek není možné pracovat nebo jaká opatření je nutno provést, aby se pokračovat mohlo. Za tyto podmínky se považuje:\n- bouře, déšť, sněžení nebo tvoření námrazy\n- čerstvý vítr o rychlosti nad 11 m.s-1\n- dohlednost v místě práce menší než 30 m\n- teplota prostředí během provádění prací nižší než -10 °C ","Záznam o kontrole kvality, zápis ve stavebním deníku","Mistr\nStavbyvedoucí\nTechnický dozor investora"]
[null,3,"Kontrola prvků krovu","a) pozednice\nb) sloupků\nc) vaznice\nd) krokve a kleštiny","Vizuální kontrola\nPřeměření\nKaždý prvek","a) Kontroluje se správné vyvrtání otvorů do osazovaných pozednic podle hloubky a vzdáleností závitových tyčí. Následná kontrola provedení osazení pozednic a s tím spojená rovinnost. Odchylka maximálně 5mm na 2 metrech. Kontroluje se správné utažení matek a použitý materiál a následné uřezání přesahu závitových tyčí.\nb) Kontroluje se přesnost osazení ocelových sloupků na připojovací plechy patek dle projektové dokumentace. Odchylka sloupků musí být maximálně 2mm ve vertikálním směru. Svislost se kontroluje pomocí trubicové libely. Vychýlení ocelových vaznic v \nhorizontálním směru musí být maximálně 10mm po délce vaznice.\nc) Kontroluje se přesnost osazení ocelových vaznic na sloupky dle projektové dokumentace. Odchylka vaznic musí být maximálně 2mm ve vertikálním směru. Kontroluje se kvalita, délka a tloušťka použitých koutových svarů. Svary kontrolujeme vizuálně a musíme dát pozor, aby nebyly ve svarech trhliny, dutiny, neprůvary a aby se neobjevovali vměstky.\nd) Kontroluje se provedení osedlání krokví na pozednice a vaznice. Průřez osedlání nesmí být více jak 1/3 výšky krokví a následné prošroubování správnými šrouby.\nKontrolujeme správnou osovou vzdálenost mezi krokvemi, která nesmí být větší než 1200mm. Vzdálenost přesahu za osedláním na pozednici musí být v maximální vzdálenosti podle projektové dokumentace. Dáváme pozor, aby vzdálenosti mezi středovými vaznice a vrcholovou vaznicí nebyl vetší než dle výkresové dokumentace. Kontrolujeme, aby minimální vzdálenost krokví od komínového tělesa nebyla menší než 50mm. Kontrolujeme jestli jsou správně osazeny kleštiny na sloupky a vaznice.","Záznam o kontrole kvality, zápis ve stavebním deníku","Mistr\nStavbyvedoucí"]
[null,4,"Kontrola tuhosti","Kontrola spojů","Vizuální kontrola\nKaždý spoj","Kontroluje se správné dotažení všech spojovacích šroubů. U hřebíkových spojů se kontroluje správné zaražení hřebíku do dřeva. Hlava zaraženého hřebíku musí být v jedné rovině s rovinou dřeva. Svorníky musí být utaženy, tak aby spojovaný materiál spolu lícoval a nedocházelo k prokluzování materiálu. V případě výrazného vysychání dřeva se potom dle potřeby dotahují. Spoje všech bednících prvků musí být na sráz vedlejších desek a pomocí správných hřebíků se musí přichytit do krokví.","Záznam o kontrole kvality, zápis ve stavebním deníku","Mistr\nStavbyvedoucí"]
[null,5,"Provedení hydroizolace","Kontrola pásů","Vizuální kontrola\nPřeměření\nKaždý prvek","Kontroluje se zejména rozvrstvení pásů izolace a jejich následné překrytí, které by mělo být dle přesahu 150mm. Odchylka maximálně 50mm. Kontrolujeme že tmel byl nanášen v pruzích o průměru 3-5mm na okraj folie. Zajištění dostatečného přesahu folií s ohledem na dilatace. Tloušťka lepidla ve spojích 1-2mm a minimální šířka 25mm. Provádění při teplotě +5°C až +50°C (PE folie)","Záznam o kontrole kvality, zápis ve stavebním deníku","Mistr\nStavbyvedoucí"]
[null,6,"Kontrola konstrukce střechy","a) laťování\nb) Klempířské prvky\nc) střešní krytina","Vizuální kontrola\nPřeměření\nKaždý prvek","a) Kontrolují se osové vzdálenosti mezi kontra-latěmi, které musí odpovídat délce mezi krokvemi. Rozteče mezi latěmi musí být do vzdálenosti maximálně 340mm. Kontrola přibití, které musí být minimálně ve vzdálenosti 750mm pro dva hřebíky. Kontroluje se kvalita provedení, kdy se musí zachovat rovinnost, nesmí nic vyčnívat z roviny bednění. Kontrola laťování se provádí pomocí měření, maximální odchylka je 10mm. Kontrola rovinnosti se provádí pomocí provázku. Kontroluje se správnost přibití do kontra-latí pomocí hřebíků, které nesmí vyčnívat a musí lícovat s rovinou přibití.\nb) Kontrola žlabových háků, přibití min. na dva hřebíky 120 mm a max. 60 mm od sebe. Kontroluje se vzdálenost žlabových háků podle projektové dokumentace. Kontrola okapního žlabu překrytí musí být minimálně 150mm, správné otvory pro trouby, jejich správný průměr, spojení prvků. Musíme kontrolovat správný spád pro odtok vody, který musí být minimálně 0,5%. Kontrola oplechování komína se provádí pro obě vrstvy, napřed se musí zkontrolovat první vrstva, jestli je lemování spojeno se střechou a druhá vrstva, aby byla spojena s komínem, aby nedocházelo k pronikání vody do konstrukce vlivem sedání střešní konstrukce a následným vznikem mezer. Překrytí musí být minimálně 150mm.\nc) Kontroluje se správnost pokládky jednotlivých střešních tašek.Správné kotvení šrouby a jejich dotažení krytiny dle výrobce.Kontrolujeme správné uložení hřebenáčů, zejména výšku držáků pro hřebenové latě minimálně 2 vruty v každém držáku, jejich přišroubování do držáků. ","Záznam o kontrole kvality, zápis ve stavebním deníku","Mistr\nStavbyvedoucí"]
[null,7,"Výstupní kontrola","Kontrola rozměrů a tvaru hotové konstrukce","Vizuální kontrola\nPřeměřením\nCelá střecha","Kontroluje se správnost a celistvost provedení všech klempířských, pokrývačských, zámečnických a tesařských prací.","Záznam o kontrole kvality, zápis ve stavebním deníku","Mistr\nStavbyvedoucí"]
["04_Technologie provádění výplňových konstrukcí\n",1,"Příprava před zahájením\nprací","a) Projektová dokumentace\nb) Technologický postup\nc) Kontrola vstupních materiálů\nd) Doložení kvality materiálů","Vizuální kontrola\nKaždý doklad\nKaždá dodávka","a) Odsouhlasena objednatelem; platnost označena na\nvýkresech\nb Aktualizovaný TP (datum, podpis) je předán před\nzahájením prací.\nc) Převzetí materiálů - kompletnost a kvalita dle PD –\nzápis přímo na dodacím listu\nd) Certifikáty, atesty a Prohlášení o shodě dle NV\nč.163/2002 Sb a Zák. č.22/1997/Sb.","Záznam o kontrole\nkvality, SD","Přípravář\nStavbyvedoucí\nMistr"]
["Zděnné",2,"Příprava a práce před\nzděním","a) Doprava a skladování\nb) Rovinnost podkladu\nc) Připravenost podkladu\nd) Vytyčení a založení zdiva","Vizuální kontrola\nPřeměření\nKaždé podlaží nebo sekce","ČSN EN 1996-2, ČSN 73 0205\na) Zdící prvky nejsou poškozeny, skladová plocha rovná\na odvodněná\nb) Dle TP pro cihly broušené\nc) Povrch bez prachu a ropných látek, dostatečně\nprovlhčený\nd) ČSN 73 0205\nDle TP výrobce zdícího materiálu.\nU cihel broušených dbát zvýšené pozornosti\nvýškovému založení, rovinnosti.","Záznam o kontrole\nkvality","Mistr"]
[null,3,"Zdění za nízkých teplot\npod 0°C","1. Zdění na lepidlo nebo maltu\na) Značka a teplota malty\nb) Ochrana zdících prvků\nc) Teplota podkladu\nd) Ochrana zdiva\n2. Zdění na pěnu\na) Zdící pěna\nb) Ochrana zdících prvků\nc) Teplota","Vizuální kontrola\nPřeměření – na začátku směny\nnebo při náhlém poklesu teploty","1.a) O jeden stupeň vyšší, než je v PD; min. + 15°C\nb) Chráněny před deštěm, sněhem a zmrznutím\nc) Min. + 10°C\nd) Čerstvě uložené zdivo chráněno, pokud krychelná\npevnost malty nedosáhla min. 50% pevnosti.\n2.a) Zdící pěna W-FIX\nb) Chráněny před deštěm, sněhem a zmrznutím\nc) Zdění možno provádět do - 5°C","Záznam o kontrole\nkvality","Mistr"]
[null,4,"Zdivo a příčky z\ncihel","a) Použité materiály\nb) Ukládání cihel\nc) Ložné spáry\nd) Kotvení příček\ne) Lícování příček","Vizuální kontrola\nPřeměření\nKaždé podlaží nebo sekce","ČSN EN 1996-2\na) Shoda s PD: Porotherm AKU P20, YTONG. Typ zdícího materiálu dle PD. Zvýšená pozornost na\npožadovanou akustiku.\nb) Do vodorovných vrstev tak, aby nevznikaly svislé\nprůběžné spáry. Dozdění cca 3cm ke stropu, spára\nbude pružně vyplněna (PU pěna). Dělení a doměrky\nbloků budou prováděny řezáním.( bloková pila). Malta:\ncementová, pevnost dle PD.\nc) Zdění na maltu:\nPrůměrná šířka 10 – 12,5 mm; šířka jednotlivé spáry\nmin. 6 mm a max. 15 mm. Spára do níž se klade\nvýztužná vložka min. o 4 mm širší než  výztužné\nvložky.\nZdění na lepidlo:\nLepidlo se nanáší speciálním válečkem ve vrstvě 1mm.\nZdění na pěnu:\n2 pasy pěny široké cca 3cm vzdálené od okraje cihly\n5cm. Cihly ukládat do 3min. od nanešení pěny.\nd) Dle TP výrobce zdícího materiálu a PD.\ne) Jednostranně\nVšechny způsoby zdění jsou prováděny dle TP.","Záznam o kontrole\nkvality","Mistr"]
[null,5,"Montáž zárubní","a) Kotvení\nb) Překlad v nadpraží\nc) Vyplnění svislých spár","Vizuální kontrola\nPřeměření\nKaždé patro,sekce\n5 zárubní na patře","a) Min. 3 ks na každé straně stojky zárubně\nb) Dle PD.\nc) Spáry zplna zality v průběhu zdění","Záznam o kontrole\nkvality","Mistr"]
[null,6,"Zdivo a příčky po\ndokončení","Mezní odchylky v mm jsou uvedeny\npouze pro nejmenší rozsah\nrozměrů:\na) Rozměry konstrukce\nb) Vzdálenost protilehlých kcí\nc) Mezní odchylky orientace\nkonstrukcí\nd) Místní rovinnost\ne) Přímost hran","Vizuální kontrola\nPřeměření\nKaždé podlaží nebo sekce","ČSN 73 0205, čl. 4, tab. A.1 až A.5\na) Délka, šířka (hloubka): do 4 m  20 mm;\nVýška: do 4 m  25 mm\nb) Délka, šířka (hloubka): do 4 m  15 mm;\nVýška: do 4 m  20 mm\nc) Svislost stěn a sloupů v jednom podlaží do 4 m délky\nkon. 10 mm.Úhel mezi svis. rovin. konstrukcemi ve\nvodorov směru do 4 m 5mm.\nd) Stěny s dokončeným povrchem: 2mm/2m\ne) Celková přímost: do 4 m – 5 mm; Místní přímost: 3\nmm / 2 mm","Záznam o kontrole\nkvality","Mistr"]
[null,7,"Osazené zárubně","a) Odchylka od pravého úhlu\nb) Výška zárubně od úrovně hrubé\npodlahy\nc) Prohnutí stojky zárubně\nd) Výška nadpraží od nivelety\npodlaží\ne) Rovinnost se zdivem","Vizuální kontrola\nPřeměření\nKaždé\npatro,sekce\n5 zárubní na patře (protokol)","a) 1,5 mm\nb) 0 – 3 mm\nc) max. 1,5 mm\nd) 0 – 3 mm\ne) 3 mm / 2 m","Záznam o kontrole kvality","Mistr"]
[null,8,"Závěrečná výstupní\nkontrola kvality\ndokončené zakázky,\nnebo ucelené části\nzakázky","a) závěrečná kontrola provedení\nb) kontrola odstranění a vypořádání\nneshod zjištěných v průběhu\nrealizace\nc) kontrola dokladů o kvalitě\nzabudovaných materiálů","Kontrola celého rozsahu zakázky\nP – prohlídka a posouzení stavu\nD – porovnání s PD a TPř, TPo\nN – porovnání s technickými\nnormami\nA – atesty (prohlášení o shodě,\ncertifikáty)","a) revizní zprávy a měřicí protokoly prokazující\nbezpečnou a spolehlivou funkci zařízení\nb) požadavky PD, TPř, TPo a odstranění neshod,\nsoulad s normovými požadavky a odstranění neshod\nzjištěných v průběhu realizace\nc) platné doklady o předepsané kvalitě materiálů.","Protokol o výstupní\nkontrole zakázky\nnebo\npro každou\nsamostatně\npředávanou část","Stavbyvedoucí"]
["Technologie provádění výplňových konstrukcí\n",1,"Příprava před\nzahájením prací","a) Projektová dokumentace\nb) Technologický postup\nc) Kontrola vstupních materiálů\nd) Doložení kvality materiálů","Vizuální kontrola\nKaždý doklad\nKaždá dodávka","a) Odsouhlasena objednatelem; platnost označena\nna výkresech\nb Aktualizovaný TP (datum, podpis) je předán před\nzahájením prací.\nc) Převzetí materiálů - kompletnost a kvalita dle PD\n– zápis přímo na dodacím listu\nd) Certifikáty, atesty a Prohlášení o shodě dle NV\nč.163/2002 Sb a Zák. č.22/1997/Sb.","Záznam o kontrole\nkvality, SD","Přípravář\nStavbyvedoucí\nMistr"]
["SDK montované",2,"Nosná konstrukce -\npříčky","a) Podklad\nb) Montáž vodících UW profilů a sloupků CW","Vizuální kontrola\nPřeměření\nKaždá sekce, patro","a) Vlhkost stěn a stropů ustálená, rovinnost do 10\nmm na 10m délky; návaznost na otvory a prostupy.\nb) Rozteč sloupků max. 625mm; v místech kde\nbude keramický obklad max. 400mm; mezera mezi\nhorním koncem sloupku a stojinou vodítka 10 - 15\nmm; Rozmístění připevňovacích prostředků, rozteč\nmax. 800 mm.","Záznam o kontrole\nkvality\nGeodetický protokol","Stavbyvedoucí\nMistr\nGeodet"]
[null,3,"Opláštění příček SDK deskami","a) Instalace v příčkách\nb) Montáž opláštění","Vizuální kontrola\nPřeměření\nKaždá sekce, patro","a) Elektroinstalace, ZTI a VZT jsou dokončeny dle\nPD.\nb) Zásadně používat celé desky; u 1 strany příčky\nse začíná deskou o celé šířce; šířka spáry max. 1\naž 2mm; desky osazeny 15mm nad podlahou;\nspára nad zárubní min. 150mm od hrany bočního\nostění; přířezy -min. výška 400mm; min. přesazení\nsousedních příčných spár 400mm; nastavené části\nv sousedních polích vystřídány; rozteče šroubů\nmax. 250mm; při 2 vrstvách opláštění v 1 vrstvě\nrozteče 750mm; hlava šroubů musí být zapuštěna\nod okraje desky min. 10mm, u řezaných hran min.\n15mm (šrouby nesmí trhat desku).","Záznam o kontrole\nkvality","Mistr"]
[null,4,"Zvuková izolace","Uložení izolačních desek","Vizuální kontrola\nKaždá sekce, patro","Prostor mezi nosnými prvky je vyplněn v celé\nploše.","Záznam o kontrole\nkvality","Mistr"]
[null,5,"Ocelové zárubně","Montáž nosné konstrukce a\nosazení zárubně","Vizuální kontrola\nKaždá sekce, patro","UW profil je na obou stranách ukotven 2 šrouby,\nNad otvorem je zabudován překlad z UW profilu,\nv nadpraží jsou 2 stojiny CW.","Záznam o kontrole\nkvality","Stavbyvedoucí\nMistr"]
[null,6,"Tmelení","Tmelení spár (s výztužnou\npáskou) a hlav šroubů","Vizuální kontrola\nKaždá stěna\nKaždá sekce, patro","Zaplnění podélných spár tmelem na celou hloubku;\nzkosení příčných hran; vtlačení pásky do 1 vrstvy\ntmelu; přestěrkování po cca 30min, roztažení tmelu\na uhlazení do ztracena; u koutů a vnějších rohů\nvrstva tmelu roztažena do šířky 250 až 300mm;\npřebroušení 2 vrstvy po zaschnutí.","Záznam o kontrole\nkvality\nProtokol","Stavbyvedoucí\nMistr"]
[null,7,"Příčky po dokončení","a) Povrch příček\nb) Svislost a rovinnost\nc) Osazení zárubní","Vizuální kontrola\nPřeměření\n1 x v každé místnosti\nKaždá zárubeň\n(min.1zápis ze sekce, patra)","a) Hladký, zabroušený, kouty vyplněny\nakrylátovým tmelem.\nb) 5 mm/2m.\nc) Odchylka od prav. úhlu: 1,5mm; svislost ostění\nmax. - 1,5mm; výška zárubně od úrovně podlahy\nmax. + 10mm; odchylka ve zkřížení max. 1,5mm.","Záznam o kontrole\nkvality\nProtokol","Stavbyvedoucí\nMistr"]
[null,8,"Závěrečná výstupní kontrola kvality dokončené zakázky, nebo ucelené části zakázky","a) závěrečná kontrola provedení\nb) kontrola odstranění a vypořádání neshod zjištěných v průběhu realizace\nc) kontrola dokladů o kvalitě zabudovaných materiálů","Kontrola celého rozsahu\nzakázky\nP – prohlídka a posouzení\nstavu\nD – porovnání s PD a TPř, TPo\nN – porovnání s technickými\nnormami\nA – atesty (prohlášení o shodě,\ncertifikáty)","a) revizní zprávy a měřicí protokoly prokazující bezpečnou a spolehlivou funkci zařízení\nb) požadavky PD, TPř, TPo a odstranění neshod.\nc) soulad s normovými požadavky a odstranění neshod zjištěných v průběhu realizace\nd) platné doklady o předepsané kvalitě materiálů.","Záznam o kontrole\nkvality\nProtokol","Stavbyvedoucí\nMistr"]
[" Technologie provádění výplňových konstrukcí\n",1,"Příprava před zahájením prací","a) Projektová dokumentace \nb) Technologický postup \nc) Kontrola vstupních materiálů \nd) Doložení kvality materiálů ","Vizuální kontrola\nKaždá dodávka\nKaždý doklad","a) Odsouhlasena objednatelem; platnost označena na výkresech\nb) Aktualizovaný TP )datum, podpis) je předán před zahájením prací\nc) Převzetí materiálu - kompletnost a kvalita dle PD - zápis v dodacím listu \nd) Certifikáty, atesty a prohlášení o shodě dle zákona č. 22/1997 Sb., Nařízení vlády č. 163/2002 Sb. Nebo Nařízení vlády č. 190/2002 Sb. ","Záznam o kontrole kvality, SD","Přípravář\nstavbyvedoucí\nmistr"]
["Monolitické\n",2,"Geodetické vytyčení","Vytyčení a osazení výškových bodů","Přeměření","Vytyčení dle PD a ČSN 730420\nVodorovnost montážní roviny max. ± 10mm.","Geodetický protokol\nZáznam o kontrole kvality","Geodet"]
[null,3,"Příprava a práce před betonáží","a) Bednění\nb) Chráničky\nc) Výroba betonové směsi\nd) Konzistence betonové směsi","Vizuální kontrola\nPřeměření\nKaždá sekce\n",{"$f":"Q29& \" \" &Q28& \"\" &Q30& \"\nd) \" &Q32","v":"a) Kontrola bednění -  ČSN 73 0210 - 2; Délka, výška tolerance: ± 20mm, odklon od svislice ± 6mm; světlý rozměr otvorů ± 12mm. Bez zbytků materiálu a prachu, těsné, prostorově tuhé, proveden ochranný nástřik.\nb) Kontrola chráničky - materiál, DN a osazení dle PD.\nc) Kontrola výroby betonové směsi - druh betonu C 20/25  - XC1  - Cl 0,4  - Dmax 22  - S4 - Certifikát betonárky, kvalita směsi dle ČSN EN 13 670-1 ověření vyrobené betonové směsi krychelnými zkouškami.\nd) Pro konzistenci bude provedena zkouška sednutí kužele, která se provede ze vzorku směsi po vyprázdnění cca 0,3 m3 betonové směsi z autodomíchávače. Na rovnou plochu se položí podkladní deska, která se navlhčí a uložen íse na ni forma tvaru kužele, tato forma se plní po třetinách, každá vrstva se hutní 25 vpichy tyčí, druhá a třetí vrstva se hutní tak, aby vpichy zasahovali mírně do předchozí vrstvy. Po zarovnání se forma pomalým pohybem odstraní a ihned se změří rozdíl mezi formou a betonovým kuželem. Pro stupeň konzistence S4, ve které se dodává, musí být sednutí 160 - 210 mm. Zkoušku provést na vzorku z každé dodávky směsi.\nPro laboratorní zkoušky pevnosti betonu a průsaku tlakovou vodou bude odebrán beton na zkušební tělesa 150 x 150 mm\\."},"Záznam o kontrole kvality","Mistr"]
[null,4,"Výztuž","a) Správnost použitých profilů\nb) Poloha uložených prutů a styků výztuže\nc) Osazení distančních podlažek - krytí výztuže","Vizuální kontrola\nPřeměření\nKaždá sekce\n","Betonářská ocel B500B\na) Shoda s PD statiky.\nb) Max. odchylka polohy osy výztuže, vzdálenosti výztuže nebo posunu: ± 30mm.\nC) Dilatační podložky dle PD a TP. Krytí výztuže: Dle ČSN 73 12 01.","Záznam o kontrole kvality","Mistr"]
[null,5,"Betonování","a) Teplotní podmínky\nb) Uložení betonové směsi\nc) Úprava povrchu","Vizuální kontrola\nPřeměření\nKaždá sekce\n","Betonáž je prováděna v souladu TP.\na) Teplota betonu min. +10°C, teplota povrchu min. +5°C\nb) Rovnoměrné a nepřerušované s vibrováním.\nC) Povrch pod stěrky; viditelné hrany skosené.","Záznam o kontrole kvality","Mistr"]
[null,6,"Technická prohlídka a zkoušky","a) Vzhled povrchu\nb) Celkové rozměry a poloha\nc) Průřezy konstrukcí\nd) Svislost\ne) Místní rovinnost\nf) Pevnost betonu","Vizuální kontrola Přeměření\nKaždá sekce","ČSN 73 0210-2\na) Bez hnízd, trhlin a výstupků, pukliny max. do 5%\nplochy, stejnorodý povrch.\nb) Tab. A.1.1  25mm.\nc)Tab. A.1.2–stěny do 0,5m8mm; sloupy do 0,5m5mm.\nd)Tab. A.3.1–stěny do 2,5m5mm; sloupy do 2,5m4mm.\ne) Tab. A.2.2 – stěny 6mm/2m.\nf) Výsledky zkoušek po 28 dnech k datu betonáže.","Záznam o kontrole kvality","Mistr"]
[null,7,"Geodetické zaměření\ntvaru a rozměrů","a) Zaměření skutečného provedení\nb) namátkové provedení kontroly\nmístní rovinnosti","Přeměření\nCelá konstrukce","ČSN 73 0210 – 1 tab. A2, A3\na) Rozměry dle skutečnosti.\nb) délka, výška tolerance  10 mm, odklon od svislice\ntolerance  5 mm.","Záznam o kontrole\nkvality\nGeodetický protokol","Geodet stavby"]
[null,8,"Závěrečná výstupní\nkontrola kvality\ndokončené zakázky,\nnebo ucelené části\nzakázky","a) závěrečná kontrola provedení\nb) kontrola odstranění a vypořádání\nneshod zjištěných v průběhu\nrealizace\nc) kontrola dokladů o kvalitě\nzabudovaných materiálů","Kontrola celého rozsahu zakázky\nP – prohlídka a posouzení stavu\nD – porovnání s PD a TPř, TPo\nN – porovnání s technickými\nnormami\nA – atesty (prohlášení o shodě,\ncertifikáty)","a) měřicí protokoly prokazující bezpečnou a spolehlivou\nfunkci zařízení\nb) požadavky PD, TPř, TPo a odstranění neshod,\nsoulad s normovými požadavky a odstranění neshod\nzjištěných v průběhu realizace\nc) platné doklady o předepsané kvalitě materiálů.","Protokol o výstupní\nkontrole zakázky\nnebo\npro každou\nsamostatně\npředávanou část","Stavbyvedoucí\nMistr"]
["05_Typ povrchových úprav stěn\n",1,"Příprava před zahájením\nprací","a) Projektová dokumentace\nb) Technologický postup\nc) Kontrola vstupních materiálů\nd) Doložení kvality materiálů","Vizuální kontrola\nDoklady\n1x","a) Odsouhlasena objednatelem; platnost označena na\nvýkresech\nb Aktualizovaný TP (datum, podpis) je předán před\nzahájením prací.\nc) Převzetí materiálů - kompletnost a kvalita dle PD –\nzápis přímo na dodacím listu\nd) Certifikáty, atesty a Prohlášení o shodě dle NV\nč.163/2002 Sb a Zák. č.22/1997/Sb.","Záznam o prohlídkách","Přípravář\nMistr\nStavbyvedoucí"]
["Omítky",2,"Podklad","a) Kvalita podkladu\nb) Klimatické podmínky","Vizuální kontrola\nPřeměření\n2 x","a) Podklad je pevný vyzrálý, očištění od prachu, zbavený mastnot. Kabely uchyceny cementovým, sádrovým tmelem. Kovové prvky vystupující nad povrch omítek natřeny antikorozním nátěrem.\nb) Teplota vzduchu a podkladu: min. 5°C.","Záznam o prohlídkách","Mistr\nStavbyvedoucí"]
[null,3,"Příprava pro omítání","a) Zakrytí kcí a zařizovacích\npředmětů\nb) Technologická přestávka","Vizuální kontrola\nPřeměření\n2x","a) Všechny okenní rámy, dveřní zárubně, zařizovací předměty a potrubí jsou zakryty.\nb) Min. 12 hod. pro aplikaci dalšího materiálu.","Záznam o prohlídkách","Mistr\nStavbyvedoucí"]
[null,4,"Úprava podkladu před\nomítáním","a) Sanace podkladu\nb) Betonový podklad\nc) Zděný podklad","Vizuální kontrola\nKaždá stěna","a) Vizuální kontrolou zjištěné mezery, díry ve zdivu nebo výtluky větší než 10mm, je nutné dozdít zdícím materiálem min. 30 dnů před prováděním omítek.\nb) Všechny betonové povrchy, na které bude nanášena omítka musí být napenetrovány, povrch před aplikací penetrace musí být suchý.\nc) U cihel P+D v ostěních a v rozích stěn drážky na bocích cihel vyplnit maltou a to alespoň 5 dnů před omítáním. Cihelný podklad je potřeba před omítáním navlhčit (pod\n10°C se postřik vodou neprovádí).","Záznam o prohlídkách"]
[null,5,"Vyztužení omítky","a) Nalepení výztužného pletiva\nb) Rozměry a umístění výztužného\npletiva","Vizuální kontrola\nKaždá stěna","a) Výztuž se osazuje v místech styku rozdílného podkladního materiálu, v místech vedení instalací při povrchu, diagonálně v rozích otvorů pro okna a dveře. \nb) Výstužná síťka s velikostí ok cca 8x8mm. Výztuž se klade do jádrové omítky pod její povrch (krytí min. 3mm, max. do 1/3 tloušťky omítky), jádrová omítka se provádí ve dvou vrstvách, do první se vmáčkne výztuž a hned se nanese další vrstva Minimální přesah vyztužení přes vyztužované místo je 150mm (minimální šířka vyztužovacího pásku je 300mm), diagonální vyztužení rohů otvorů o rozměrech min. 300mmx200mm.","Záznam o prohlídkách","Mistr\nStavbyvedoucí"]
[null,6,"Osazení výztužných a\nukončovacích lišt","a) Osazení\nb) Napojení omítky a výplní otvorů\n(okna+dveře)","Vizuální kontrola\na) Hrany stěn, ostění, nadpraží,\nparapetů, průvlaků apod.\nb) Kouty ostění a nadpraží u\nvýplní otvorů z vnitřní strany","a) Lišta není promáčknuta ani jinak poškozena, na každou hranu osazena celistvá lišta (výrobní délka lišt max. 3 metry). Delší hrany s nastavením v méně viditelné oblasti nebo dle písemné dohody.\nb) Osazení APU lišt (je-li požadováno)","Záznam o prohlídkách","Mistr\nStavbyvedoucí"]
[null,7,"Dilatační spáry","a) Umístění dilatací\nb) Přímost hran\nc) Osazení dilatačních lišt","V místě dilatační spáry objektu.\nV místě lícování omítky s jiným\nmateriálem (betonem, dřevem\napod.).\nb) Dle ČSN 73 0212-3\nPřímost hran - pomocí 2m latě\n(popř. napnutý provázek), každá\nhrana, do 3m – 5 měření, každý\ndalší 1m - jedno měření navíc.","a) Na stejném místě jako dilatace nosné konstrukce. Lícuje-li omítka s jiným materiálem musí se oddělit spárou min. 5mm širokou a 5mm hlubokou.\nb) Přímost hran - 2mm na 2m dlouhé lati\nc) Dilatační spára provedena celistvou lištou. Delší spáry s nastavením v méně viditelné oblasti nebo dle písemné dohody. Lišta není promáčknuta ani jinak poškozena.","Záznam o prohlídkách","Mistr\nStavbyvedoucí"]
[null,8,"Provedení jádrové\nomítky","a) Tloušťka omítky\nb) Zrání omítky","Vizuální kontrola\nKaždá stěna","a) Pro velice rovné zdivo lze použít omítky se zrnitostí do 1,5mm v tloušťce do 10mm, pro méně rovné zdivo omítky se zrnitostí do 2,5mm v tloušťce od 10 do 20mm. Pro větší tloušťky omítky než 20mm volíme omítky se zrnitostí do 4mm. Nanášení omítky provádíme dle Technického listu výrobce.\nb) Jeden den na každý milimetr tloušťky, nejméně však 14 dní, a to i při minimální tloušťce vrstvy 10mm. Pro zamezení vzniku smršťovacích trhlin vrstvu omítky v prvních dvou dnech udržovat ve vlhkém stavu.","Záznam o prohlídkách","Mistr\nStavbyvedoucí"]
[null,9,"Provedení štukové\nomítky (dle 8)","a) Štukování – nanášení štuku\nb) Úprava naneseného štukového povrchu","Vizuální kontrola\nKaždá stěna","a) Štuková vápenná nebo vápenocementová omítka s velmi jemnou zrnitostí do cca 0,5mm nebo jemnou zrnitostí do cca 1mm. Štuk lze nanášet až po vyschnutí jádrové omítky.\nb) Po mírném zavadnutí se povrch upraví pomocí filcového nebo pěnového hladítka za současného zkrápění vodou nebo máčení hladítka ve vodě.","Záznam o prohlídkách","Mistr\nStavbyvedoucí"]
[null,10,"Dokončená omítka","a) Vzhled povrchu\nb) Rovinnost\nc) Svislost povrchu\nd) Úhel ostění a stěn","Vizuální kontrola\nPřeměření\n3x\nb) Místní rovinnost - 2m lať na podložkách, na každých 25m2 plochy min. 5 kladů latě vrovnoměrně rozmístěných, min. počet kladů na jednu plochu (stěna) je 5.\nc) Svislost – 100mm od podlahy a stropu a 100mm od svislých hran kce geodeticky nebo k vztažné přímce (provázek, laserový paprsek)\nd) Úhel ostění -100mm od hran ve svislém i vodorovném směru, měřit úhelníkem Úhly místností – měřit 100 nad podlahou, pomocí pravoúhlého trojúhelníku 3-4-5 (provázek, ocel. lanko s vyznačenými stejnými díly), odchylku změřit na nejkratším rameni",{"$f":"Q6& \"\" &Q7& \".\n\" &Q8","v":"ČSN 73 0205, ČSN EN 13914-2\na) Povrch omítek nesmí vykazovat puchýře, pecky ani trhliny (kromě vlasových trhlinek vzniklých smrštěním malty). Vrstva omítky musí být pevně spojena s omítaným povrchem.\nb) Místní rovinnost je Dle ČSN EN 13914-2, Tab.1: (Rovinnost omítky závisí na rovinnosti podkladu, pro podkladní beton rovinnosti ±9mm/2m je doporučena třída 3) ±5mm/2m pro rovinnost podkladu ±10mm/2m; (vyšší přesnost rovinnosti omítky lze požadovat pouze při vyšší přesnosti rovinnosti podkladu). \nMístní rovinnost dle ČSN 73 0205, Tab.A.4: Místnosti pro pobyt osob - ±2mm/2m.\nU detailů v okolí dveří, podlahových lišt a dalších obkladových prvků, které by mohly zvýraznit nerovnost omítek je požadována max. odchylka rovinnosti ±2mm/2m. \nMěřeno 2m lať na podložkách, na každých 25m2 plochy min. 5 kladů latě vrovnoměrně rozmístěných, min. počet kladů na jednu plochu (stěna) je 5.\nc) Svislost povrchu - Dle ČSN 73 0205, Tab.A.7: ±10mm do 4m, ±12mm pro 4-8m, ±15mm nad 8m. Měřeno 100mm od podlahy a stropu a 100mm od svislých hran kce geodeticky nebo k vztažné přímce (provázek, laserový paprsek).\nd) Úhel ostění a stěn je Dle ČSN EN 13914-2, Tab.2: ±3mm do vzdálenosti 0,25m od rohu, ±5mm do 0,5m, ±6mm do 1m, ±8mm do 3m. Měřeno 100mm od hran ve svislém i vodorovném směru, měřit úhelníkem. Úhly místností – měřit 100 nad podlahou, pomocí pravoúhlého trojúhelníku 3-4-5 (provázek, ocel. lanko s vyznačenými stejnými díly), odchylku změřit na nejkratším rameni."},"Záznam o prohlídkách","Mistr\nStavbyvedoucí"]
[null,11,"Závěrečná výstupní\nkontrola kvality\ndokončené zakázky,\nnebo ucelené části\nzakázky","a) závěrečná kontrola provedení\nb) kontrola odstranění a vypořádání\nneshod zjištěných v průběhu\nrealizace\nc) kontrola dokladů o kvalitě\nzabudovaných materiálů","Kontrola celého rozsahu zakázky\nP – prohlídka a posouzení stavu\nD – porovnání s PD a TPř, TPo\nN – porovnání s technickými\nnormami\nA – atesty (prohlášení o shodě,\ncertifikáty)","a) revizní zprávy a měřicí protokoly prokazující bezpečnou a spolehlivou funkci zařízení\nb) požadavky PD, TPř, TPo a odstranění neshod, soulad s normovými požadavky a odstranění neshod zjištěných v průběhu realizace\nc) platné doklady o předepsané kvalitě materiálů.","Protokol o výstupní kontrole zakázky nebo pro každou samostatně předávanou část","Stavbyvedoucí"]
["Typ povrchových úprav stěn\n",1,"Příprava před zahájením\nprací","a) Projektová dokumentace\nb) Technologický postup\nc) Kontrola vstupních materiálů\nd) Doložení kvality materiálů","Vizuální kontrola\nKaždý doklad\nKaždá dodávka","a) Odsouhlasena objednatelem; platnost označena na výkresech \nb) Aktualizovaný TP (datum, podpis) je předán před zahájením prací.\nc) Převzetí materiálů - kompletnost a kvalita dle PD – zápis přímo na dodacím listu\nd) Certifikáty, atesty a Prohlášení o shodě dle NV č.163/2002 Sb a Zák. č.22/1997/Sb.","Záznam o kontrole\nkvality, SD","Přípravář\nStavbyvedoucí\nMistr"]
["Keramický obklad",2,"Příprava před zahájením\nprací","a) Klimatické podmínky\nb) Podklad pro obklad\nc) Podklad pro dlažbu","Vizuální kontrola\nPřeměření\nKaždá sekce","a) ČSN 73 3450 čl. 36 Stálá teplota vzduchu nad 5°C.\nb) Podklad je pevný vyzrálý, očištění od prachu, zbavený mastnot; Svislost a rovinnost: max. ±2mm/2m.\nc) ČSN 74 4505: čl. 3.8 - pevnost v tlaku podkladní vrstvy pro keramické dlažby pochůzné 11,5MPa; čl. 3.1 - podklad i obvodové zdivo čisté; instalace dokončeny, prostupy upraveny vhodným způsobem, umožňujícím splnit dilataci od konstrukce, prahová spojka zárubně nevystupuje z plochy podkladu; vodor. a rovinnost ±2mm/2m.","Záznam o kontrole\nkvality","Mistr"]
[null,3,"Provádění obkladů","a) Materiál\nb) Osazení zakončovacích lišt, profilů\nc) Otvory pro ZTI a elektroinstalaci\nd) Spárořez, šířka spár\ne) Vnitřní rohy","Vizuální kontrola\nPřeměření\nKaždá sekce","a) Dle PD + klientské změny\nb) Umístění a typ dle PD.\nc) ČSN 73 3450 včetně Z1 Čl. 66 Šířka spáry mezi obkladačkou a instalačními vývody max. 5mm, u krabic elektroinstalací max. 2mm.\nd) Dle kladeč. plánu, šířka spár 2 ; 3mm dle PD.\ne) Vnitřní rohy ve styku obklad x obklad a obklad x dlažba ( +styk různých materiálů) ošetřeny silikonem v barvě spárovací hmoty.","Záznam o kontrole\nkvality","Mistr"]
[null,4,"Kontrola dokončeného\nobkladu","a) Celkový vzhled\nb) Svislost a rovinnost\nc) Spáry\nd) Přilnavost k podkladu","Vizuální kontrola\nPřeměření\nKaždá sekce","ČSN 73 3450 včetně Z1\na) Čl. 71 Návaznost spár na ostění nebo jiné členění plochy; výrazná kresba a barevnost shodná na všech obkladačkách, čl. 72, odst. b) rohy a kouty vyvážené.\nb) Čl. 72, odst a) 1,5 mm / 2m; jednotlivá obkladačka nesmí vyčnívat z plochy mimo povolenou toleranci tloušťky.\nc) Čl. 72, odst d) Pravidelný a stejnoměrný průběh svislých i vodorovných spár, spáry ladké, rovné, stejně hluboké a široké.\nd) Čl. 72, odst e) nesmí se ozvat dutý zvuk.","Záznam o kontrole\nkvality","Mistr\nStavbyvedoucí"]
[null,5,"Provádění dlažby","a) Materiál\nb) Dilatace\nc) Vodorovnost a rovinnost\nd) Spárořez, šířka spár","Vizuální kontrola\nPřeměření\nKaždá sekce","a) Dle PD + klientské změny\nb) Plynulé přímé pevně osazené nedeformované, typ dle PD.\nc) 2mm/2m.\nd) Dle kladeč. plánu; šířka spár 2 ; 3mm dle PD.","Záznam o kontrole\nkvality","Mistr"]
[null,6,"Kontrola dokončené\ndlažby","a) Celkový vzhled\nb) Vodorovnost a rovinnost\nc) Spáry\nd) Přilnavost k podkladu","Vizuální kontrola\nPřeměření\nKaždá sekce","ČSN 74 4505\na) Jednotná skladba prvků; povrch bez viditelných závad; výrazná kresba a barevnost shodná na všech prvcích (včetně soklu), styk podlahy se stěnou proveden plynule.\nb) 2mm/2m; bez výrazně patrných vystoupení nebo zapuštění jednotlivých prvků mimo povolenou toleranci tloušťky prvku.\nc) Spáry stejnoměrně široké, rovné, přímé a nepropadlé.\nd) Nesmí se ozvat dutý zvuk.","Záznam o kontrole\nkvality","Mistr"]
[null,7,"Závěrečná výstupní\nkontrola kvality\ndokončené zakázky,\nnebo ucelené části\nzakázky","a) závěrečná kontrola provedení\nb) kontrola odstranění avypořádání neshod zjištěných v průběhu realizace\nc) kontrola dokladů o kvalitě zabudovaných materiálů","Kontrola celého rozsahu zakázky\nP – prohlídka a posouzení stavu\nD – porovnání s PD a TPř, TPo\nN – porovnání s technickými\nnormami\nA – atesty (prohlášení o shodě,\ncertifikáty)","a) Odsouhlasena dle PP č.18/VTŘ; platnost označena\nna výkresech\nb) Aktualizovaný TPo Dle PPč.8/VTŘ, čl. 7 předán před\nzahájením prací.\nc) Převzetí materiálů – kompletnost a kvalita dle PD –\nzápis přímo na dodacím listu.\nd) Certifikáty, atesty a Prohlášení o shodě dle\nZákona č. 22/1997 Sb., Nařízení vlády č 163/2002 Sb.\nnebo Nařízení vlády č 190/2002 Sb.","Záznam o prohlídkách\nnebo SD","Přípravář\nStavbyvedoucí\nMistr\n"]
["06_Typ provádění podlah\n",1,"Příprava před zahájením\nprací","a) Projektová dokumentace\nb) Technologický postup\nc) Kontrola vstupních materiálů\nd) Doložení kvality materiálů","Vizuální kontrola\nKaždý doklad\nKaždá dodávka","a) Odsouhlasena objednatelem; platnost označena na výkresech \nb) Aktualizovaný TP (datum, podpis) je předán před zahájením prací.\nc) Převzetí materiálů - kompletnost a kvalita dle PD – zápis přímo na dodacím listu\nd) Certifikáty, atesty a Prohlášení o shodě dle NV č.163/2002 Sb a Zák. č.22/1997/Sb.","Záznam o kontrole\nkvality, SD","Přípravář\nStavbyvedoucí\nMistr"]
["Betonové podlahy",2,"Podkladní vrstvy","a) Podklad\nb) Separace konstrukcí\nc) Rozvody instalací\n","Vizuální kontrola\nPřeměření\nKaždé podlaží nebo sekce","a) Povrch bez zbytků materiálů, včetně skvrn od ropných látek, nezaprášený; okna a zárubně jsou osazeny; provedeny omítky s dokončeným povrchem.\nb) Svislé konstrukce separovány materiálem Mirelon tl. 5mm + plošná separační folie dle TP.\nc) Kompletní, ukotveny.","Záznam o\nprohlídkách","Mistr"]
[null,3,"Betonáž podlah","a) Klimatické podmínky\nb) Betonová mazanina\nc) Úprava povrchu\nd) Tloušťka a vodorovnost čisté podlahy","Vizuální kontrola\nPřeměření\nKaždé podlaží nebo sekce\n","a) Teplota prostředí a povrchu podkladu minimálně +5°C.\nb) Beton dle PD a TP se sítí 4/100-4/100 v místnostech s podlahovým topením beton upraven dle požadavků TP topení.\nc) Dle PD a TP.\nd) Tloušťka jednotlivých podlah dle PD, vodorovnost a rovinnost: 2mm/2m.","Záznam o\nprohlídkách","Mistr"]
[null,4,"Ochrana podlah po dokončení","a) Ochrana před poškozením\nb) Zajištění vysychání","Vizuální kontrola\nKaždé podlaží nebo sekce","a) Po dobu 24 hod. zabezpečeny proti vstupu\nb) Ošetření v souladu s TP.","Záznam o\nprohlídkách","Mistr"]
[null,5,"Kontrola po dokončení podlah","a) Vzhled povrchu\nb) Vodorovnost a rovinnost","Vizuální kontrola Přeměření\nKaždé podlaží nebo sekce",{"$f":"IF(Zadání!D26='Skrytý list se vzorci'!L6,'Skrytý list se vzorci'!O6,IF(Zadání!D26='Skrytý list se vzorci'!L7,'Skrytý list se vzorci'!O7,IF(Zadání!D26='Skrytý list se vzorci'!L8,'Skrytý list se vzorci'!O8)))","v":"a) Vzhled povrchu je bez puklin a výstupků, jednolitý povrch.\nb) Nutno zkontrolovat vodorovnost a rovinnost. Pro místní rovinnost platí přípustná mezní odchylka  ±2mm/2m. Měří se dvoumetrovou latí, která může mít na obou koncích gumové podložky. Jednotlivé klady latě se rozmístí po kontrolované ploše, lať musí být min. 100 mm od hran kontrolované plochy a především tam, kde předpokládáme největší odchylky. Pro vodorovné konstrukce se na každých 100 m2 kontrolované plochy se provede nejméně 5 měření, nejmenší počet kladů latě na ucelené ploše je 5. "},"Záznam o\nprohlídkách","Mistr"]
[null,6,"Závěrečná výstupní kontrola kvality dokončené zakázky, nebo ucelené části zakázky","a) závěrečná kontrola provedení\nb) kontrola odstranění a vypořádání neshod zjištěných v průběhu realizace\nc) kontrola dokladů o kvalitě zabudovaných materiálů","Kontrola celého rozsahu zakázky\nP – prohlídka a posouzení stavu\nD – porovnání s PD a TPř, TPo\nN – porovnání s technickými\nnormami\nA – atesty (prohlášení o shodě,\ncertifikáty)","a) měřicí protokoly\nb) požadavky PD, TPř, TPo a odstranění neshod, soulad s normovými požadavky a odstranění neshod zjištěných v průběhu realizace\nc) platné doklady o předepsané kvalitě materiálů.","Protokol o výstupní kontrole zakázky nebo pro každou samostatně předávanou část","Stavbyvedoucí"]
["Typ provádění podlah\n",1,"Příprava před zahájením\nprací","a) Projektová dokumentace\nb) Technologický postup\nc) Kontrola vstupních materiálů\nd) Doložení kvality materiálů","Vizuální kontrola\nKaždý doklad\nKaždá dodávka","a) Odsouhlasena objednatelem; platnost označena na výkresech \nb) Aktualizovaný TP (datum, podpis) je předán před zahájením prací.\nc) Převzetí materiálů - kompletnost a kvalita dle PD – zápis přímo na dodacím listu\nd) Certifikáty, atesty a Prohlášení o shodě dle NV č.163/2002 Sb a Zák. č.22/1997/Sb.","Záznam o kontrole\nkvality, SD","Přípravář\nStavbyvedoucí\nMistr"]
["Polyuretanové podlahy",2,"Kontrola podkladu","a) Podklad\nb) Klimatické podmínky","Vizuální kontrola\nKontrolní měření\nCelá plocha","a) Stávající konstrukce musí být zbavena všech mechanických nečistot, zametené nečistoty odneseny nebo odveženy na místo skládky stavebního odpadu.\nb) Teplota vzduchu musí být minimálně +5° C a vlhkost minimálně 65%, dále musí být zamezeno průvanu.","Záznam o kontrole\nkvality","Mistr"]
[null,3,"Provádění podlahy","a) oddělovací folie\nb) samonivelační anhydritové stěrky\nc) epoxidový nátěr\nd) polyuretanové lepidlo\ne) základní nátěr\nf) samonivelační hmoty\ng) vrchní nátěr","Vizuální kontrola\nKontrolní měření\nCelá plocha","a) Pásy folie se spojují páskou, folie bude rozvedená po celé ploše podlahy a bude vytažena min. 100mm na stěny lemujících tuto místnost.\nb) Po obvodu místnosti bude zkontrolován pružný pás o tl. 10 mm zabezpečující dilataci. Musí být mezi vrstvami dodrženo min. 24h technologická přestávka, dilatace bude max. 7 x 7 m, kde se vloží pružný pásek. Rovinnost musí být ±2mm na 2m lati, jakmile se ukončí lití stěrky nutno dodržet 4-6 týdenní technologickou přestávku, první 3 dny nutné ošetřovat a zamezit průvanu a po 3 dnech začneme vysušování.\nc) Provést nátěr ze 2 složek jenž je nutné smísit podle podkladů od výrobce.\nd) Zkontrolovat provádění bez přesahu, styk provést samolepícíc spojovací páskou.\ne) Základní nátěr ze 2 základních složek podle podkladů od výrobce.\nf) Zkontrolovat rovinnost ±2mm na 2m lati. Dodržet technologické pauzy.\ng) Vrchní nátěr ze 2 základních složek podle podkladů od výrobce.","Záznam o kontrole\nkvality","Mistr"]
[null,4,"Ochrana podlah po dokončení","a) Ochrana před poškozením\nb) Zajištění vysychání","Vizuální kontrola\nKaždé podlaží nebo sekce","a) Po dobu 24 hod. zabezpečeny proti vstupu\nb) Ošetření v souladu s TP.","Záznam o\nprohlídkách","Mistr"]
[null,5,"Kontrola po dokončení podlah","a) Vzhled povrchu\nb) Vodorovnost a rovinnost","Vizuální kontrola\nPřeměření\nKaždé podlaží nebo sekce",{"$f":"IF(Zadání!D26='Skrytý list se vzorci'!L6,'Skrytý list se vzorci'!O6,IF(Zadání!D26='Skrytý list se vzorci'!L7,'Skrytý list se vzorci'!O7,IF(Zadání!D26='Skrytý list se vzorci'!L8,'Skrytý list se vzorci'!O8)))","v":"a) Vzhled povrchu je bez puklin a výstupků, jednolitý povrch.\nb) Nutno zkontrolovat vodorovnost a rovinnost. Pro místní rovinnost platí přípustná mezní odchylka  ±2mm/2m. Měří se dvoumetrovou latí, která může mít na obou koncích gumové podložky. Jednotlivé klady latě se rozmístí po kontrolované ploše, lať musí být min. 100 mm od hran kontrolované plochy a především tam, kde předpokládáme největší odchylky. Pro vodorovné konstrukce se na každých 100 m2 kontrolované plochy se provede nejméně 5 měření, nejmenší počet kladů latě na ucelené ploše je 5. "},"Záznam o\nprohlídkách","Mistr"]
[null,6,"Závěrečná výstupní kontrola kvality dokončené zakázky, nebo ucelené části zakázky","a) závěrečná kontrola provedení\nb) kontrola odstranění a vypořádání neshod zjištěných v průběhu realizace\nc) kontrola dokladů o kvalitě zabudovaných materiálů","Kontrola celého rozsahu zakázky\nP – prohlídka a posouzení stavu\nD – porovnání s PD a TPř, TPo\nN – porovnání s technickými\nnormami\nA – atesty (prohlášení o shodě,\ncertifikáty)","a) měřicí protokoly\nb) požadavky PD, TPř, TPo a odstranění neshod, soulad s normovými požadavky a odstranění neshod zjištěných v průběhu realizace\nc) platné doklady o předepsané kvalitě materiálů.","Protokol o výstupní kontrole zakázky nebo pro každou samostatně předávanou část","Stavbyvedoucí"]
["07_Typ fasády\n",1,"Příprava před zahájením prací","a) Projektová dokumentace\nb) Technologický postup\nc) Kontrola vstupních materiálů\nd) Doložení kvality materiálů","Vizuální kontrola\nKaždý doklad\nKaždá dodávka","a) Odsouhlasena objednatelem; platnost označena na výkresech\nb) Aktualizovaný TP (datum, podpis) je předán předzahájením prací.\nc) Převzetí materiálů - kompletnost a kvalita dle PD – zápis přímo na dodacím listu\nd) Certifikáty, atesty a Prohlášení o shodě dle NV č.163/2002 Sb a Zák. č.22/1997/Sb.","Záznam o kontrole\nkvality, SD","Přípravář\nStavbyvedoucí\nMistr"]
["Provětrávaná fasáda",2,"Příprava před prováděním prací","a) Zakryté konstrukce\nb) Podklad pro zateplování systém\nc) Klimatické podmínky","Kontrolní měření\nCelá plocha, stěna","a) Před prováděním fasádního systému dokončeny všechny zakryté konstrukce dle PD.\nb) Podklad mechanicky pevný a soudržný bez prachu a mastnoty, prost všech výstupků a výdutí.\nc) Teplota vzduchu min. +5˚C max. +35˚C. Relativní vlhkost max 75%.","Záznam o kontrole\nkvality","Mistr"]
[null,3,"Montáž fasádního systému","Provětrávaná fasáda FRONTECH\na) Montáž Al stěnových kotev a profilů\nb) Tepelná izolace, kotvení \nc) Montáž svislých Al profilů\nd) Fasádní skleněný obklad","Vizuální kontrola\nPřeměření\nCelá plocha, stěna","a) Rozměření dle PD. Ukotvení: dle dílenské dokumentace, ± 10mm, utahovací moment 9-13 Nm\nb) Minerální vlna tl. 140mm, typ talířových hmoždinek (počty na m2 a hloubka kotvení) dle kotevního plánu.\nc) Tolerance Al svislých profilů 2mm/2m.\nd) Zavěšení dle TP, mezi tepelnou izolací a obkladovou deskou větraná mezera o šířce min. 40 mm","Záznam o kontrole\nkvality","Mistr"]
[null,4,"Geometrická přesnost","a) Kontrola rovinnosti\nb) Kontrola svislosti a průběžnosti","Vizuální kontrola\nPřeměření\nKaždá stěna","a) 2mm/2m\nb) Návaznost na osazení výplní otvorů.","Záznam o kontrole\nkvality","Mistr"]
[null,5,"Celková fasáda","a) Technická kontrola\nb) Spárořez desek, barevnost","Vizuální kontrola\nKaždá plocha, celá fasáda","a) Desky neporušeny, provedení bez závad.\nb) Uložení a barevné provedení dle PD.","Záznam o kontrole\nkvality","Mistr"]
[null,6,"Závěrečná výstupní kontrola kvality dokončené zakázky, nebo ucelené části zakázky","a) závěrečná kontrola provedení\nb) kontrola odstranění a vypořádání neshod zjištěných v průběhu realizace\nc) kontrola dokladů o kvalitě zabudovaných materiálů","Kontrola celého rozsahu zakázky\nP – prohlídka a posouzení stavu\nD – porovnání s PD a TPř, TPo\nN – porovnání s technickými normami\nA – atesty (prohlášení o shodě, certifikáty)","a) revizní zprávy a měřicí protokoly prokazující bezpečnou a spolehlivou funkci zařízení\nb) požadavky PD, TPř, TPo a odstranění neshod, soulad s normovými požadavky a odstranění neshod zjištěných v průběhu realizace\nc) platné doklady o předepsané kvalitě materiálů.","Protokol o výstupní kontrole zakázky nebo pro každou samostatně předávanou část","Stavbyvedoucí"]
["Typ fasády\n",1,"Příprava před zahájením prací","a) Projektová dokumentace\nb) Technologický postup\nc) Kontrola vstupních materiálů\nd) Doložení kvality materiálů","Vizuální kontrola\nKaždý doklad\nKaždá dodávka","a) Odsouhlasena objednatelem; platnost označena na výkresech\nb) Aktualizovaný TP (datum, podpis) je předán předzahájením prací.\nc) Převzetí materiálů - kompletnost a kvalita dle PD – zápis přímo na dodacím listu\nd) Certifikáty, atesty a Prohlášení o shodě dle NV č.163/2002 Sb a Zák. č.22/1997/Sb.","Záznam o kontrole\nkvality, SD","Přípravář\nStavbyvedoucí\nMistr"]
["ETICS",2,"Příprava podkladu","a) výskyt nečistot, nesoudržných částic na povrchu\nb) teplota prostředí\nc) kvalita přípravku pro penetraci\nd) účinnost penetrace","Vizuální kontrola\nMěření\nOrientační zkouška održením bloku\nKaždý doklad\nKaždá dodávka","a) Odstranit nesoudržné částice a jiné nečistoty, především mastné\nb) Teploty prostředí vzduchu nesmí být menší než +5°C\nc) Zkontrolovat zda použitý přípravek vykazuje znaky znehodnocení (sraženina na dně nebo přitomnost plísně), přípravek byl nevhodně naředěn\nd) Provést orientační zkoušku održením bloku nalepeného fasádního polystyrenu, nesmí dojít k porušení přídržnosti v penetrovaném podkladu","Záznam o kontrole\nkvality, SD","Mistr"]
[null,3,"Kontrola komponentů systému ETICS","a) Kontrola lhůty použitelnosti komponentů\nb) kontrola izolantu - desky MW\nc) vlastnosti příslušenství soklová lišta\nd) vlastnosti příslušenství","Vizuální kontrola\nMěření\nKaždý doklad\nKaždá dodávka","a) Kompoonent nesmí mít prošlou lhůtu použitelnosti\nb) Kontrola typu desky MW (TR 15 / EN 13 162), deska MW není učena pro fasádní systémy, deska má kolmou orientaci vláken\nc) Kontrola dimenze profilu lišty, hliníková soklová lišta je z plechu tloušťky pod 0,7 mm\nd) Kontrola původu příslušenství, neprokázaný původ (výrobce)","Záznam o kontrole\nkvality, SD","Mistr"]
[null,4,"Lepení desek tepelné izolace","a) Příprava lepící malty\nb) Teplota prostředí\nc) Nanášení lepící malty na izolant\nd) Kontrola místní rovinnosti\ne) Kontrola styčných spár mezi deskami\nf) Kontrola vazby desek\ng) Přiznání konstrukční dilatančních spar\nh) celistvost\ni) doba expozice desek EPS","Vizuální kontrola\nMěření\nKaždý doklad\nKaždá dodávka","a) Kontrola malty zda je připravována v souladu s návodem výrobcem\nb) Teplota prostředí nebo podkladu nesmí být pod +5° C nebo nad +25° C\nc) Malta je nanášena na rub desky a je nanášena po obvodu desky a ve 3 bodech v ose, krytí rubu desky maltou je minimálně 40% plochy\nd) Desky jsou lepeny v souladu s požadavky smlouvy o dílo, doporučená rovinnost +5 mm na 2m\ne) Desky jsou lepeny na těsný sraz, ve styčných sparách mezi deskami je malta\nf) Desky jsou v ploše nebo na nároží lepeny na vazbu, desky na nároží otvorů jsou přesazeny o tloušťku izolantu ostění, ložná nebo styčná spára nenavazuje na náhlou změnu profilu v podkladu\ng) Konstrukční dilatační spára je přiznána v líci ETICS\nh) Zkontrolovat výskyt míst s omezenou tloušťkou nebo porušením celistvosti izolační vrstvy\ni) Desky EPS nebyly vystaveny UV záření na fasádě po dobu delší než 14 dnů","Záznam o kontrole\nkvality, SD","Mistr"]
[null,5,"Kotvení nalepeného izolantu hmoždinkami","a) minimální efektivní hloubka kotvení\nb) kvalita vývrtu pro hmoždinku\nc) spolehlivost mechanických kotvení\nd) spolehlivost kotvení se zapuštěnou montáží hmmoždinky\ne) zapuštění talíře hmoždinky pod líc izolantu\nf) počet hmoždinek v ploše\ng) rozmístění hmoždinek v ploše\nh) kotvící efekt hmoždinky","Vizuální kontrola\nMěření\nKaždý doklad\nKaždá dodávka","a) Hmoždinka má potřebnou délku s ohledem na podklad a skutečné tloušťky izolantu a lepícího lože, je v souladu s PD\nb) Průměr vrtáku nebo režim příklepu pro daný podklad odpovídá požadavku výrobce hmoždinky, hloubka vývrtu je min. o 10 mm hlubší (min. o 25 mm u STR-U), než je délka dříku po zapuštění hmoždinky\nc) Ověření typu hmoždinky a rozpěrného trnu ve vazbě na druh a tloušťku izolantu z MW, rozpěrný trn hmoždinky pro izolant MW je kovový\nd) Izolant má tloušťku min. 100 (80) mm\ne) Talíř hmoždinky je zapuštěn minimálně 2 mm pod vnější líc izolantu\nf) Počet hmoždinek je větší než: 4ks/m2 při kotvení EPS, 6ks/m2 při kotvení MW tl. do 120 mm, 8ks/m2 při kotvení MW tl. nad 120 mm\ng) Zkontrolovat možné odchylky od projektu, nesmí být výrazné odchylky od směrného kotevního plánu výrobce hmoždinky\nh) Hmoždinka není tvarově deformovaná, nepruží při zatlačení ","Záznam o kontrole\nkvality, SD","Mistr"]
[null,6,"Provádění základní vrstvy","a) nerovnosti na styku desek\nb) vyplnění styčných spar\nc) teplota prostředí\nd) příprava malty\ne) výztuž v rozích otvorů\nf) přidavná výztuž\ng) osazení profilů\nh) plošné vyztužení\ni) základní vrstva","Vizuální kontrola\nMěření\nKaždý doklad\nKaždá dodávka","a) Rovinnost ±2 mm na 2m, měřeno 2m latí.\nb) Šířka nevyplněné styčné spáry musí být menší než 1 mm\nc) Teplota prostředí nebo podkladu nesmí být pod +5° C nebo nad +30° C\nd) Malta je připravena v souladu s návodem od výrobce\ne) Diagonální výztuž je uložena do malty, osnova výztuže svíra úhel 45° s osovou celoplošného vyztužení, diagonální výztuž má větší rozměry než 200 x 300 mm\nf) Přídavná výztuž má šířku větší než 300 mm, přesahy min. 150 mm, výztuž je uložena do malty\ng) profily jsou uloženy do malty, profily příslušenství jsou kryty základní vrstvou podle požadavku od výrobce\nh) výztužná tkanina je uložena do malty, je stykována s přesahy 100mm, je dostatečně vypnutá, je celoplošně kryta maltou tl. 1mm\ni) Tloušťka základní vrstvy lokálně dosahuje hodnoty 2mm, střední tloušťka základní vrstvy dosahuje hodnoty 3 mm","Záznam o kontrole\nkvality, SD","Mistr"]
[null,7,"Provádění konečné povrchové úpravy","a) barevnost\nb) teplota\nc) penetrace\nd) struktura omítky","Vizuální kontrola\nMěření\nKaždý doklad\nKaždá dodávka","a) povrchová úprava vykazuje činitel světelné odrazivosti nad 30%\nb) Teplota prostředí nebo podkladu nesmí být pod +5° C nebo nad +25° C\nc) penetrace je systémovým doplňkem vrchní omítkoviny, penetrace pod rýhované struktury je kolorovaná na odstín omítky\nd) struktura omítka je v ploše rovnoměrná, nejsou zde esteticky rušivé předěly na místech pracovních záběrů","Záznam o kontrole\nkvality, SD","Mistr"]
[null,8,"Závěrečná výstupní kontrola kvality dokončené zakázky, nebo ucelené části zakázky","a) závěrečná kontrola provedení\nb) kontrola odstranění a vypořádání neshod zjištěných v průběhu realizace\nc) kontrola dokladů o kvalitě zabudovaných materiálů","Kontrola celého rozsahu zakázky\nP – prohlídka a posouzení stavu\nD – porovnání s PD a TPř, TPo\nN – porovnání s technickými normami\nA – atesty (prohlášení o shodě, certifikáty)","a) revizní zprávy a měřicí protokoly prokazující bezpečnou a spolehlivou funkci zařízení\nb) požadavky PD, TPř, TPo a odstranění neshod, soulad s normovými požadavky a odstranění neshod zjištěných v průběhu realizace\nc) platné doklady o předepsané kvalitě materiálů.","Protokol o výstupní kontrole zakázky nebo pro každou samostatně předávanou část","Stavbyvedoucí"]

{"sheet":"Skrytý list se vzorci 2","index":4,"n_rows":51,"n_cols":62,"rows_kept":51,"cut":false,"hidden":true,"merged":[]}
["Category","Text","Type","Required","Details","Help text","Unique ID","Parent",null,"Category","Text","Type","Required","Details","Help text","Unique ID","Parent",null,"Category","Text","Type","Required","Details","Help text","Unique ID","Parent",null,"Category","Text","Type","Required","Details","Help text","Unique ID","Parent",null,"Category","Text","Type","Required","Details","Help text","Unique ID","Parent",null,"Category","Text","Type","Required","Details","Help text","Unique ID","Parent",null,"Category","Text","Type","Required","Details","Help text","Unique ID","Parent"]
["Header","Hydroizolace - Asfaltové pásy","Heading","No"," "," "," "," ",null,"Header","Nosné konstrukce - Beton","Heading","No","  "," "," "," "," ","Header","Typ střechy - Plochá","Heading","No"," "," "," "," ",null,"Header","Typ výplňového zdiva - Zděnné","Heading","No"," "," "," "," ",null,"Header","Povrchová úprava - Omítka","Heading","No"," "," "," "," ",null,"Header","Podlaha - Betonová mazanina","Heading","No"," "," "," "," ",null,"Header","Fasáda - Provětrávaná","Heading","No"," "," "," "," "]
["Header","Dokumentace","Heading","No"," "," "," "," ",null,"Header","Dokumentace","Heading","No"," "," "," "," ",null,"Header","Dokumentace","Heading","No"," "," "," "," ",null,"Header","Dokumentace","Heading","No"," "," "," "," ",null,"Header","Dokumentace","Heading","No"," "," "," "," ",null,"Header","Dokumentace","Heading","No"," "," "," "," ",null,"Header","Dokumentace","Heading","No"," "," "," "," "]
["Header","Doklady před zahájením prací","List","Yes","Shoda;Neshoda","a) Odsouhlasena dle PP.\nb) Technologický postup schválen před zahájením prací.\nc) Převzetí materiálu - kompletnost a kvalita dle PD - zápis v dodacím listu.\nd) Certifikáty, atesty a prohlášení o shodě dle zákona č. 22/1997 Sb., Nařízení vlády č. 163/2002 Sb. Nebo Nařízení vlády č. 190/2002 Sb. \ne) ČSN 05 705 nebo ČSN EN 13067 - platné svářečské průkazy","1-Doklady před zahájením prací"," ",null,"Header","Doklady před zahájením prací","List","Yes","Shoda;Neshoda","a) Odsouhlasena objednatelem; platnost označena na výkresech.\nb) Aktualizovaný TP )datum, podpis) je předán před zahájením prací.\nc) Převzetí materiálu - kompletnost a kvalita dle PD - zápis v dodacím listu.\nd) Certifikáty, atesty a prohlášení o shodě dle zákona č. 22/1997 Sb., Nařízení vlády č. 163/2002 Sb. Nebo Nařízení vlády č. 190/2002 Sb. ","1-Doklady před zahájením prací"," ",null,"Header","Doklady před zahájením prací","List","Yes","Shoda;Neshoda","a) PD odsouhlasena objednatelem; platnost označena na výkresech.\nb) Technologický postup dle zákona č. 309/2006 Sb.,NV č. 591/2006 Sb.. Aktualizovaný TP (datum, podpis) je předán před zahájením prací.\nc) Převzetí materiálů - kompletnost a kvalita dle PD – zápis přímo na dodacím listu.\nd) Doložení kvality materiálu dle příslušných certifikátů, atestů a Prohlášení o shodě dle Zákona č. 163/2002 Sb.","1-Doklady před zahájením prací"," ",null,"Header","Doklady před zahájením prací","List","Yes","Shoda;Neshoda","a) Odsouhlasena objednatelem; platnost označena na výkresech.\nb) Aktualizovaný TP (datum, podpis) je předán před zahájením prací.\nc) Převzetí materiálů - kompletnost a kvalita dle PD – zápis přímo na dodacím listu.\nd) Certifikáty, atesty a Prohlášení o shodě dle NV č.163/2002 Sb a Zák. č.22/1997/Sb.","1-Doklady před zahájením prací"," ",null,"Header","Doklady před zahájením prací","List","Yes","Shoda;Neshoda","a) Odsouhlasena objednatelem; platnost označena na výkresech.\nb) Aktualizovaný TP (datum, podpis) je předán před zahájením prací.\nc) Převzetí materiálů - kompletnost a kvalita dle PD – zápis přímo na dodacím listu.\nd) Certifikáty, atesty a Prohlášení o shodě dle NV č.163/2002 Sb a Zák. č.22/1997/Sb.","1-Doklady před zahájením prací"," ",null,"Header","Doklady před zahájením prací","List","Yes","Shoda;Neshoda","a) Odsouhlasena objednatelem; platnost označena na výkresech.\nb) Aktualizovaný TP (datum, podpis) je předán před zahájením prací.\nc) Převzetí materiálů - kompletnost a kvalita dle PD – zápis přímo na dodacím listu.\nd) Certifikáty, atesty a Prohlášení o shodě dle NV č.163/2002 Sb a Zák. č.22/1997/Sb.","1-Doklady před zahájením prací"," ",null,"Header","Doklady před zahájením prací","List","Yes","Shoda;Neshoda","a) Odsouhlasena objednatelem; platnost označena na výkresech.\nb) Aktualizovaný TP (datum, podpis) je předán předzahájením prací.\nc) Převzetí materiálů - kompletnost a kvalita dle PD – zápis přímo na dodacím listu.\nd) Certifikáty, atesty a Prohlášení o shodě dle NV č.163/2002 Sb a Zák. č.22/1997/Sb.","1-Doklady před zahájením prací"," "]
["Header","Přípravná fáze","Heading","No"," "," "," "," ",null,"Header","Přípravná fáze","Heading","No"," "," "," ","  ",null,"Header","Přípravná fáze","Heading","No"," "," "," "," ",null,"Header","Přípravná fáze","Heading","No"," "," "," "," ",null,"Header","Přípravná fáze","Heading","No"," "," "," "," ",null,"Header","Přípravná fáze","Heading","No"," "," "," "," ",null,"Header","Přípravná fáze","Heading","No"," "," "," "," "]
["Header","Povětrnostní podmínky, příprava a kontrola izolačních pásů","List","Yes","Ano;Ne","a) Teplota +5°C až 30°C; doporučená relativní vlhkost 60%.\nB) Izolační pásy rozložit před aplikací, aby se vyrovnaly do požadovaného tvaru a aby při jejich instalaci nedocházelo k tvarové deformaci.","1-Povětrnostní podmínky, příprava a kontrola izolačních pásů"," ",null,"Header","Podkladní vrstvy","List","Yes","Ano;Ne","a) Vytyčení dle PD a ČSN 730420.\nb) Vodorovnost montážní roviny max. ± 10mm.","1-Podkladní vrstvy"," ",null,"Header","Podklad","List","Yes","Ano;Ne","a) Rovinnost podkladu max. přípustná odchylka 5mm/2m; Spády - tolerance max. 25% od předepsaného spádu v PD.\nb) Povrch podkladu bez výstupků a zlomů, vyčnívající zrna jsou akceptovatelná do tl. 3 mm, na povrchu nesmí být volné částice, stát voda, sníh, ropné prostředky nebo jiné chemikálie.\nc) Povětrnostní podmínky :Min. teplota + 5o C (max. 35°C), při nižší teplotě zvláštní opatření (temperace folií a pracoviště). Při dešti, sněžení a silném větru práce neprovádět.","1-Podklad"," ",null,"Header","Vstupní materiál a klimatické podmínky","List","Yes","Ano;Ne","a) Soulad s PD a ČSN EN 771-1 – průměrná odchylka rozměrů u všech zkoušených prvků: větší z ±0,4x(jmenovitý rozměr)^1/2mm nebo 3 mm pro třídu T1, větší z ±0,25x(jmenovitý rozměr)^1/2mm nebo 2mm pro třídu T2; max.odchylka rozměrů jednotlivých prvků: ±0,6x(jmenovitý rozměr)^1/2mm pro R1, ±0,3x(jmenovitý rozměr)^1/2mm pro R2.\nb) Cihly jsou celistvé, neporušené, deklarovaná pevnost v tlaku výrobcem dle prohlášení o shodě apod.\nc) Teplota 0°C až +5°C, použití malty s o jeden stupeň vyšší pevností; teplota -5°C až 0°C, použití malty s o jeden stupeň vyšší pevností a přidání příměsí pro zlepšení vlastností malty nebo spočívající v ohřevu malt a jejich komponentů; teplota pod -5°C, zdění zakázáno; přísady malt (voda, písek, předem vyrobené směsi) obsahující částice ledu se nemají používat; teplota malt nesmí klesnout před pokládkou na zdivo pod + 15°C při teplotě zdiva na které se pokládá nižší než 10°C.\nd) Je nutné zabránit provlhnutí cihel, Pro zdění se nesmí použít zmrzlé cihly, tj.cihly, na kterých ulpívá sníh či led.","1-Vstupní materiál a klimatické podmínky"," ",null,"Header","Klimatické podmínky","List","Yes","Ano;Ne","a) Teplota vzduchu a podkladu: min. 5°C.","1-Kvalita podkladu a klimatické podmínky"," ",null,"Header","Podklad a klimatické podmínky","List","Yes","Ano;Ne","a) Podklad - Povrch bez zbytků materiálů, včetně skvrn od ropných látek, nezaprášený; okna a zárubně jsou osazeny; provedeny omítky s dokončeným povrchem.\nb) Svislé konstrukce separovány materiálem Mirelon tl. 5mm + plošná separační folie dle TP.\nc) Rozvody instalací jsou kompletní, ukotveny.\nd) Teplota prostředí a povrchu podkladu minimálně +5°C.","1-Podklad a klimatické podmínky"," ",null,"Header","Podklad a klimatické podmínky","List","Yes","Ano;Ne","a) Před prováděním fasádního systému dokončeny všechny zakryté konstrukce dle PD.\nb) Podklad mechanicky pevný a soudržný bez prachu a mastnoty, prost všech výstupků a výdutí.\nc) Teplota vzduchu min. +5˚C max. +35˚C. Relativní vlhkost max 75%.","1-Podklad a klimatické podmínky"," "]
["Header","Kontrola rovinnosti a spádů","List","Yes","Ano;Ne","a) Místní rovinnost - měří se dvoumetrovou latí, která může mít na obou koncích gumové podložky. Jednotlivé klady latě se rozmístí po kontrolované ploše, lať musí být min. 100 mm od hran kontrolované plochy a především tam, kde předpokládáme největší odchylky. Pro vodorovné konstrukce se na každých 100 m2 kontrolované plochy se provede nejméně 5 měření, nejmenší počet kladů latě na ucelené ploše je 5.  \nMaximální přípustná odchylka místní rovinnosti je ±5mm/2m; spády - tolerance max. 25% od předepsaného spádu v PD.","1-Kontrola rovinnosti a spádů"," ",null,"Header","Kontrola materiálu bednění","List","Yes","Ano;Ne","a) ČSN 73 0210 - 2; Délka, výška tolerance: ± 20mm, odklon od svislice ±6mm; světlý rozměr otvorů ± 12mm. Bez zbytků materiálu a prachu, těsné, prostorově tuhé, proveden ochranný nástřik.","1-Kontrola materiálu bednění"," ",null,"Header","Realizace","Heading","No"," "," "," "," ",null,"Header","Vytyčení","List","Yes","Ano;Ne","Dle PD a ČSN 73 0420-2 \na) Tab.3-vytyčení délky, šířky obvodových stěn ±12mm pro a,b≤25m, ±20mm pro 25<a,b≤40m, ±a,b/2000 pro a,b>40m; bod 5.3.1.6-vytyčení vnitřních nosných stěn-hodnoty z Tab.3 násobené (dílčí rozměr/celkový rozměr)^1/2mm.\nb) Vytyčení - bod 5.3.1.3 výšky bodů na konstrukci ve vzdálenosti d ≤25m ±5mm, 25m<d≤50m ±10mm, d>50m ±15mm; bod 5.3.1.4 konstrukční výška pro 1podlaží ±5mm, nad 1podlažím ±(5+2xpočet podlaží)mm. Vytyčovat je potřeba stěny bez následných povrchových úprav (omítek apod.)!","1-Vytyčení"," ",null,"Header","Kontrola podkladu","List","Yes","Ano;Ne","a) Vizuální kontrolou zjištěné mezery, díry ve zdivu nebo výtluky větší než 10mm, je nutné dozdít zdícím materiálem min. 30 dnů před prováděním omítek. Podklad je pevný vyzrálý, očištění od prachu, zbavený mastnot. Kabely uchyceny cementovým, sádrovým tmelem. Kovové prvky vystupující nad povrch omítek natřeny antikorozním nátěrem.\nb) Všechny betonové povrchy, na které bude nanášena omítka musí být napenetrovány, povrch před aplikací penetrace musí být suchý.\nc) U cihel P+D v ostěních a v rozích stěn drážky na bocích cihel vyplnit maltou a to alespoň 5 dnů před omítáním. Cihelný podklad je potřeba před omítáním navlhčit (pod 10°C se postřik vodou neprovádí).","1-Kontrola podkladu"," ",null,"Header","Realizace","Heading","No"," "," "," "," ",null,"Header","Realizace","Heading","No"," "," "," "," "]
["Header","Kvalita podkladů","List","Yes","Ano;Ne","a) Dostatečná tvarová pevnost a stálost, bez volných částí. Nerovnosti - poměr vzdálenosti k výšce sousední nerovnosti 1/20, max. 20 mm na 100 mm základny. Zaoblení hran rmin=200 mm  ","1-Kvalita podkladů"," ",null,"Header","Kontrola materiálu výztuže a chráničky","List","Yes","Ano;Ne","a) Materiál, DN a osazení dle PD. Nutné zkontrolovat dodací list, hutní atest a shoda údajů v dodacím listu s údaji v PD. Kontrola množství, kvality, znečištění, označení výztuže a požadovaného naohýbání. \nb) Skladování na pevné odvodněné ploše na dřevěných prokladech tak, aby nedošlo k poškození.","1-Kontrola materiálu výztuže a chráničky"," ",null,"Header","Provádění pasů a klempířských prací","List","Yes","Ano;Ne","a) Čelní a boční přesahy min. 80mm; čelní pásy provedeny na vazbu; boční přesahy vystřídány o 1/2 šířky pásu; plnoplošně nataveno.\nb) Kouty, hrany, prostupy a detaily jsou provedeny dle PD a TP výrobce živičných pasů.\nc) Klempířské práce jsou v souladu s ČSN 73 3610. Použité plechy ve shodě s PD.","1-Provádění pasů a klempířských prací"," ",null,"Header","Založení","List","Yes","Ano;Ne","Dle ČSN EN 1996-2\na) Podklad zdi musí být vodorovný,  odchylky ve výšce základů či v povrchu stropní konstrukce musí být vyrovnány. Pásy případné izolace proti vlhkosti musí být nejméně o 150mm širší než bude tloušťka stěny. Pro zdění první vrstvy vnějších i vnitřních stěn použít vápenocementovou maltu. Osadit krajní cihly podle vytyčených značek. Průběžná kontrola rovinnosti pomocí šňůry natažené mezi krajní cihly z vnějšího líce.","1-Založení"," ",null,"Header","Příprava před zahájením prací","List","Yes","Ano;Ne","a) Všechny okenní rámy, dveřní zárubně, zařizovací předměty a potrubí jsou zakryty.\nb) Technologická přestávka min. 12 hod. pro aplikaci dalšího materiálu.","1-Příprava před zahájením prací"," ",null,"Header","Kontrola při betonáži","List","Yes","Ano;Ne","b) Beton dle PD a TP se sítí 4/100-4/100 v místnostech s podlahovým topením beton upraven dle požadavků TP topení.\nc) Úprava povrchu je dle PD a TP.\nd) Tloušťka jednotlivých podlah dle PD.\ne) Po betonáži po dobu 24 hod. zabezpečeny proti vstupu do místnosti.\nf) Zajištěno proti vyschání - Ošetření v souladu s TP.","1-Kontrola při betonáži"," ",null,"Header","Kontrola při montáži","List","Yes","Ano;Ne","a) Montáž kotev a profilů - Rozměření dle PD. Ukotvení: dle dílenské dokumentace, ± 10mm, utahovací moment 9-13 Nm.\nb) Minerální vlna tl. 140mm, typ talířových hmoždinek (počty na m2 a hloubka kotvení) dle kotevního plánu.\nc) Montáž svislých profilů - tolerance Al svislých profilů 2mm/2m.\nd) Skleněný obklad - Zavěšení dle TP, mezi tepelnou izolací a obkladovou deskou větraná mezera o šířce min. 40 mm.","1-Kontrola při montáži"," "]
["Header","Prostupy konstrukcemi","List","Yes","Ano;Ne","a) Maximální přípustná odchylka vzdálenosti polohy prostupů od PD je ±25 mm.\nB) Maximální přípustná odchylka světlého rozměru pravoúhlého otvoru ±25 mm, kulatého otvoru ±10 mm od průměru.","1-Prostupy konstrukcemi"," ",null,"Header","Kontrola materiálu beton","List","Yes","Ano;Ne",{"$f":"'Skrytý list se vzorci'!Q19","v":"a) Druh betonu C 25/30 - XC3  - Cl 0,4  - Dmax 22  - S4 - Certifikát betonárky, kvalita směsi dle  ČSN EN 13 670-1 ověření vyrobené betonové směsi krychelnými zkouškami. \nb) Pro konzistenci bude provedena zkouška sednutí kužele, která se provede ze vzorku směsi po vyprázdnění cca 0,3 m3 betonové směsi z autodomíchávače. Na rovnou plochu se položí podkladní deska, která se navlhčí a uložen íse na ni forma tvaru kužele, tato forma se plní po třetinách, každá vrstva se hutní 25 vpichy tyčí, druhá a třetí vrstva se hutní tak, aby vpichy zasahovali mírně do předchozí vrstvy. Po zarovnání se forma pomalým pohybem odstraní a ihned se změří rozdíl mezi formou a betonovým kuželem. Pro stupeň konzistence S4, ve které se dodává, musí být sednutí 160 - 210 mm. Zkoušku provést na vzorku z každé dodávky směsi.\nPro laboratorní zkoušky pevnosti betonu a průsaku tlakovou vodou bude odebrán beton na zkušební tělesa 150 x 150 mm\\."},"1-Kontrola materiálu beton","  ",null,"Header","Výstupní kontrola","Heading","No"," "," "," "," ",null,"Header","Příprava před zahájením","List","Yes","Ano;Ne","ČSN EN 1996-2, ČSN 73 0205\na) Zdící prvky nejsou poškozeny, skladová plocha rovná a odvodněná. Dle TP pro cihly broušené. Povrch bez prachu a ropných látek, dostatečně provlhčený. Dle TP výrobce zdícího materiálu. U cihel broušených dbát zvýšené pozornosti výškovému založení, rovinnosti.\nb) Chráněny před deštěm, sněhem a zmrznutím. Teplota skladování musí být o jeden stupeň vyšší, než je v PD; min. + 15°C. Teplota podkladu musí být min. + 10°C. Zdění možno provádět do - 5°C.","1-Příprava před zahájením"," ",null,"Header","Realizace","Heading","No"," "," "," "," ",null,"Header","Výstupní kontrola","Heading","No"," "," "," "," ",null,"Header","Výstupní kontrola","Heading","No"," "," "," "," "]
["Header","Realizace","Heading","No"," "," "," "," ",null,"Header","Realizace","Heading","No"," "," "," "," ",null,"Header","Kontrola provedení","List","Yes","Ano;Ne","Živičné modifikované pasy: \na) Vizuální kontrola – výronek 5 - 15mm v celé délce sváru. \nb) Mechanická kontrola - izolatérskou lžící (nesmí proniknout do sváru). Provedení ve shodě s PD a TP, vč. detailů; povrch není porušen; přitavení plnoplošné, bez vln a výdutí.\n\nmPVC folie: \na) Vizuální kontrola – sváry neshrnuté, nespálené, na svislých prostupech mechanické stažení páskou + podtmelení.\nb) Mechanická kontrola – jehlou, jehla nesmí vniknout do sváru. Odlupovací zkouška – před každým začátkem prací a při výrazné změně teploty ( k přetržení musí dojít mimo svár). Provedení ve shodě s PD a TP, vč. detailů; povrch není porušen. Zátopová zkouška (po dobu 48 hod – nezjištěny průsaky)","1-Kontrola provedení"," ",null,"Header","Realizace","Heading","No"," "," "," "," ",null,"Header","Kontrola vyztužení omítky","List","Yes","Ano;Ne","a) Výztuž se osazuje v místech styku rozdílného podkladního materiálu, v místech vedení instalací při povrchu, diagonálně v rozích otvorů pro okna a dveře. \nb) Výstužná síťka s velikostí ok cca 8x8mm. Výztuž se klade do jádrové omítky pod její povrch (krytí min. 3mm, max. do 1/3 tloušťky omítky), jádrová omítka se provádí ve dvou vrstvách, do první se vmáčkne výztuž a hned se nanese další vrstva Minimální přesah vyztužení přes vyztužované místo je 150mm (minimální šířka vyztužovacího pásku je 300mm), diagonální vyztužení rohů otvorů o rozměrech min. 300mmx200mm.\nc) Lišta není promáčknuta ani jinak poškozena, na každou hranu osazena celistvá lišta (výrobní délka lišt max. 3 metry). Delší hrany s nastavením v méně viditelné oblasti nebo dle písemné dohody.\nd) Osazení APU lišt (je-li požadováno).","1-Kontrola vyztužení omítky"," ",null,"Header","Kontrola po dokončení podlah","List","Yes","Ano;Ne",{"$f":"IF(Zadání!D26='Skrytý list se vzorci'!L6,'Skrytý list se vzorci'!O6,IF(Zadání!D26='Skrytý list se vzorci'!L7,'Skrytý list se vzorci'!O7,IF(Zadání!D26='Skrytý list se vzorci'!L8,'Skrytý list se vzorci'!O8)))","v":"a) Vzhled povrchu je bez puklin a výstupků, jednolitý povrch.\nb) Nutno zkontrolovat vodorovnost a rovinnost. Pro místní rovinnost platí přípustná mezní odchylka  ±2mm/2m. Měří se dvoumetrovou latí, která může mít na obou koncích gumové podložky. Jednotlivé klady latě se rozmístí po kontrolované ploše, lať musí být min. 100 mm od hran kontrolované plochy a především tam, kde předpokládáme největší odchylky. Pro vodorovné konstrukce se na každých 100 m2 kontrolované plochy se provede nejméně 5 měření, nejmenší počet kladů latě na ucelené ploše je 5. "},"1-Kontrola po dokončení podlah"," ",null,"Header","Geometrické tolerance","List","Yes","Ano;Ne","a) Kontrola místní rovinnosti ±2mm/2m.\nb) Kontrola svislosti a průběžnosti zajistit návaznost na osazení výplní otvorů.\nc) Technická kontrola - desky jsou neporušeny, provedení bez závad.\nd) Spárořez a barevnost - Uložení a barevné provedení dle PD.","1-Geometrické tolerance"," "]
["Header","Příprava podkladu, ochranné vrstvy a provedení hran, koutů, prostupů a detailů","List","Yes","Ano;Ne","a) Penetrační nátěr - druh materiálu dle PD, proveden na všech betonových plochách.\nb) Hrany, kouty, prostupy a detaily jsou provedeny dle technologického postupu.\nc) Ochranná geotextílie - materiál v g/m2 dle PD.","1-Příprava podkladu, ochranné vrstvy a provedení hran, koutů, prostupů a detailů"," ",null,"Header","Bednění","List","Yes","Ano;Ne","a) Poloha bednění s max. odchylkou ± 15 mm, kontrola stabilita bednění, celistvost, utěsněnost a také opatření odbedňovacím přípravkem.","1-Bednění"," ",null,"Body","Komentář - Plochá střecha","Text","No"," "," "," "," ",null,"Header","Zdění","List","Yes","Ano;Ne","a) Minimální převázání cihel o 1/4 výšky zdícího prvku (při výšce zdiva 238mm to je 95mm).\nb) Vynechání kapsy v každé druhé řadě, kapsa se před provázáním stěn celá promaltuje. Stěnové spony případně výztuž jsou vloženy do každé druhé ložné spáry.\nc) Podmaltování po celé ploše a stejné šířce jako tloušťka stěny, zejména nutné u nosných stěn. Tloušťka spáry zhruba 12mm (optimálně mezi 9-12mm). Styčné spáry se nemaltují, zdící prvky se skládají na sraz P+D. \nd) Mezera 1-2cm, vyplnění stlačitelnou hmotou - montážní pěnou (vatou při akustických požadavcích) – pro nenosné stěny.","1-Zdění"," ",null,"Header","Kontrola dilatačních spar","List","Yes","Ano;Ne","a) Kontrola umístění dilatace - na stejném místě jako dilatace nosné konstrukce. Lícuje-li omítka s jiným materiálem musí se oddělit spárou min. 5mm širokou a 5mm hlubokou.\nb) Přímost hran - ±2mm na 2m dlouhé lati. (popř. napnutý provázek), každá hrana, do 3m – 5 měření, každý další 1m - jedno měření navíc. Dle ČSN 73 0212-3.\nc) Dilatační spára provedena celistvou lištou. Delší spáry s nastavením v méně viditelné oblasti nebo dle písemné dohody. Lišta není promáčknuta ani jinak poškozena.","1-Kontrola dilatačních spar"," ",null,"Header","Kontrola provedení prací","List","Yes","Ano;Ne","a) Revizní zprávy a měřicí protokoly prokazující bezpečnou a spolehlivou funkci zařízení.\nb) Požadavky PD, TPř a odstranění neshod.\nc) Soulad s normovými požadavky a odstranění neshod zjištěných v průběhu realizace.\nd) Platné doklady o předepsané kvalitě materiálů.","1-Kontrola provedení prací"," ",null,"Header","Kontrola provedení prací","List","Yes","Ano;Ne","a) Revizní zprávy a měřicí protokoly prokazující bezpečnou a spolehlivou funkci zařízení.\nb) Požadavky PD, TPř a odstranění neshod.\nc) Soulad s normovými požadavky a odstranění neshod zjištěných v průběhu realizace.\nd) Platné doklady o předepsané kvalitě materiálů.","1-Kontrola provedení prací"," "]
["Header","Kladení a spojování pasů","List","Yes","Ano;Ne","a) Materiál první i druhé vrstvy dle PD. Podélný přesah je min. 100 mm, příčný přesah je min. 100 mm. Čelní pásy jsou provedeny na vazbu, ve všech vrstvách je shodný směr kladení od nejnižšího místa k vyššímu, tak aby přesahy nebyly proti spádu. Boční přesahy jsou vystřídany min. o 300 mm, nesmí docházet ke křížové važbě +. ","1-Kladení a spojování pasů"," ",null,"Header","Výztuž","List","Yes","Ano;Ne","a) Betonářská ocel B500B. Shoda s PD statiky. Max. odchylka polohy osy výztuže, vzdálenosti výztuže nebo posunu: ± 30mm. \nb) Dilatační podložky dle PD a TP. Krytí výztuže: Dle ČSN 73 12 01.","1-Výztuž"," ",null,null,null,null,null,null,null,null," ",null,"Header","Průběžná kontrola","List","Yes","Ano;Ne","Dle ČSN EN 1996-2\na) Každá vrstva stejně vysoká a v rovině, vyrovnání geometrických odchylek výšek jednotlivých zdících prvků; při zdění jedné stěny nelze kombinovat zdící prvky různých typů a pevností. Měřit pomocí latě.\nb) Svislost zdiva dle Tab.3.1 odchylka od svislosti na celou výšku stěny v jednom podlaží ±20mm. Měřit pomocí vodováhy či olovnice.\nc) Rovinnost zdiva dle Tab.3.1 rovinnost ±10mm/1m, max. ±50mm/10m. Měřit pomocí 2m latě nebo zednické šnůry.\nd) Průběžnost ložné spáry, tloušťka by měla být v celé své délce a šířce zhruba stejná.","1-Průběžná kontrola"," ",null,"Header","Kontrola omítky","List","Yes","Ano;Ne","a) Pro velice rovné zdivo lze použít omítky se zrnitostí do 1,5mm v tloušťce do 10mm, pro méně rovné zdivo omítky se zrnitostí do 2,5mm v tloušťce od 10 do 20mm. Pro větší tloušťky omítky než 20mm volíme omítky se zrnitostí do 4mm. Nanášení omítky provádíme dle Technického listu výrobce.\nb) Štuková vápenná nebo vápenocementová omítka s velmi jemnou zrnitostí do cca 0,5mm nebo jemnou zrnitostí do cca 1mm. Štuk lze nanášet až po vyschnutí jádrové omítky.\nc) Jeden den na každý milimetr tloušťky, nejméně však 14 dní, a to i při minimální tloušťce vrstvy 10mm. Pro zamezení vzniku smršťovacích trhlin vrstvu omítky v prvních dvou dnech udržovat ve vlhkém stavu.\n","1-Kontrola omítky"," ",null,"Body","Komentář - Betonová mazanina","Text","No"," "," "," "," ",null,"Body","Komentář - Provětrávaná fasáda","Text","No"," "," "," "," "]
["Header","Výstupní kontrola","Heading","No"," "," "," "," "," ","Header","Betonování","List","Yes","Ano;Ne","a) Betonáž je prováděna v souladu TP. Teplota betonu min. +10°C, teplota povrchu min. +5°C. \nb) Rovnoměrné a nepřerušované s vibrováním. Povrch pod stěrky; viditelné hrany skosené.","1-Betonování"," ",null,"Header","Typ střechy - Šikmá","Heading","No"," "," "," "," ",null,"Header","Otvory","List","Yes","Ano;Ne","a) Dle PD, menší rozměr - nutno oříznout, větší rozměr nutno tuze vyplnit.\nb) Světlé rozměry musí uvažovat max. přípustné geometrické tolerance hrubého otvoru (včetně rovinnosti), navrženou šířku připojovací spáry a geometrické tolerance výrobku.\nc) Polohové a výškové umístění hran, rozměr otvoru tolerance rozměrů dle TNI 74 6077: Tab.1 ±12mm do 3m, ±16mm nad 3m do 6m.\nd) Pravoúhlost otvoru dle TNI 74 6077: Bod 3.3.1.3. – 6mm do 1m, 8mm 1-3m, 12mm 3-6m.\ne) Rovinnost ostění Dle ČSN EN 1996-2, Tab.3.1 ±10mm/1m, max.±50mm/10m.","1-Otvory"," ",null,"Header","Výstupní kontrola","Heading","No"," "," "," "," ",null,null,null,null,null,null,null,null," ",null,null,null,null,null,null,null,null," "]
["Header","Kontrola svárů a technická prohlídka","List","Yes","Ano;Ne","a) Sváry pásů - tl. výronku min. 5 mm v celé délce sváru, nesmí být upraveny stěrkou. Sváry koutů, hran, prostupů a detailů - upraveny stěrkou, nesmí být odkryta výztužná vložka. Mechanická - izolatérskou lžící (nesmí proniknout do sváru). \nb) Provedení ve shodě s PD a TP, vč. detailů; povrch není porušen; přitavení pásů plnoplošné, bez vln a výdutí - kontrola poklepem diagnostickou koulí (změna zvuku odezvy - dutý zvuk -> pás není plnoplošně nataven!).","1-Kontrola svárů a technická prohlídka"," ",null,"Header","Výstupní kontrola","Heading","No"," "," "," "," ",null,"Header","Dokumentace","Heading","No"," "," "," "," ",null,"Header","Zárubně","List","Yes","Ano;Ne","a) Ocelové zárubně: \nRozměry měřit 100mm od rohů a uprostřed rozpětí. Zárubně při zdění vyrovnat pomocí klínů, zafixovat šikmými latěmi, stojky rozepřít, v příčce upevnit maltou nebo montážní pěnou. Dle PD a ČSN 73 3130 Tab.2. Odchylka ve zkřížení je 1,5mm pro jednokřídlové; 2,5mm pro dvoukřídlové. Odchylka od pravého úhlu je 1,5mm pro jednokřídlové; 2,0mm pro dvoukřídlové. Výška zárubně od úrovně podlahy je -0mm / +10mm. Prohnutí stojky zárubně je maximálně 1,5mm.\n\nb) Obložkové zárubně: \nRozměry měřit 100mm od rohů a uprostřed rozpětí. Dle PD. Světlé rozměry otvoru dle jmenovitý otvor dveří + 2x50mm pro šířku a 1x50mm pro výšku +tolerance rozměrů ±12mm + rovinnost 10mm/1m. Poloha a rozměry otvoru přípustná tolerance rozměrů ±12mm pro rozměr do 3m. Rovinnost ostění dle ČSN EN 1996-2, Tab.3.1 ±10mm/1m, max.±50mm/10m menší rozměr - nutno oříznout, větší rozměr nutno tuze vyplnit.","1-Zárubně"," ",null,"Header","Kontrola dokončené omítky","List","Yes","Ano;Ne",{"$f":"'Skrytý list se vzorci'!Q9","v":"ČSN 73 0205, ČSN EN 13914-2\na) Povrch omítek nesmí vykazovat puchýře, pecky ani trhliny (kromě vlasových trhlinek vzniklých smrštěním malty). Vrstva omítky musí být pevně spojena s omítaným povrchem.\nb) Místní rovinnost je Dle ČSN EN 13914-2, Tab.1: (Rovinnost omítky závisí na rovinnosti podkladu, pro podkladní beton rovinnosti ±9mm/2m je doporučena třída 3) ±5mm/2m pro rovinnost podkladu ±10mm/2m; (vyšší přesnost rovinnosti omítky lze požadovat pouze při vyšší přesnosti rovinnosti podkladu). \nMístní rovinnost dle ČSN 73 0205, Tab.A.4: Místnosti pro pobyt osob - ±2mm/2m.\nU detailů v okolí dveří, podlahových lišt a dalších obkladových prvků, které by mohly zvýraznit nerovnost omítek je požadována max. odchylka rovinnosti ±2mm/2m. \nMěřeno 2m lať na podložkách, na každých 25m2 plochy min. 5 kladů latě vrovnoměrně rozmístěných, min. počet kladů na jednu plochu (stěna) je 5.\nc) Svislost povrchu - Dle ČSN 73 0205, Tab.A.7: ±10mm do 4m, ±12mm pro 4-8m, ±15mm nad 8m. Měřeno 100mm od podlahy a stropu a 100mm od svislých hran kce geodeticky nebo k vztažné přímce (provázek, laserový paprsek).\nd) Úhel ostění a stěn je Dle ČSN EN 13914-2, Tab.2: ±3mm do vzdálenosti 0,25m od rohu, ±5mm do 0,5m, ±6mm do 1m, ±8mm do 3m. Měřeno 100mm od hran ve svislém i vodorovném směru, měřit úhelníkem. Úhly místností – měřit 100 nad podlahou, pomocí pravoúhlého trojúhelníku 3-4-5 (provázek, ocel. lanko s vyznačenými stejnými díly), odchylku změřit na nejkratším rameni."},"1-Kontrola dokončené omítky"," ",null,"Header","Podlaha - PUR podlaha","Heading","No"," "," "," "," ",null,"Header","Fasáda - ETICS","Heading","No"," "," "," "," "]
["Header","Závěrečná výstupní kontrola kvality dokončené zakázky","List","Yes","Ano;Ne","a) Revizní zprávy a měřící protokoly prokazující bezpečnou a spolehlivou funkci zařízení. \nb) Požadavky PD, TPř, Tpo a odstranění neshod, soulas s normovými požadavky a odstranění neshod zjištěných v průběhu realizace. \nc) Platné doklady o předepsané kvalitě materiálů.","1-Závěrečná výstupní kontrola kvality dokončené zakázky"," ",null,"Header","Technická prohlídka a zkoušky","List","Yes","Ano;Ne","ČSN 73 0210-2\na) Kontrola vzhledu povrchu - bez hnízd, trhlin a výstupků, pukliny max. do 5% plochy, stejnorodý povrch. \nb) Kontrola celkových rozměrů a polohy dle Tab. A.1.1 max. přípustná odchylka je ±25mm. \nc) Kontrola průřezů konstrukcí dle Tab. A.1.2 – stěny do 0,5m je max. přípustná odchylka ±8mm; sloupy do 0,5m je max. přípustná odchylka ±5mm. \nd) Mezní odchylka pro svislost je dle Tab. A.3.1 – pro stěny do 2,5mm platí max. přípustná odchylka ±5mm; pro sloupy do 2,5m platí max. přípustná odchylka ±4mm.\ne) Pro místní rovinnost platí přípustná tolerance dle Tab. A.2.2 – pro stěny 6mm/2m. Měří se dvoumetrovou latí, která může mít na obou koncích gumové podložky. Jednotlivé klady latě se rozmístí po kontrolované ploše, lať musí být min. 100 mm od hran kontrolované plochy a především tam, kde předpokládáme největší odchylky. Pro vodorovné konstrukce se na každých 100 m2 kontrolované plochy se provede nejméně 5 měření. Pro svislé konstrukce se na každých 25 m2 kontrolované plochy provede nejméně 5 měření, nejmenší počet kladů latě na ucelené ploše je 5.\nf) Pevnost betonu se měří po 28 dnech k datu betonáže. Zkouška se provádí na krychli, válci nebo vhodném kusu zlomeného trámce, někdy na jádrových vývrtech. Vždy se zkouší minimálně tři tělesa. Před vlastní zkouškou se ověří geometrie zkušebního tělesa. Vzorky, které se nestandardně poruší, se ze zkoušky vyloučí - předpokládá se u nich nějaká chyba.","1-Technická prohlídka a zkoušky"," ",null,"Header","Doklady před zahájením prací","List","Yes","Shoda;Neshoda","a) Kontroluje se úplnost a rozsah dokumentace podle vyhl. 499/2006Sb. a ČSN EN 1090-2+A1. \nb) Kontroluje se shoda výrobní dokumentace s objednávkou dle PD.","2-Doklady před zahájením prací"," ",null,"Header","Výstupní kontrola","Heading","No"," "," "," "," ",null,"Header","Kontrola provedení prací","List","Yes","Ano;Ne","a) Revizní zprávy a měřicí protokoly prokazující bezpečnou a spolehlivou funkci zařízení.\nb) Požadavky PD, TPř a odstranění neshod.\nc) Soulad s normovými požadavky a odstranění neshod zjištěných v průběhu realizace.\nd) Platné doklady o předepsané kvalitě materiálů.","1-Kontrola provedení prací"," ",null,"Header","Dokumentace","Heading","No"," "," "," "," ",null,"Header","Dokumentace","Heading","No"," "," "," "," "]
["Body","Komentář - Asfaltové pásy","Text","No"," "," "," "," ",null,"Header","Geodetické zaměření tvarů a rozměrů","List","Yes","Ano;Ne","ČSN 73 0210 – 1 tab. A2, A3\na) Rozměry dle skutečnosti. Délka, výška tolerance ±10 mm, odklon od svislice tolerance ±5 mm.","1-Geodetické zaměření tvarů a rozměrů"," ",null,"Header","Přípravná fáze","Heading","No"," "," "," "," ",null,"Header","Geometrické tolerance","List","Yes","Ano;Ne","Dle PD, ČSN 73 0205 a ČSN EN 1996-2\na) Vzdálenost protilehlých konstrukcí dle ČSN 73 0205, Tab.A.2 (místnosti pro pobyt osob)  – délka, šířka (hloubka) ±15mm pro L≤4m, ±20mm pro 4<L≤8m, ±25mm pro 8<L≤16m, ±30mm pro 16m<L, (ostatní místnosti Δ±5mm); výška ±20mm pro L≤4m, ±25mm pro 4<L≤8m, ±30mm pro 8<L≤16m. Šířka, délka -100mm od podlahy a hran kce popř. i 100mm pod stropem a uprostřed výšky místnosti; výška – 100mm od obou stěn, popř. uprostřed délky a šířky místnosti; měřit pomocí laserového dálkoměru nebo svinovacího pásma. \nb) Odklon od svislice dle ČSN EN 1996-2, Tab.3.1 ±20mm v jednom podlaží, ±50mm na výšku budovy o 3 a více podlaží. Měřit 100m pod stropem a 100mm nad podlahou. Svislost – 100mm od podlahy a stropu a 100mm od svislých hran kce geodeticky nebo k vztaž. přímce (provázek).\nc) Souosost stěn nad sebou dle ČSN EN 1996-2, Tab.3.1 ±20mm. Souosost měřit 100m pod stropem a 100mm nad podlahou.\nd) Místní rovinnost dle ČSN EN 1996-2, Tab.3.1 ±10mm/1m, max. ±50mm/10m. Místní rovinnost měřit 2m laťí na podložkách, na každých 25m2 plochy min. 5 kladů latě rovnoměrně rozmístěných, min.počet kladů na jednu plochu (stěna) je 5;\ne) Celková rovinnost – měřit v čtverc. síti o hraně max.3m odsazené 100m od hran kce geodeticky nebo k vztažné přímce (provázek), odchylky vyjádřit vzhledem k přímce mezi horním a dolním bodem čtverc. Sítě.\nf) Úhel mezi stěnami dle ČSN 73 0205, Tab.A.7 ±5mm pro L≤4m, ±8mm pro 4<L≤8m, ±10mm pro 8<L≤16m, ±12mm pro 16m<L. Úhly měřit 100mm od rohů stěn a 100mm pod stropem a nad podlahou příp. uprostřed.\ng) Tloušťka stěny dle ČSN EN 1996-2, Tab.3.1 větší z ±5mm nebo ±5% projektované tloušťky jednovrstvé stěny (u tloušťky rovné délce nebo šířce jednoho zdicího prvku Δ podle zdícího prvku), ±10mm pro vrstvenou dutinovou stěnu. Min.3x - délka kce do 6m, min. 4x u konstrukce nad 6m, první a poslední 100mm od krajů kce, zbytek mezi.\n","1-Geometrické tolerance"," ",null,"Body","Komentář - Omítka","Text","No"," "," "," "," ",null,"Header","Doklady před zahájením prací","List","Yes","Shoda;Neshoda","a) Odsouhlasena objednatelem; platnost označena na výkresech.\nb) Aktualizovaný TP (datum, podpis) je předán před zahájením prací.\nc) Převzetí materiálů - kompletnost a kvalita dle PD – zápis přímo na dodacím listu.\nd) Certifikáty, atesty a Prohlášení o shodě dle NV č.163/2002 Sb a Zák. č.22/1997/Sb.","2-Doklady před zahájením prací"," ",null,"Header","Doklady před zahájením prací","List","Yes","Shoda;Neshoda","a) Odsouhlasena objednatelem; platnost označena na výkresech.\nb) Aktualizovaný TP (datum, podpis) je předán předzahájením prací.\nc) Převzetí materiálů - kompletnost a kvalita dle PD – zápis přímo na dodacím listu.\nd) Certifikáty, atesty a Prohlášení o shodě dle NV č.163/2002 Sb a Zák. č.22/1997/Sb.","2-Doklady před zahájením prací"," "]
[null,null,null,null,null,null,null," ",null,"Header","Kontrola provedení prací","List","Yes","Ano;Ne","a) Měřicí protokoly prokazující bezpečnou a spolehlivou funkci zařízení. \nb) Požadavky PD, TPř, TPo a odstranění neshod, soulad s normovými požadavky a odstranění neshod zjištěných v průběhu realizace. \nc) Platné doklady o předepsané kvalitě materiálů.","1-Kontrola provedení prací"," ",null,"Header","Kontrola podkladu","List","Yes","Ano;Ne","a) Zkontrolovat hlavně strop, štítové stěny provedení věnce a atiku - základní rozměry střechy, dokončenost a úplnost konstrukcí, výšku podezdívky. \nb) Dále se kontroluje konstrukce podkladu - povrch nesmí být výrazně hrubý, s ostrými hranami a výstupky. Zbaven volných nečistot. Na povrchu nesmí být stojící voda, led nebo sníh. Povrch stropní konstrukce by měl vykazovat mezní výchylku nejvýše 5 mm na 2 metrové lati. Dovolené odchylky rovnoběžnosti: ±10 mm (do 4m); ±12 mm (od 4 m do 8 m); ±20 mm (od 8m do 16 m).","2-Kontrola podkladu"," ",null,"Header","Kontrola provedení prací","List","Yes","Ano;Ne","a) Revizní zprávy a měřicí protokoly prokazující bezpečnou a spolehlivou funkci zařízení.\nb) Požadavky PD, TPř a odstranění neshod.\nc) Soulad s normovými požadavky a odstranění neshod zjištěných v průběhu realizace.\nd) Platné doklady o předepsané kvalitě materiálů.","1-Kontrola provedení prací"," ",null,null,null,null,null,null,null,null," ",null,"Header","Přípravná fáze","Heading","No"," "," "," "," ",null,"Header","Přípravná fáze","Heading","No"," "," "," "," "]
["Header","Hydroizolace - Bílá vana","Heading","No"," "," "," "," ",null,"Body","Komentář - Beton","Text","No"," "," "," "," ",null,"Header","Vstupní materiály, skladování a klimatické podmínky","List","Yes","Ano;Ne","a) Kontroluje se druh, rozměry, množství a jakost dodaných ocelových a dřevěných prvků a to dle dodacích listů, kusovníků z výroby a PD. Materiál nesmí být v průběhu skladování ani při ukládání na skládku znehodnocen, poškozen nebo jiným způsobem snížena jeho kvalita a jakost. Skladování materiálů dle podmínek výrobce, materiál chráněn před povětrnostními vlivy. \nb) Kontroluje se stav klimatických podmínek při příchodu na stavbu, případně před započetím prací a provádí záznam každý den do SD. Technologický předpis stanovuje, za jakých podmínek není možné pracovat nebo jaká opatření je nutno provést, aby se pokračovat mohlo. Za tyto podmínky se považuje: \n- bouře, déšť, sněžení nebo tvoření námrazy\n- čerstvý vítr o rychlosti nad 11 m.s-1\n- dohlednost v místě práce menší než 30 m\n- teplota prostředí během provádění prací nižší než -10 °C ","2-Vstupní materiály, skladování a klimatické podmínky"," ",null,"Body","Komentář - Zděnné","Text","No"," "," "," "," ",null,"Header","Povrchová úprava - Keramický obklad a dlažba","Heading","No"," "," "," "," ",null,"Header","Podklad a klimatické podmínky","List","Yes","Ano;Ne","a) Stávající konstrukce musí být zbavena všech mechanických nečistot, zametené nečistoty odneseny nebo odveženy na místo skládky stavebního odpadu.\nb) Teplota vzduchu musí být minimálně +5° C a vlhkost minimálně 65%, dále musí být zamezeno průvanu.","2-Podklad a klimatické podmínky"," ",null,"Header","Podklad a klimatické podmínky","List","Yes","Ano;Ne","a) Odstranit nesoudržné částice a jiné nečistoty, především mastné. Zkontrolovat zda použitý penetrační přípravek nevykazuje znaky znehodnocení (sraženina na dně nebo přitomnost plísně), zda byl přípravek vhodně naředěn.\nProvést orientační zkoušku održením bloku nalepeného fasádního polystyrenu, nesmí dojít k porušení přídržnosti v penetrovaném podkladu.\nb) Teplota prostředí nebo podkladu nesmí být pod +5° C nebo nad +25° C","2-Podklad a klimatické podmínky"," "]
["Header","Dokumentace","Heading","No"," "," "," "," ",null,null,null,null,null,null,null,null," ",null,"Header","Realizace","Heading","No"," "," "," "," ",null,null,null,null,null,null,null,null," ",null,"Header","Dokumentace","Heading","No"," "," "," "," ",null,"Header","Realizace","Heading","No"," "," "," "," ",null,"Header","Kontrola vstupního materiálu","List","Yes","Ano;Ne","a) Komponent nesmí mít prošlou lhůtu použitelnosti\nb) Kontrola typu desky MW (TR 15 / EN 13 162), deska MW není učena pro fasádní systémy, deska má kolmou orientaci vláken. Izolant má tloušťku min. 100 (80) mm.\nc) Kontrola dimenze profilu lišty, hliníková soklová lišta je z plechu tloušťky pod 0,7 mm.\nd) Kontrola původu příslušenství, neprokázaný původ (výrobce)-","2-Kontrola vstupního materiálu"," "]
["Header","Doklady před zahájením prací","List","Yes","Shoda;Neshoda","a) Odsouhlasena dle PP.\nb) Technologický postup schválen před zahájením prací.\nc) Převzetí materiálu - kompletnost a kvalita dle PD - zápis v dodacím listu.\nd) Certifikáty, atesty a prohlášení o shodě dle zákona č. 22/1997 Sb., Nařízení vlády č. 163/2002 Sb. Nebo Nařízení vlády č. 190/2002 Sb. ","2-Doklady před zahájením prací"," ",null,"Header","Nosné konstrukce - Ocel","Heading","No"," "," "," "," ",null,"Header","Pozednice","List","Yes","Ano;Ne","a) Kontroluje se správné vyvrtání otvorů do osazovaných pozednic podle hloubky a vzdáleností závitových tyčí. Následná kontrola provedení osazení pozednic a s tím spojená rovinnost. Odchylka maximálně ±5mm na 2 metrech. Kontroluje se správné utažení matek a použitý materiál a následné uřezání přesahu závitových tyčí.","2-Pozednice"," ",null,"Header","Typ výplňového zdiva - Montované SDK","Heading","No"," "," "," "," ",null,"Header","Doklady před zahájením prací","List","Yes","Shoda;Neshoda","a) Odsouhlasena objednatelem; platnost označena na výkresech.\nb) Aktualizovaný TP (datum, podpis) je předán před zahájením prací.\nc) Převzetí materiálů - kompletnost a kvalita dle PD – zápis přímo na dodacím listu.\nd) Certifikáty, atesty a Prohlášení o shodě dle NV č.163/2002 Sb a Zák. č.22/1997/Sb.","2-Doklady před zahájením prací"," ",null,"Header","Kontrola provedení prací","List","Yes","Ano;Ne","a) Pásy folie se spojují páskou, folie bude rozvedená po celé ploše podlahy a bude vytažena min. 100mm na stěny lemujících tuto místnost.\nb) Po obvodu místnosti bude zkontrolován pružný pás o tl. 10 mm zabezpečující dilataci. Musí být mezi vrstvami dodrženo min. 24h technologická přestávka, dilatace bude max. 7 x 7 m, kde se vloží pružný pásek. Rovinnost musí být ±2mm na 2m lati, jakmile se ukončí lití stěrky nutno dodržet 4-6 týdenní technologickou přestávku, první 3 dny nutné ošetřovat a zamezit průvanu a po 3 dnech začneme vysušování.","2-Kontrola provedení prací"," ",null,"Header","Vstupní kontrola kotvení","List","Yes","Ano;Ne","a) Hmoždinka má potřebnou délku s ohledem na podklad a skutečné tloušťky izolantu a lepícího lože, je v souladu s PD.\nb) Průměr vrtáku nebo režim příklepu pro daný podklad odpovídá požadavku výrobce hmoždinky, hloubka vývrtu je min. o 10 mm hlubší (min. o 25 mm u STR-U), než je délka dříku po zapuštění hmoždinky.\nc) Ověření typu hmoždinky a rozpěrného trnu ve vazbě na druh a tloušťku izolantu z MW, rozpěrný trn hmoždinky pro izolant MW je kovový.\n","2-Vstupní kontrola kotvení"," "]
["Header","Přípravná fáze","Heading","No"," "," "," "," ",null,"Header","Dokumentace","Heading","No"," "," "," "," ",null,"Header","Sloupky","List","Yes","Ano;Ne","a) Kontroluje se přesnost osazení ocelových sloupků na připojovací plechy patek dle projektové dokumentace. Odchylka sloupků musí být maximálně ±2mm ve vertikálním směru. Svislost se kontroluje pomocí trubicové libely. Vychýlení ocelových vaznic v \nhorizontálním směru musí být maximálně 10mm po délce vaznice.","2-Sloupky"," ",null,"Header","Dokumentace","Heading","No"," "," "," "," ",null,"Header","Přípravná fáze","Heading","No"," ",null," "," ",null,"Header","Kontrola finální vrstvy nátěrů","List","Yes","Ano;Ne","a) Provést nátěr ze 2 složek jenž je nutné smísit podle podkladů od výrobce.\nb) Zkontrolovat provádění pur lepidla bez přesahu, styk provést samolepícíc spojovací páskou.\nc) Základní nátěr ze 2 základních složek podle podkladů od výrobce.\nd) Samonivelační hmoty - zkontrolovat rovinnost ±2mm na 2m lati. Dodržet technologické pauzy.\ne) Vrchní nátěr ze 2 základních složek podle podkladů od výrobce.","2-Kontrola finální vrstvy nátěrů"," ",null,"Header","Realizace","Heading","No"," "," "," "," "]
["Header","Podkladní vrstvy","List","Yes","Ano;Ne","a) Nutné zkontrolovat všechy práce a činnosti, které předcházeli provádění bílé vany tedy především výkopové a zemní práce.\nb) Zemina pod deskou nesmí být rozbahněná, nesmí obsahovat hroudy hlíny, nesmí být zmrzlá. Naopak musí být zarovnaná, čistá a zhutněná, ke kontrole bude přizván statik, který ověří skutečnou únosnost.\nc) Budou zkontrolovány rozměry výkopů a jejich hloubka; hloubka se může lišit o ±15 mm ve vodorovné rovině; v předepsané výškové úrovni pak ±25 mm.\nd) Neporušenost a celistvost podkladu. min. tloušťka podkladu je 50 mm.","2-Podkladní vrstvy"," ",null,"Header","Doklady před zahájením prací","List","Yes","Shoda;Neshoda","a) Odsouhlasena objednatelem; platnost označena na výkresech.\nb) Aktualizovaný TP (datum, podpis) je předán před zahájením prací.\nc) Převzetí materiálů - kompletnost a kvalita dle PD – zápis přímo na dodacím listu.\nd) Certifikáty, atesty a Prohlášení o shodě dle NV č.163/2002 Sb a Zák. č.22/1997/Sb.","2-Doklady před zahájením prací"," ",null,"Header","Vaznice","List","Yes","Ano;Ne","a) Kontroluje se přesnost osazení ocelových vaznic na sloupky dle projektové dokumentace. Odchylka vaznic musí být maximálně 2mm ve vertikálním směru. Kontroluje se kvalita, délka a tloušťka použitých koutových svarů. Svary kontrolujeme vizuálně a musíme dát pozor, aby nebyly ve svarech trhliny, dutiny, neprůvary a aby se neobjevovali vměstky.","2-Vaznice"," ",null,"Header","Doklady před zahájením prací","List","Yes","Shoda;Neshoda","a) Odsouhlasena objednatelem; platnost označena na výkresech.\nb) Aktualizovaný TP (datum, podpis) je předán před zahájením prací.\nc) Převzetí materiálů - kompletnost a kvalita dle PD – zápis přímo na dodacím listu.\nd) Certifikáty, atesty a Prohlášení o shodě dle NV č.163/2002 Sb a Zák. č.22/1997/Sb.","2-Doklady před zahájením prací"," ",null,"Header","Kontrola podkladu a klimatické podmínky","List","Yes","Ano;Ne","a) Klimatické podmínky - ČSN 73 3450 čl. 36 Stálá teplota vzduchu nad 5°C.\nb) Podklad pro obklad je pevný vyzrálý, očištění od prachu, zbavený mastnot; Svislost a rovinnost: max. ±2mm/2m. \nc) Podklad pro dlažbu - ČSN 74 4505: čl. 3.8 - pevnost v tlaku podkladní vrstvy pro keramické dlažby pochůzné 11,5MPa; čl. 3.1 - podklad i obvodové zdivo čisté; instalace dokončeny, prostupy upraveny vhodným způsobem, umožňujícím splnit dilataci od konstrukce, prahová spojka zárubně nevystupuje z plochy podkladu; vodor. a rovinnost ±2mm/2m.","2-Kontrola podkladu a klimatické podmínky"," ",null,"Header","Kontrola po provedení prací","List","Yes","Ano;Ne","a) Ochrana před poškozením - po dobu 24 hod. zabezpečeny proti vstupu do místnosti.\nb) Zajištění proti vysychání - ošetření v souladu s TP.","2-Kontrola po provedení prací"," ",null,"Header","Kontrola při lepení desek tepelné izolace","List","Yes","Ano;Ne","a) Kontrola malty zda je připravována v souladu s návodem výrobcem. Malta je nanášena na rub desky a je nanášena po obvodu desky a ve 3 bodech v ose, krytí rubu desky maltou je minimálně 40% plochy. \nb) Desky jsou lepeny v souladu s požadavky smlouvy o dílo, doporučená rovinnost +5 mm na 2m. Desky jsou lepeny na těsný sraz, ve styčných sparách mezi deskami je malta. Desky jsou v ploše nebo na nároží lepeny na vazbu, desky na nároží otvorů jsou přesazeny o tloušťku izolantu ostění, ložná nebo styčná spára nenavazuje na náhlou změnu profilu v podkladu.\nc) Konstrukční dilatační spára je přiznána v líci ETICS.\nd) Zkontrolovat výskyt míst s omezenou tloušťkou nebo porušením celistvosti izolační vrstvy. Desky EPS nebyly vystaveny UV záření na fasádě po dobu delší než 14 dnů.","2-Kontrola při lepení desek tepelné izolace"," "]
["Header","Kontrola materiálu bednění","List","Yes","Ano;Ne","a) Převzetí materiálu - proběhně shoda s projektovou dokumentací, bude zkontrolován počet prvků a jejich nepoškozenost. \nb) Skladování na pevné a odvodněné ploše.","2-Kontrola materiálu bednění"," ",null,"Header","Přípravná fáze","Heading","No"," "," "," "," ",null,"Header","Kleštiny a krokve","List","Yes","Ano;Ne","a) Kontroluje se provedení osedlání krokví na pozednice a vaznice. Průřez osedlání nesmí být více jak 1/3 výšky krokví a následné prošroubování správnými šrouby.\nb) Kontrolujeme správnou osovou vzdálenost mezi krokvemi, která nesmí být větší než 1200mm. Vzdálenost přesahu za osedláním na pozednici musí být v maximální vzdálenosti podle projektové dokumentace. Dáváme pozor, aby vzdálenosti mezi středovými vaznice a vrcholovou vaznicí nebyl vetší než dle výkresové dokumentace. Kontrolujeme, aby minimální vzdálenost krokví od komínového tělesa nebyla menší než 50mm. Kontrolujeme jestli jsou správně osazeny kleštiny na sloupky a vaznice.","2-Kleštiny a krokve"," ",null,"Header","Přípravná fáze","Heading","No"," "," "," "," ",null,"Header","Realizace","Heading","No"," "," "," "," ",null,"Header","Výstupní kontrola","Heading","No"," "," "," "," ",null,"Header","Kontrola kotvení izolantu","List","Yes","Ano;Ne","a) Talíř hmoždinky je zapuštěn minimálně 2 mm pod vnější líc izolantu.\nb) Počet hmoždinek je větší než: 4ks/m2 při kotvení EPS, 6ks/m2 při kotvení MW tl. do 120 mm, 8ks/m2 při kotvení MW tl. nad 120 mm.\nc) Zkontrolovat možné odchylky od projektu, nesmí být výrazné odchylky od směrného kotevního plánu výrobce hmoždinky.\nd) Hmoždinka není tvarově deformovaná, nepruží při zatlačení.","2-Kontrola kotvení izolantu"," "]
["Header","Kontrola materiálu výztuže","List","Yes","Ano;Ne","a) Nutné zkontrolovat dodací list, hutní atest a shoda údajů v dodacím listu s údaji v PD. Kontrola množství, kvality, znečištění, označení výztuže a požadovaného naohýbání. \nb) Skladování na pevné odvodněné ploše na dřevěných prokladech tak, aby nedošlo k poškození.","2-Kontrola materiálu výztuže"," ",null,"Header","Dodaný materiál a jeho rozměry","List","Yes","Ano;Ne","a) Zkontrolovat dodaný materiál a jeho kompletnost v rozsahu PD.\nB) Mezní odchylka od rozměry prvků výška a šířka ± 3mm; přímost a rovnoběžnost ±3mm. Dílce OK vyrobeny s ohledem na montáž.","2-Dodaný materiál a jeho rozměry"," ",null,"Header","Kontrola tuhosti","List","Yes","Ano;Ne","a) Kontroluje se správné dotažení všech spojovacích šroubů. U hřebíkových spojů se kontroluje správné zaražení hřebíku do dřeva. Hlava zaraženého hřebíku musí být v jedné rovině s rovinou dřeva. Svorníky musí být utaženy, tak aby spojovaný materiál spolu lícoval a nedocházelo k prokluzování materiálu. V případě výrazného vysychání dřeva se potom dle potřeby dotahují. Spoje všech bednících prvků musí být na sráz vedlejších desek a pomocí správných hřebíků se musí přichytit do krokví.","2-Kontrola tuhosti"," ",null,"Header","Kontrola podkladu","List","Yes","Ano;Ne","a) Vlhkost stěn a stropů ustálená, rovinnost do 10 mm na 10m délky; návaznost na otvory a prostupy.","2-Kontrola podkladu"," ",null,"Header","Kontrola provádění obkladů","List","Yes","Ano;Ne","a) Materiál je použit dle PD + klientské změny.\nb) Umístění a typ ukončovacích lišt je použit dle PD.\nc) Otvory a instalace ZTI - ČSN 73 3450 včetně Z1 Čl. 66 Šířka spáry mezi obkladačkou a instalačními vývody max. 5mm, u krabic elektroinstalací max. 2mm.\nd) Šířka spar je dle kladeč. plánu, šířka spár 2mm; 3mm dle PD.\ne) Vnitřní rohy ve styku obklad x obklad a obklad x dlažba ( +styk různých materiálů) ošetřeny silikonem v barvě spárovací hmoty.","2-Kontrola provádění obkladů"," ",null,"Header","Kontrola po dokončení podlah","List","Yes","Ano;Ne",{"$f":"IF(Zadání!D26='Skrytý list se vzorci'!L6,'Skrytý list se vzorci'!O6,IF(Zadání!D26='Skrytý list se vzorci'!L7,'Skrytý list se vzorci'!O7,IF(Zadání!D26='Skrytý list se vzorci'!L8,'Skrytý list se vzorci'!O8)))","v":"a) Vzhled povrchu je bez puklin a výstupků, jednolitý povrch.\nb) Nutno zkontrolovat vodorovnost a rovinnost. Pro místní rovinnost platí přípustná mezní odchylka  ±2mm/2m. Měří se dvoumetrovou latí, která může mít na obou koncích gumové podložky. Jednotlivé klady latě se rozmístí po kontrolované ploše, lať musí být min. 100 mm od hran kontrolované plochy a především tam, kde předpokládáme největší odchylky. Pro vodorovné konstrukce se na každých 100 m2 kontrolované plochy se provede nejméně 5 měření, nejmenší počet kladů latě na ucelené ploše je 5. "},"2-Kontrola po dokončení podlah"," ",null,"Header","Průběžná kontrola","List","Yes","Ano;Ne","a) Rovinnost na styku desek je max. ±2 mm na 2m, měřeno 2m latí.\nb) Šířka nevyplněné styčné spáry musí být menší než 1 mm.\nc) Teplota prostředí nebo podkladu nesmí být pod +5° C nebo nad +25° C.\nd) Malta je připravena v souladu s návodem od výrobce.\ne) Diagonální výztuž je uložena do malty, osnova výztuže svíra úhel 45° s osovou celoplošného vyztužení, diagonální výztuž má větší rozměry než 200 x 300 mm.\nf) Přídavná výztuž má šířku větší než 300 mm, přesahy min. 150 mm, výztuž je uložena do malty.\ng) Profily jsou uloženy do malty, profily příslušenství jsou kryty základní vrstvou podle požadavku od výrobce.\nh) Výztužná tkanina je uložena do malty, je stykována s přesahy 100mm, je dostatečně vypnutá, je celoplošně kryta maltou tl. 1mm.\ni) Tloušťka základní vrstvy lokálně dosahuje hodnoty 2mm, střední tloušťka základní vrstvy dosahuje hodnoty 3 mm.\nj) Penetrace je systémovým doplňkem vrchní omítkoviny, penetrace pod rýhované struktury je kolorovaná na odstín omítky.","2-Průběžná kontrola"," "]
["Header","Kontrola materiálu beton","List","Yes","Ano;Ne",{"$f":"'Skrytý list se vzorci'!Q25","v":"a) Nutné zkontrolovat s každou dodávkou množství, pevnostní třídu, stupeň vlivu prostředí, maximální frakci kameniva, vodní součinitel, stupeň konzistence a obsah chloridů a dobu zpracovatelnosti betonu. Požadavky v dodacím listu musí odpovídat požadavkům v PD. Nadefinovaný beton pro bílou vanu odpovídá druhu betonu  C 30/37  - XF3  - Cl 0,2  - Dmax 22  - S5.\nb) Pro konzistenci bude provedena zkouška sednutí kužele, která se provede ze vzorku směsi po vyprázdnění cca 0,3 m3 betonové směsi z autodomíchávače. Na rovnou plochu se položí podkladní deska, která se navlhčí a uložen íse na ni forma tvaru kužele, tato forma se plní po třetinách, každá vrstva se hutní 25 vpichy tyčí, druhá a třetí vrstva se hutní tak, aby vpichy zasahovali mírně do předchozí vrstvy. Po zarovnání se forma pomalým pohybem odstraní a ihned se změří rozdíl mezi formou a betonovým kuželem. Pro stupeň konzistence S5, ve které se dodává, musí být sednutí >220 mm. Zkoušku provést na vzorku z každé dodávky směsi.\nPro laboratorní zkoušky pevnosti betonu a průsaku tlakovou vodou bude odebrán beton na zkušební tělesa 150 x 150 mm\\."},"2-Kontrola materiálu beton"," ",null,"Header","Realizace","Heading","No"," "," "," "," ",null,"Header","Hydroizolace","List","Yes","Ano;Ne","a) Kontroluje se zejména rozvrstvení pásů izolace a jejich následné překrytí, které by mělo být dle přesahu 150mm. Odchylka maximálně 50mm. Kontrolujeme že tmel byl nanášen v pruzích o průměru 3-5mm na okraj folie. Zajištění dostatečného přesahu folií s ohledem na dilatace. Tloušťka lepidla ve spojích 1-2mm a minimální šířka 25mm. Provádění při teplotě +5°C až +50°C (PE folie)","2-Hydroizolace"," ",null,"Header","Realizace","Heading","No"," "," "," "," ",null,"Header","Kontrola provádění dlažby","List","Yes","Ano;Ne","a) Materiál je použit dle PD + klientské změny.\nb) Dilatace jsou plynulé přímé pevně osazené nedeformované, typ dle PD.\nc)  Vodorovnost a svislost je ±2mm/2m.\nd) Šířka spar je dle kladeč. plánu; šířka spár 2mm ; 3mm dle PD.","2-Kontrola provádění dlažby"," ",null,"Header","Kontrola provedení prací","List","Yes","Ano;Ne","a) Revizní zprávy a měřicí protokoly prokazující bezpečnou a spolehlivou funkci zařízení.\nb) Požadavky PD, TPř a odstranění neshod.\nc) Soulad s normovými požadavky a odstranění neshod zjištěných v průběhu realizace.\nd) Platné doklady o předepsané kvalitě materiálů.","2-Kontrola provedení prací"," ",null,"Header","Výstupní kontrola","Heading","No"," "," "," "," "]
["Header","Realizace","Heading","No"," "," "," "," ",null,"Header","Kotvení, spoje a montáž","List","Yes","Ano;Ne","a) Kotvení OK provedeno dle kotevního plánu. Šroubové spoje; Použité šrouby ve shodě s konstrukční dokumentací, po dotažení viditelné min. 2 závity.\nb) Polohové a výškové provedení dle PD.\nc) Montáž OK v souladu s PD a TP.","2-Kotvení, spoje a montáž"," ",null,"Header","Laťování","List","Yes","Ano;Ne","a) Kontrolují se osové vzdálenosti mezi kontra-latěmi, které musí odpovídat délce mezi krokvemi. Rozteče mezi latěmi musí být do vzdálenosti maximálně 340mm. Kontrola přibití, které musí být minimálně ve vzdálenosti 750mm pro dva hřebíky. Kontroluje se kvalita provedení, kdy se musí zachovat rovinnost, nesmí nic vyčnívat z roviny bednění. Kontrola laťování se provádí pomocí měření, maximální odchylka je 10mm. Kontrola rovinnosti se provádí pomocí provázku. Kontroluje se správnost přibití do kontra-latí pomocí hřebíků, které nesmí vyčnívat a musí lícovat s rovinou přibití.","2-Laťování"," ",null,"Header","Montáž profilů a sloupků","List","Yes","Ano;Ne","a) Rozteč sloupků max. 625mm; v místech kde bude keramický obklad max. 400mm; mezera mezi horním koncem sloupku a stojinou vodítka 10 - 15 mm; Rozmístění připevňovacích prostředků, rozteč max. 800 mm.","2-Montáž profilů a sloupků"," ",null,"Header","Výstupní kontrola","Heading","No"," "," "," "," ",null,"Body","Komentář - PUR podlaha","Text","No"," "," "," "," ",null,"Header","Kontrola konečné povrchové úpravy","List","Yes","Ano;Ne","a) Barevnost - Povrchová úprava vykazuje činitel světelné odrazivosti nad 30%.\nb) Struktura omítka je v ploše rovnoměrná, nejsou zde esteticky rušivé předěly na místech pracovních záběrů.","2-Kontrola konečné povrchové úpravy"," "]
["Header","Klimatické podmínky","List","Yes","Ano;Ne","a) Průměrná teplota vzduchu se naměření ze 3 měření v průběhu dne (07:00, 14:00, 21:00), hodnota z posledního měření se započte dvakrát. Teplota +5°C až 30°C, mimo interval zvláštní opatření. Pokles pod +5°C nutnost zachování nízkého teplotního gradientu. \nb) Betonáž za vysokých teplot nutno kropit beton a udržovat povrch ve vlhkém stavu, lze ho zakrýt a zabránit tak nadměrnému odpařování vody. Betonáž za silného deště nepřipadá v úvahu, hrozilo by vymývání zrn z betonu.","2-Klimatické podmínky"," ",null,"Header","Nátěry","List","Yes","Ano;Ne","a) Ocelové konstrukce budou ve výrobě opatřeny základním nátěrem. Tloušťka nátěrového systému musí být dle ČSN 038240 a ČSN 038260. Nátěrový systém musí být navržen v souladu s protipožárními nátěry. OK nátěr RAL 9010","2-Nátěry"," ",null,"Header","Klempířské prvky","List","Yes","Ano;Ne","a) Kontrola žlabových háků, přibití min. na dva hřebíky 120 mm a max. 60 mm od sebe. Kontroluje se vzdálenost žlabových háků podle projektové dokumentace. Kontrola okapního žlabu překrytí musí být minimálně 150mm, správné otvory pro trouby, jejich správný průměr, spojení prvků. Musíme kontrolovat správný spád pro odtok vody, který musí být minimálně 0,5%. Kontrola oplechování komína se provádí pro obě vrstvy, napřed se musí zkontrolovat první vrstva, jestli je lemování spojeno se střechou a druhá vrstva, aby byla spojena s komínem, aby nedocházelo k pronikání vody do konstrukce vlivem sedání střešní konstrukce a následným vznikem mezer. Překrytí musí být minimálně 150mm.","2-Klempířské prvky"," ",null,"Header","Kontrola opláštění","List","Yes","Ano;Ne","a) Elektroinstalace, ZTI a VZT jsou dokončeny dle PD.\nb) Prostor mezi nosnými prvky je vyplněn v celé ploše izolačními deskami.\nc) Zásadně používat celé desky; u 1 strany příčky se začíná deskou o celé šířce; šířka spáry max. 1 až 2mm; desky osazeny 15mm nad podlahou; spára nad zárubní min. 150mm od hrany bočního ostění; přířezy -min. výška 400mm; min. přesazení sousedních příčných spár 400mm; nastavené části v sousedních polích vystřídány; rozteče šroubů max. 250mm; při 2 vrstvách opláštění v 1 vrstvě rozteče 750mm; hlava šroubů musí být zapuštěna od okraje desky min. 10mm, u řezaných hran min. 15mm (šrouby nesmí trhat desku).","2-Kontrola opláštění"," ",null,"Header","Kontrola dokončeného obkladu","List","Yes","Ano;Ne","ČSN 73 3450 včetně Z1\na) Celkový vzhled - Čl. 71 Návaznost spár na ostění nebo jiné členění plochy; výrazná kresba a barevnost shodná na všech obkladačkách, čl. 72, odst. b) rohy a kouty vyvážené.\nb) Vodorovnost a svislost -  Čl. 72, odst a) ±1,5 mm / 2m; jednotlivá obkladačka nesmí vyčnívat z plochy mimo povolenou toleranci tloušťky.\nc) Spáry- Čl. 72, odst d) Pravidelný a stejnoměrný průběh svislých i vodorovných spár, spáry ladké, rovné, stejně hluboké a široké.\nd) Přilnavost k podkladu - Čl. 72, odst e) nesmí se ozvat dutý zvuk.","2-Kontrola dokončeného obkladu"," ",null,null,null,null,null,null,null,null," ",null,"Header","Kontrola provedení prací","List","Yes","Ano;Ne","a) Revizní zprávy a měřicí protokoly prokazující bezpečnou a spolehlivou funkci zařízení.\nb) Požadavky PD, TPř a odstranění neshod.\nc) Soulad s normovými požadavky a odstranění neshod zjištěných v průběhu realizace.\nd) Platné doklady o předepsané kvalitě materiálů.","2-Kontrola provedení prací"," "]
["Header","Spáry a prostupy","List","Yes","Ano;Ne","a) Spáry je nutné opatřit vhodnými těsnicími profily. Těsnicí prvky pracovních nebo dilatačních je vždy nutno správně osadit a zabetonovat. Vždy je třeba postupovat dle technických listů dodavatele těsnícího prvku.\nb) Poloha prostupů shodná s PD, max. odchylka osy prostupu ± 25 mm, kontrola provedení pracovní spáry mezi dnem vany a svislou stěnou, plech musí být dobře napojen na výztuž desky a zda se nachází 150 mm od okraje desky, při osazování prostupů kontrolováno, zda jsou opatřeny těsnícím bobtnajícím páskem, při provádění dilatační spáry je dbáno na uložení dilatačního prvku s PVC pásem mezi výztuž.","2-Spáry a prostupy"," ",null,"Header","Výstupní kontrola","Heading","No"," "," "," "," ",null,"Header","Střešní krytina","List","Yes","Ano;Ne","a) Kontroluje se správnost pokládky jednotlivých střešních tašek.Správné kotvení šrouby a jejich dotažení krytiny dle výrobce.Kontrolujeme správné uložení hřebenáčů, zejména výšku držáků pro hřebenové latě minimálně 2 vruty v každém držáku, jejich přišroubování do držáků. ","2-Střešní krytina"," ",null,"Header","Kontrola ocelové zárubně","List","Yes","Ano;Ne","a) UW profil je na obou stranách ukotven 2 šrouby, Nad otvorem je zabudován překlad z UW profilu, v nadpraží jsou 2 stojiny CW.","2-Kontrola ocelové zárubně"," ",null,"Header","Kontrola dokončené dlažby","List","Yes","Ano;Ne","ČSN 74 4505\na) Celkový vzhled - jednotná skladba prvků; povrch bez viditelných závad; výrazná kresba a barevnost shodná na všech prvcích (včetně soklu), styk podlahy se stěnou proveden plynule.\nb) Vodorovnost a rovinnost - ±2mm/2m; bez výrazně patrných vystoupení nebo zapuštění jednotlivých prvků mimo povolenou toleranci tloušťky prvku.\nc) Spáry - Spáry stejnoměrně široké, rovné, přímé a nepropadlé.\nd) Přilnavost k podkladu - Nesmí se ozvat dutý zvuk.","2-Kontrola dokončené dlažby"," ",null,null,null,null,null,null,null,null," ",null,"Body","Komentář - ETICS","Text","No"," "," "," "," "]
["Header","Bednění","List","Yes","Ano;Ne","a) Poloha bednění s max. odchylkou ± 15 mm, kontrola stabilita bednění, celistvost, utěsněnost a také opatření odbedňovacím přípravkem.","2-Bednění"," ",null,"Header","Ocelové konstrukce","List","Yes","Ano;Ne","a) Potvrzení o jakosti a kompletnosti dodávky od výrobce. Osvědčení o jakosti a kompletnosti montáže.\nb) Povrch nepoškozený, stejnorodý. Součet opravených ploch max. 10% z celkové plochy.","2-Ocelové konstrukce"," ",null,"Header","Výstupní kontrola","Heading","No"," "," "," "," ",null,"Header","Kontrola spár","List","Yes","Ano;Ne","a) Zaplnění podélných spár tmelem na celou hloubku; zkosení příčných hran; vtlačení pásky do 1 vrstvy tmelu; přestěrkování po cca 30min, roztažení tmelu a uhlazení do ztracena; u koutů a vnějších rohů vrstva tmelu roztažena do šířky 250 až 300mm; přebroušení 2 vrstvy po zaschnutí.","2-Kontrola spár"," ",null,"Header","Kontrola provedení prací","List","Yes","Ano;Ne","a) Revizní zprávy a měřicí protokoly prokazující bezpečnou a spolehlivou funkci zařízení.\nb) Požadavky PD, TPř a odstranění neshod.\nc) Soulad s normovými požadavky a odstranění neshod zjištěných v průběhu realizace.\nd) Platné doklady o předepsané kvalitě materiálů.","2-Kontrola provedení prací"," ",null,null,null,null,null,null,null,null,null,null,null,null,null,null,null,null,null," "]
["Header","Výztuž","List","Yes","Ano;Ne","a) Výztuž musí být nepoškozená, čistá, kontrola uložení prutů, jejich průměr, vzdálenosti prutů a jejich shoda s PD, odchylka vzdálenosti max. o 20% větší než v PD nebo max. 30 mm. \nb) Kontrola krytí výztuže, počet distančních tělísek dostatečný, kontrola stykování výztuže, poloha styků se může lišit max. o ± 30 mm.","2-Výztuž"," ",null,"Header","Kontrola provedení prací","List","Yes","Ano;Ne","a) Revizní zprávy a měřicí protokoly prokazující bezpečnou a spolehlivou funkci zařízení. \nb) Požadavky PD, TPř, TPo a odstranění neshod, soulad s normovými požadavky a odstraněníneshod zjištěných v průběhu realizace. \nc) Platné doklady o předepsané kvalitě materiálů.","2-Kontrola provedení prací"," ",null,"Header","Kontrola provedení prací","List","Yes","Ano;Ne","a) Kontroluje se správnost a celistvost provedení všech klempířských, pokrývačských, zámečnických a tesařských prací.\nb) Revizní zprávy a měřicí protokoly prokazující bezpečnou a spolehlivou funkci zařízení. \nc) Požadavky PD, TPř, TPo a odstranění neshod, soulad s normovými požadavky a odstranění neshod zjištěných v průběhu realizace. \nd) Platné doklady o předepsané kvalitě materiálů. ","2-Kontrola provedení prací"," ",null,"Header","Výstupní kontrola","Heading","No"," "," "," "," ",null,"Body","Komentář - Keramický obklad a dlažba","Text","No"," "," "," "," "]
["Header","Betonování","List","Yes","Ano;Ne","a) Kontrola způsobu ukládání betonové směsi, max. výška lití směsi je 1,5 m. Kontrola zhutnění vibrační lištou, nesmí dojít k porušení vyvázání výztuže.","2-Betonování"," ",null,"Body","Komentář - Ocel","Text","No"," "," "," "," ",null,"Body","Komentář - Šikmá střecha","Text","No"," "," "," "," ",null,"Header","Kontrola po dokončení","List","Yes","Ano;Ne","a) Povrch příček je hladký, zabroušený, kouty vyplněny akrylátovým tmelem.\nb) Svislost a rovinnost - max. přípustná odchylka je ±5 mm/2m.\nc) Osazení zárubní - odchylka od prav. úhlu: 1,5mm; svislost ostění max. - 1,5mm; výška zárubně od úrovně podlahy max. + 10mm; odchylka ve zkřížení max. 1,5mm.","2-Kontrola po dokončení"," "]
["Header","Výstupní kontrola","Heading","No"," "," "," "," ",null,null,null,null,null,null,null,null," ",null,null,null,null,null,null,null,null," ",null,"Header","Kontrola provedení prací","List","Yes","Ano;Ne","a) Revizní zprávy a měřicí protokoly prokazující bezpečnou a spolehlivou funkci zařízení.\nb) Požadavky PD, TPř a odstranění neshod.\nc) Soulad s normovými požadavky a odstranění neshod zjištěných v průběhu realizace.\nd) Platné doklady o předepsané kvalitě materiálů.","2-Kontrola provedení prací"," "]
["Header","Kontrola ošetřování betonu","List","Yes","Ano;Ne","a) Postřik musí být nanášen rovnoměrně na celou plochu na čerstvý beton. \nb) Kontrola zakrytí betonu plachtou nejméně po dobu 7 dní, celistvost, neponíčená. \nc) Odbednění po 7 dnech, dodržení technologické pauzy pro odbednění, kontrolován způsob odbednění, aby se nepoškodila hotová konstrukce.","2-Kontrola ošetřování betonu"," ",null,"Header","Nosné konstrukce - Zděnné","Heading","No"," "," "," "," ",null,null,null,null,null,null,null,null,null,null,"Body","Komentář - Montované SDK","Text","No"," "," "," "," "]
["Header","Kontrola provedení prací","List","Yes","Ano;Ne","a) Kompletnost a shoda s PD. Neporušenost, umístění prostupů dle PD. \nb) Tvrdost zkoušená po 28 dnech pomocí Schmidtova kladívka. Na každém zkušebním místě se provede nejméně devět čtení. Každý zkušební bod musí být vzdálen nejméně 25 mm od sousedního bodu i od hrany konstrukce.  \nc) Po 28 dnech bude zkoušenazkouška průsaku tlakovou vodou na zkušebních tělesech o hraně délky 150 mm. Ihned po odformování se musí plocha, která bude vystavena působení vodního tlaku, zdrsnit ocelovým kartáčem. Těleso je po odformování uloženo ve vodě o teplotě 20 ±5°C. Zkušební těleso se upne do zařízení a nechá se působit vodní tlak 500±50 kPa v ploše o průměru 75 mm (gumové těsnění) po dobu 72±2 hodiny. Během zkoušení se pravidelně pozoruje stav povrchů zkušebních těles, které nejsou vystaveny\nvodnímu tlaku, zda se neobjevuje voda. Jestliže se objeví průsak, je třeba uvážit platnost výsledku zkoušky a tato skutečnost se musí zaznamenat. Po zkušební době se těleso vyjme, povrch tělesa se osuší. Těleso se rozlomí v polovině, kolmo na povrch, na který působil vodní tlak. Jakmile lomová plocha oschne natolik, že je zřetelně vidět průsak vody, označí se hranice průsaku vody. Změří se a zaznamená největší hloubka průsaku od zkoušené plochy v mm, zaokrouhlené na 1mm. \nd) Max. odchylka horní úrovně základové desky se může lišit max. o ± 20 mm od výšky v PD; max. mezní odchylka vychýlení stěny ± 15 mm nebo h/400; Max. odchylka zakřivení stěny max ± 15 mm nebo h/300, ale ne více než 30 mm; max. odchylky rovinnosti stěn je ± 8 mm na 2m. Měří se dvoumetrovou latí, která může mít na obou koncích gumové podložky. Jednotlivé klady latě se rozmístí po kontrolované ploše, lať musí být min. 100 mm od hran kontrolované plochy a především tam, kde předpokládáme největší odchylky. Pro vodorovné konstrukce se na každých 100 m2 kontrolované plochy se provede nejméně 5 měření. Pro svislé konstrukce se na každých 25 m2 kontrolované plochy provede nejméně 5 měření, nejmenší počet kladů latě na ucelené ploše je 5.","2-Kontrola provedení prací"," ",null,"Header","Dokumentace","Heading","No"," "," "," "," ",null,null,null,null,null,null,null,null,null,null,null,null,null,null,null,null,null," "]
["Body","Komentář - Bílá Vana","Text","No"," "," "," "," ",null,"Header","Doklady před zahájením prací","List","Yes","Shoda;Neshoda","a) Odsouhlasena objednatelem; platnost označena na výkresech.\nb) Aktualizovaný TP (datum, podpis) je předán před zahájením prací.\nc) Převzetí materiálů - kompletnost a kvalita dle PD – zápis přímo na dodacím listu.\nd) Certifikáty, atesty a Prohlášení o shodě dle NV č.163/2002 Sb a Zák. č.22/1997/Sb.","3-Doklady před zahájením prací"," ",null,null,null,null,null,null,null,null,null,null,"Header","Typ výplňového zdiva - Monolitické","Heading","No"," "," "," "," "]
[null,null,null,null,null,null,null,null,null,"Header","Přípravná fáze","Heading","No"," "," "," "," ",null,null,null,null,null,null,null,null,null,null,"Header","Dokumentace","Heading","No"," "," "," "," "]
[null,null,null,null,null,null,null,null,null,"Header","Vstupní materiál a klimatické podmínky","List","Yes","Ano;Ne","a) Soulad s PD a ČSN EN 771-1 – průměrná odchylka rozměrů u všech zkoušených prvků: větší z ±0,4x(jmenovitý rozměr)^1/2mm nebo 3 mm pro třídu T1, větší z ±0,25x(jmenovitý rozměr)^1/2mm nebo 2mm pro třídu T2; \nmax.odchylka rozměrů jednotlivých prvků: ±0,6x(jmenovitý rozměr)^1/2mm pro R1, ±0,3x(jmenovitý rozměr)^1/2mm pro R2.\nb) Cihly jsou celistvé, neporušené, deklarovaná pevnost v tlaku výrobcem dle prohlášení o shodě apod.\nc) Teplota 0°C až +5°C, použití malty s o jeden stupeň vyšší pevností; teplota -5°C až 0°C, použití malty s o jeden stupeň vyšší pevností a přidání příměsí pro zlepšení vlastností malty nebo spočívající v ohřevu malt a jejich komponentů; teplota pod -5°C, zdění zakázáno; přísady malt (voda, písek, předem vyrobené směsi) obsahující částice ledu se nemají používat; teplota malt nesmí klesnout před pokládkou na zdivo pod + 15°C při teplotě zdiva na které se pokládá nižší než 10°C.\nd) Je nutné zabránit provlhnutí cihel, Pro zdění se nesmí použít zmrzlé cihly, tj.cihly, na kterých ulpívá sníh či led.","3-Vstupní materiál a klimatické podmínky"," ",null,null,null,null,null,null,null,null,null,null,"Header","Doklady před zahájením prací","List","Yes","Shoda;Neshoda","a) Odsouhlasena objednatelem; platnost označena na výkresech.\nb) Aktualizovaný TP )datum, podpis) je předán před zahájením prací.\nc) Převzetí materiálu - kompletnost a kvalita dle PD - zápis v dodacím listu.\nd) Certifikáty, atesty a prohlášení o shodě dle zákona č. 22/1997 Sb., Nařízení vlády č. 163/2002 Sb. Nebo Nařízení vlády č. 190/2002 Sb. ","3-Doklady před zahájením prací"," "]
[null,null,null,null,null,null,null,null,null,"Header","Vytyčení","List","Yes","Ano;Ne","Dle PD a ČSN 73 0420-2 \na) Tab.3-vytyčení délky, šířky obvodových stěn ±12mm pro a,b≤25m, ±20mm pro 25<a,b≤40m, ±a,b/2000 pro a,b>40m; bod 5.3.1.6-vytyčení vnitřních nosných stěn-hodnoty z Tab.3 násobené (dílčí rozměr/celkový rozměr)^1/2mm. Vytyčení - bod 5.3.1.3 výšky bodů na konstrukci ve vzdálenosti d ≤25m ±5mm, 25m<d≤50m ±10mm, d>50m ±15mm; bod 5.3.1.4 konstrukční výška pro 1podlaží ±5mm, nad 1podlažím ±(5+2xpočet podlaží)mm. Vytyčovat je potřeba stěny bez následných povrchových úprav (omítek apod.)!","3-Vytyčení"," ",null,null,null,null,null,null,null,null,null,null,"Header","Přípravná fáze","Heading","No"," "," "," "," "]
[null,null,null,null,null,null,null,null,null,"Header","Založení","List","Yes","Ano;Ne","Dle ČSN EN 1996-2\na) Podklad zdi musí být vodorovný,  odchylky ve výšce základů či v povrchu stropní konstrukce musí být vyrovnány. Pásy případné izolace proti vlhkosti musí být nejméně o 150mm širší než bude tloušťka stěny. Pro zdění první vrstvy vnějších i vnitřních stěn použít vápenocementovou maltu. Osadit krajní cihly podle vytyčených značek. \nb) Průběžná kontrola rovinnosti pomocí šňůry natažené mezi krajní cihly z vnějšího líce.","3-Založení"," ",null,null,null,null,null,null,null,null,null,null,"Header","Kontrola vytyčení","List","Yes","Ano;Ne","a) Vytyčení dle PD a ČSN 730420.\nb) Vodorovnost montážní roviny max. ± 10mm.","3-Kontrola vytyčení"," "]
[null,null,null,null,null,null,null,null,null,"Header","Příprava před zahájením","List","Yes","Ano;Ne","ČSN EN 1996-2, ČSN 73 0205\na) Zdící prvky nejsou poškozeny, skladová plocha rovná a odvodněná. Dle TP pro cihly broušené. Povrch bez prachu a ropných látek, dostatečně provlhčený. Dle TP výrobce zdícího materiálu. U cihel broušených dbát zvýšené pozornosti výškovému založení, rovinnosti.\nb) Chráněny před deštěm, sněhem a zmrznutím. Teplota skladování musí být o jeden stupeň vyšší, než je v PD; min. + 15°C. Teplota podkladu musí být min. + 10°C. Zdění možno provádět do - 5°C","3-Příprava před zahájením"," ",null,null,null,null,null,null,null,null,null,null,"Header","Příprava před zahájením betonáže","List","Yes","Ano;Ne",{"$f":"'Skrytý list se vzorci'!Q31","v":"a) Kontrola bednění -  ČSN 73 0210 - 2; Délka, výška tolerance: ± 20mm, odklon od svislice ± 6mm; světlý rozměr otvorů ± 12mm. Bez zbytků materiálu a prachu, těsné, prostorově tuhé, proveden ochranný nástřik.\nb) Kontrola chráničky - materiál, DN a osazení dle PD.\nc) Kontrola výroby betonové směsi - druh betonu C 20/25  - XC1  - Cl 0,4  - Dmax 22  - S4 - Certifikát betonárky, kvalita směsi dle ČSN EN 13 670-1 ověření vyrobené betonové směsi krychelnými zkouškami.\nd) Pro konzistenci bude provedena zkouška sednutí kužele, která se provede ze vzorku směsi po vyprázdnění cca 0,3 m3 betonové směsi z autodomíchávače. Na rovnou plochu se položí podkladní deska, která se navlhčí a uložen íse na ni forma tvaru kužele, tato forma se plní po třetinách, každá vrstva se hutní 25 vpichy tyčí, druhá a třetí vrstva se hutní tak, aby vpichy zasahovali mírně do předchozí vrstvy. Po zarovnání se forma pomalým pohybem odstraní a ihned se změří rozdíl mezi formou a betonovým kuželem. Pro stupeň konzistence S4, ve které se dodává, musí být sednutí 160 - 210 mm. Zkoušku provést na vzorku z každé dodávky směsi.\nPro laboratorní zkoušky pevnosti betonu a průsaku tlakovou vodou bude odebrán beton na zkušební tělesa 150 x 150 mm\\."},"3-Příprava před zahájením betonáže"," "]
[null,null,null,null,null,null,null,null,null,"Header","Realizace","Heading","No"," "," "," "," ",null,null,null,null,null,null,null,null,null,null,"Header","Realizace","Heading","No"," "," "," "," "]
[null,null,null,null,null,null,null,null,null,"Header","Zdění","List","Yes","Ano;Ne","a) Minimální převázání cihel o 1/4 výšky zdícího prvku (při výšce zdiva 238mm to je 95mm). Vynechání kapsy v každé druhé řadě, kapsa se před provázáním stěn celá promaltuje. Stěnové spony případně výztuž jsou vloženy do každé druhé ložné spáry.\nb) Podmaltování po celé ploše a stejné šířce jako tloušťka stěny, zejména nutné u nosných stěn. Tloušťka spáry zhruba 12mm (optimálně mezi 9-12mm). Styčné spáry se nemaltují, zdící prvky se skládají na sraz P+D. \nc) Mezera 1-2cm, vyplnění stlačitelnou hmotou - montážní pěnou (vatou při akustických požadavcích) – pro nenosné stěny.","3-Zdění"," ",null,null,null,null,null,null,null,null,null,null,"Header","Kontrola výztuže","List","Yes","Ano;Ne","Betonářská ocel B500B\na) Kontrola správnosti použitých profilů - shoda s PD statiky.\nb) Kontrola polohy a styků výztuže - max. odchylka polohy osy výztuže, vzdálenosti výztuže nebo posunu: ± 30mm.\nc) Kontrola osazení distančních podložek - dilatační podložky dle PD a TP. Krytí výztuže: Dle ČSN 73 12 01.","3-Kontrola výztuže"," "]
[null,null,null,null,null,null,null,null,null,"Header","Průběžná kontrola","List","Yes","Ano;Ne","Dle ČSN EN 1996-2\na) Každá vrstva stejně vysoká a v rovině, vyrovnání geometrických odchylek výšek jednotlivých zdících prvků; při zdění jedné stěny nelze kombinovat zdící prvky různých typů a pevností. Měřit pomocí latě.\nb) Svislost zdiva dle Tab.3.1 odchylka od svislosti na celou výšku stěny v jednom podlaží ±20mm. Měřit pomocí vodováhy či olovnice.\nc) Rovinnost zdiva dle Tab.3.1 rovinnost ±10mm/1m, max. ±50mm/10m. Měří se dvoumetrovou latí, která může mít na obou koncích gumové podložky. Jednotlivé klady latě se rozmístí po kontrolované ploše, lať musí být min. 100 mm od hran kontrolované plochy a především tam, kde předpokládáme největší odchylky. Pro svislé konstrukce se na každých 25 m2 kontrolované plochy se provede nejméně 5 měření, nejmenší počet kladů latě na ucelené ploše je 5.\nd) Průběžnost ložné spáry, tloušťka by měla být v celé své délce a šířce zhruba stejná.","3-Průběžná kontrola"," ",null,null,null,null,null,null,null,null,null,null,"Header","Kontrola při betonování","List","Yes","Ano;Ne","Betonáž je prováděna v souladu TP.\na) Teplota betonu min. +10°C, teplota povrchu min. +5°C\nb) Uložení betonové směsi - rovnoměrné a nepřerušované s vibrováním.\nc) Povrch pod stěrky; viditelné hrany skosené.","3-Kontrola při betonování"," "]
[null,null,null,null,null,null,null,null,null,"Header","Otvory","List","Yes","Ano;Ne","a) Dle PD, menší rozměr - nutno oříznout, větší rozměr nutno tuze vyplnit.\nb) Světlé rozměry musí uvažovat max. přípustné geometrické tolerance hrubého otvoru (včetně rovinnosti), navrženou šířku připojovací spáry a geometrické tolerance výrobku.\nc) Polohové a výškové umístění hran, rozměr otvoru tolerance rozměrů dle TNI 74 6077: Tab.1 ±12mm do 3m, ±16mm nad 3m do 6m; Pravoúhlost otvoru dle TNI 74 6077: Bod 3.3.1.3. – 6mm do 1m, 8mm 1-3m, 12mm 3-6m.\nd) Rovinnost ostění Dle ČSN EN 1996-2, Tab.3.1 ±10mm/1m, max.±50mm/10m.","3-Otvory"," ",null,null,null,null,null,null,null,null,null,null,"Header","Výstupní kontrola","Heading","No"," "," "," "," "]
[null,null,null,null,null,null,null,null,null,"Header","Zárubně","List","Yes","Ano;Ne","a) Ocelové zárubně: \nRozměry měřit 100mm od rohů a uprostřed rozpětí. Zárubně při zdění vyrovnat pomocí klínů, zafixovat šikmými latěmi, stojky rozepřít, v příčce upevnit maltou nebo montážní pěnou. Dle PD a ČSN 73 3130 Tab.2. Odchylka ve zkřížení je 1,5mm pro jednokřídlové; 2,5mm pro dvoukřídlové. Odchylka od pravého úhlu je 1,5mm pro jednokřídlové; 2,0mm pro dvoukřídlové. Výška zárubně od úrovně podlahy je -0mm / +10mm. Prohnutí stojky zárubně je maximálně 1,5mm.\n\nb)Obložkové zárubně: Rozměry měřit 100mm od rohů a uprostřed rozpětí. Dle PD. Světlé rozměry otvoru dle jmenovitý otvor dveří + 2x50mm pro šířku a 1x50mm pro výšku +tolerance rozměrů ±12mm + rovinnost 10mm/1m.\nPoloha a rozměry otvoru přípustná tolerance rozměrů ±12mm pro rozměr do 3m. Rovinnost ostění dle ČSN EN 1996-2, Tab.3.1 ±10mm/1m, max.±50mm/10m menší rozměr - nutno oříznout, větší rozměr nutno tuze vyplnit.","3-Zárubně"," ",null,null,null,null,null,null,null,null,null,null,"Header","Geometrické odchylky","List","Yes","Ano;Ne","ČSN 73 0210-2\na) Vzhled povrchu je bez hnízd, trhlin a výstupků, pukliny max. do 5% plochy, stejnorodý povrch.\nb) Max. přípustná odchylka celkového rozměru a polohy je dle Tab. A.1.1 ±25mm.\nc) Max. přípustná odchylka průřezu konstrukcí je dle Tab. A.1.2 – pro stěny do 0,5m - ±8mm; pro sloupy do 0,5m - ±5mm.\nd) Max. přípustná odchylka svislosti je dle Tab. A.3.1 – pro stěny do 2,5m - ±5mm; pro sloupy do 2,5m - ±4mm.\ne) Max. přípustná odchylka místní rovinnosti je dle Tab. A.2.2 – stěny ±6mm/2m.\nf) Pevnost betonu - Výsledky zkoušek po 28 dnech k datu betonáže.","3-Geometrické odchylky"," "]
[null,null,null,null,null,null,null,null,null,"Header","Výstupní kontrola","Heading","No"," "," "," "," ",null,null,null,null,null,null,null,null,null,null,"Header","Kontrola polohy","List","Yes","Ano;Ne","ČSN 73 0210 – 1 tab. A2, A3\na) Zaměření skutečného provedení dle skutečnosti.\nb) Namátkové kontroly provedení - délka, výška tolerance 10 mm, odklon od svislice tolerance 5 mm.","3-Kontrola polohy"," "]
[null,null,null,null,null,null,null,null,null,"Header","Geometrické tolerance","List","Yes","Ano;Ne","Dle PD, ČSN 73 0205 a ČSN EN 1996-2\na) Vzdálenost protilehlých konstrukcí dle ČSN 73 0205, Tab.A.2 (místnosti pro pobyt osob)  – délka, šířka (hloubka) ±15mm pro L≤4m, ±20mm pro 4<L≤8m, ±25mm pro 8<L≤16m, ±30mm pro 16m<L, (ostatní místnosti Δ±5mm); výška ±20mm pro L≤4m, ±25mm pro 4<L≤8m, ±30mm pro 8<L≤16m. Šířka, délka -100mm od podlahy a hran kce popř. i 100mm pod stropem a uprostřed výšky místnosti; výška – 100mm od obou stěn, popř. uprostřed délky a šířky místnosti; měřit pomocí laserového dálkoměru nebo svinovacího pásma. \nOdklon od svislice dle ČSN EN 1996-2, Tab.3.1 ±20mm v jednom podlaží, ±50mm na výšku budovy o 3 a více podlaží. Měřit 100m pod stropem a 100mm nad podlahou. Svislost – 100mm od podlahy a stropu a 100mm od svislých hran kce geodeticky nebo k vztaž. přímce (provázek).\nb) Souosost stěn nad sebou dle ČSN EN 1996-2, Tab.3.1 ±20mm. Souosost měřit 100m pod stropem a 100mm nad podlahou.\nc) Místní rovinnost dle ČSN EN 1996-2, Tab.3.1 ±10mm/1m, max. ±50mm/10m. Místní rovinnost měřit 2m laťí na podložkách, na každých 25m2 plochy min. 5 kladů latě rovnoměrně rozmístěných, min.počet kladů na jednu plochu (stěna) je 5.\nd) Celková rovinnost – měřit v čtverc. síti o hraně max.3m odsazené 100m od hran kce geodeticky nebo k vztažné přímce (provázek), odchylky vyjádřit vzhledem k přímce mezi horním a dolním bodem čtverc. Sítě.\ne) Úhel mezi stěnami dle ČSN 73 0205, Tab.A.7 ±5mm pro L≤4m, ±8mm pro 4<L≤8m, ±10mm pro 8<L≤16m, ±12mm pro 16m<L. Úhly měřit 100mm od rohů stěn a 100mm pod stropem a nad podlahou příp. uprostřed.\nf) Tloušťka stěny dle ČSN EN 1996-2, Tab.3.1 větší z ±5mm nebo ±5% projektované tloušťky jednovrstvé stěny (u tloušťky rovné délce nebo šířce jednoho zdicího prvku Δ podle zdícího prvku), ±10mm pro vrstvenou dutinovou stěnu. Min.3x - délka kce do 6m, min. 4x u konstrukce nad 6m, první a poslední 100mm od krajů kce, zbytek mezi.\n","3-Geometrické tolerance"," ",null,null,null,null,null,null,null,null,null,null,"Header","Kontrola provedení prací","List","Yes","Ano;Ne","a) Revizní zprávy a měřicí protokoly prokazující bezpečnou a spolehlivou funkci zařízení.\nb) Požadavky PD, TPř a odstranění neshod.\nc) Soulad s normovými požadavky a odstranění neshod zjištěných v průběhu realizace.\nd) Platné doklady o předepsané kvalitě materiálů.","3-Kontrola provedení prací"," "]
[null,null,null,null,null,null,null,null,null,"Header","Kontrola provedení prací","List","Yes","Ano;Ne","a) Revizní zprávy a měřicí protokoly prokazující bezpečnou a spolehlivou funkci zařízení.\nb) Požadavky PD, TPř a odstranění neshod.\nc) Soulad s normovými požadavky a odstranění neshod zjištěných v průběhu realizace.\nd) Platné doklady o předepsané kvalitě materiálů.","3-Kontrola provedení prací"," ",null,null,null,null,null,null,null,null,null,null,"Body","Komentář - Monolitické","Text","No"," "," "," "," "]
[null,null,null,null,null,null,null,null,null,"Body","Komentář - Zděnné","Text","No"," "," "," "," ",null,null,null,null,null,null,null,null,null,null,null,null,null,null,null,null,null," "]
[null,null,null,null,null,null,null,null,null,null,null,null,null,null,null,null," ",null,null,null,null,null,null,null,null,null,null,null,null,null,null,null,null,null," "]
[null,null,null,null,null,null,null,null,null,null,null,null,null,null,null,null," "]

{"sheet":"Export formulář Dalux","index":5,"n_rows":0,"n_cols":0,"rows_kept":0,"cut":false,"hidden":false,"merged":[],"read":"part_too_large"}

{"sheet":"Export KZP Dalux","index":6,"n_rows":154,"n_cols":12,"rows_kept":154,"cut":false,"hidden":false,"merged":[]}
[]
[{"$f":"IF('Skrytý list se vzorci'!$C$4=TRUE,'Skrytý list se vzorci'!A21,0)","v":"01_Hydroizolace spodní stavby\n"}]
[null,{"$f":"IF('Skrytý list se vzorci'!$C$4=TRUE,'Skrytý list se vzorci'!A22,0)","v":"Asfaltové pásy"}]
[null,null,{"$f":"IF('Skrytý list se vzorci'!$C$4=TRUE,'Skrytý list se vzorci'!B21,0)","v":1},{"$f":"IF('Skrytý list se vzorci'!$C$4=TRUE,'Skrytý list se vzorci'!C21,0)","v":"Doklady před zahájením prací"},{"$f":"IF('Skrytý list se vzorci'!$C$4=TRUE,'Skrytý list se vzorci'!E21,0)","v":"Vizuální kontrola\nKaždá dodávka\nKaždý doklad"},{"$f":"IF('Skrytý list se vzorci'!$C$4=TRUE,'Skrytý list se vzorci'!D21,0)","v":"a) Projektová dokumentace \nb) Technologický postup \nc) Kontrola vstupních materiálů \nd) Doložení kvality materiálů \ne) Odborná způsobilost pracovníků"},null,{"$f":"IF('Skrytý list se vzorci'!$C$4=TRUE,'Skrytý list se vzorci'!F21,0)","v":"a) Odsouhlasena dle PP \nb) Technologický postup schválen před zahájením prací \nc) Převzetí materiálu - kompletnost a kvalita dle PD - zápis v dodacím listu \nd) Certifikáty, atesty a prohlášení o shodě dle zákona č. 22/1997 Sb., Nařízení vlády č. 163/2002 Sb. Nebo Nařízení vlády č. 190/2002 Sb. \ne) ČSN 05 705 nebo ČSN EN 13067 - platné svářečské průkazy"},{"$f":"IF('Skrytý list se vzorci'!$C$4=TRUE,'Skrytý list se vzorci'!G21,0)","v":"Záznam o kontrole kvality, SD"}]
[null,null,{"$f":"IF('Skrytý list se vzorci'!$C$4=TRUE,'Skrytý list se vzorci'!B22,0)","v":2},{"$f":"IF('Skrytý list se vzorci'!$C$4=TRUE,'Skrytý list se vzorci'!C22,0)","v":"Příprava pro provádění prací"},{"$f":"IF('Skrytý list se vzorci'!$C$4=TRUE,'Skrytý list se vzorci'!E22,0)","v":"Přeměření 10ti míst 2m latí\nVizuální kontrola\nVšechny pasy"},{"$f":"IF('Skrytý list se vzorci'!$C$4=TRUE,'Skrytý list se vzorci'!D22,0)","v":"a) Kontrola rovinnosti a spádů\nb) Kvalita podkladů\nc) Povětrnostní podmínky\nd) Příprava a kontrola izolačních pasů\n\n"},null,{"$f":"IF('Skrytý list se vzorci'!$C$4=TRUE,'Skrytý list se vzorci'!F22,0)","v":"a) Rovinnosti 5mm/2m; spády - tolerance max. 25% od předepsaného spádu v PD \nb) Dostatečná tvarová pevnost a stálost, bez volných částí. Nerovnosti - poměr vzdálenosti k výšce sousední nerovnosti 1/20, max. 20 mm na 100 mm základny. Zaoblení hran rmin=200 mm  \nc) Teplota +5°C až 30°C; doporučená relativní vlhkost 60% \nd) Izolační pásy rozložit před aplikací, aby se vyrovnaly do požadovaného tvaru a aby při jejich instalaci nedocházelo k tvarové deformaci"},{"$f":"IF('Skrytý list se vzorci'!$C$4=TRUE,'Skrytý list se vzorci'!G22,0)","v":"Záznam o kontrole kvality, SD"},null,null," "]
[null,null,{"$f":"IF('Skrytý list se vzorci'!$C$4=TRUE,'Skrytý list se vzorci'!B23,0)","v":3},{"$f":"IF('Skrytý list se vzorci'!$C$4=TRUE,'Skrytý list se vzorci'!C23,0)","v":"Prostupy konstrukcemi"},{"$f":"IF('Skrytý list se vzorci'!$C$4=TRUE,'Skrytý list se vzorci'!E23,0)","v":"Přeměření"},{"$f":"IF('Skrytý list se vzorci'!$C$4=TRUE,'Skrytý list se vzorci'!D23,0)","v":"a) Poloha prostupů\nb) Světlý rozměr"},null,{"$f":"IF('Skrytý list se vzorci'!$C$4=TRUE,'Skrytý list se vzorci'!F23,0)","v":"a) ±25 mm\nb) Pravoúhlý otvor ±25 mm, kulatý otvor ±10 mm od průměru"},{"$f":"IF('Skrytý list se vzorci'!$C$4=TRUE,'Skrytý list se vzorci'!G23,0)","v":"Záznam o kontrole kvality"}]
[null,null,{"$f":"IF('Skrytý list se vzorci'!$C$4=TRUE,'Skrytý list se vzorci'!B24,0)","v":4},{"$f":"IF('Skrytý list se vzorci'!$C$4=TRUE,'Skrytý list se vzorci'!C24,0)","v":"Provádění izolace z asfaltových modifikovaných pasů"},{"$f":"IF('Skrytý list se vzorci'!$C$4=TRUE,'Skrytý list se vzorci'!E24,0)","v":"Vizuální kontrola\nPřeměření \nCelá plocha, každý kout, hrana, prostup, detail"},{"$f":"IF('Skrytý list se vzorci'!$C$4=TRUE,'Skrytý list se vzorci'!D24,0)","v":"a) Příprava podkladu\nb) Kladení a spojování pasů \nc) Kouty, hrany, prostupy a detaily \nd) Ochranné vrstvy"},null,{"$f":"IF('Skrytý list se vzorci'!$C$4=TRUE,'Skrytý list se vzorci'!F24,0)","v":"a) Penetrační nátěr - druh materiálu dle PD, proveden na všech betonových plochách  \nb) Materiál první i druhé vrstvy dle PD. Podélný přesah 10cm; příčný přesah 15cm; čelní pásy provedeny na vazbu; ve všech vrstvách shodný směr kladení od nejnižšího místa k vyššímu, tak aby přesahy nebyly proti spádu; boční přesahy vystřídany min. o 300 mm, neměly by docházet ke křížové važbě +. \nc) Provedeny dle technologického postupu \nd) Geotextílie - materiál v g/m2 dle PD"},{"$f":"IF('Skrytý list se vzorci'!$C$4=TRUE,'Skrytý list se vzorci'!G24,0)","v":"Záznam o kontrole kvality"}]
[null,null,{"$f":"IF('Skrytý list se vzorci'!$C$4=TRUE,'Skrytý list se vzorci'!B25,0)","v":5},{"$f":"IF('Skrytý list se vzorci'!$C$4=TRUE,'Skrytý list se vzorci'!C25,0)","v":"Kontrola provedení"},{"$f":"IF('Skrytý list se vzorci'!$C$4=TRUE,'Skrytý list se vzorci'!E25,0)","v":"Vizuální a mechanická kontrola všech svárů, včetně detailů\nJednotlivé vrstvy po sekcích"},{"$f":"IF('Skrytý list se vzorci'!$C$4=TRUE,'Skrytý list se vzorci'!D25,0)","v":"a) Kontrola svárů\nb) Technická prohlídka"},null,{"$f":"IF('Skrytý list se vzorci'!$C$4=TRUE,'Skrytý list se vzorci'!F25,0)","v":"a) Sváry pásů - tl. Výronku min. 5 mm v celé délce sváru, nesmí být upraveny stěrkou. Sváry koutů, hran, prostupů a detailů - upraveny stěrkou, nesmí být odkryta výztužná vložka. Mechanická - izolatérskou lžící (nesmí proniknout do sváru)\nb) Provedení ve shodě s PD a TP, vč. detailů; povrch není porušen; přitavení pásů plnoplošné, bez vln a výdutí - kontrola poklepem diagnostickou koulí (změna zvuku odezvy - dutý zvuk -> pás není plnoplošně nataven!)"},{"$f":"IF('Skrytý list se vzorci'!$C$4=TRUE,'Skrytý list se vzorci'!G25,0)","v":"Záznam o kontrole kvality"}]
[null,null,{"$f":"IF('Skrytý list se vzorci'!$C$4=TRUE,'Skrytý list se vzorci'!B26,0)","v":6},{"$f":"IF('Skrytý list se vzorci'!$C$4=TRUE,'Skrytý list se vzorci'!C26,0)","v":"Závěrečná výstupní kontrola kvality dokončené zakázky, nebo ucelené části zakázky"},{"$f":"IF('Skrytý list se vzorci'!$C$4=TRUE,'Skrytý list se vzorci'!E26,0)","v":"Kontrola celého rozsahu zakázky \nP - prohlídka a posouzení stavu\nD - porovnání s PD a TPř, Tpo\nN - porovnání s technickými normami\nA- atesty (prohlášení o shodě, certifikáty)"},{"$f":"IF('Skrytý list se vzorci'!$C$4=TRUE,'Skrytý list se vzorci'!D26,0)","v":"a) Závěrečná kontrola provedení \nb) Kontrola odstranění a vypořádání neshod zjištěných v průběhu realizace \nc) Kontrola dokladů o kvalitě zabudovaných materiálů"},null,{"$f":"IF('Skrytý list se vzorci'!$C$4=TRUE,'Skrytý list se vzorci'!F26,0)","v":"a) Revizní zprávy a měřící protokoly prokazující bezpečnou a spolehlivou funkci zařízení \nb) Požadavky PD, TPř, Tpo a odstranění neshod, soulas s normovými požadavky a odstranění neshod zjištěných v průběhu realizace \nc) Platné doklady o předepsané kvalitě materiálů"},{"$f":"IF('Skrytý list se vzorci'!$C$4=TRUE,'Skrytý list se vzorci'!G26,0)","v":"Protokol o výstupní kontrole zakázky nebo každou samostatně předávanou část"}]
[{"$f":"IF('Skrytý list se vzorci'!$B$4=TRUE,'Skrytý list se vzorci'!A27,0)","v":0}]
[null,{"$f":"IF('Skrytý list se vzorci'!$B$4=TRUE,'Skrytý list se vzorci'!A28,0)","v":0}]
[null,null,{"$f":"IF('Skrytý list se vzorci'!$B$4=TRUE,'Skrytý list se vzorci'!B27,0)","v":0},{"$f":"IF('Skrytý list se vzorci'!$B$4=TRUE,'Skrytý list se vzorci'!C27,0)","v":0},{"$f":"IF('Skrytý list se vzorci'!$B$4=TRUE,'Skrytý list se vzorci'!E27,0)","v":0},{"$f":"IF('Skrytý list se vzorci'!$B$4=TRUE,'Skrytý list se vzorci'!D27,0)","v":0},null,{"$f":"IF('Skrytý list se vzorci'!$B$4=TRUE,'Skrytý list se vzorci'!F27,0)","v":0},{"$f":"IF('Skrytý list se vzorci'!$B$4=TRUE,'Skrytý list se vzorci'!G27,0)","v":0}]
[null,null,{"$f":"IF('Skrytý list se vzorci'!$B$4=TRUE,'Skrytý list se vzorci'!B28,0)","v":0},{"$f":"IF('Skrytý list se vzorci'!$B$4=TRUE,'Skrytý list se vzorci'!C28,0)","v":0},{"$f":"IF('Skrytý list se vzorci'!$B$4=TRUE,'Skrytý list se vzorci'!E28,0)","v":0},{"$f":"IF('Skrytý list se vzorci'!$B$4=TRUE,'Skrytý list se vzorci'!D28,0)","v":0},null,{"$f":"IF('Skrytý list se vzorci'!$B$4=TRUE,'Skrytý list se vzorci'!F28,0)","v":0},{"$f":"IF('Skrytý list se vzorci'!$B$4=TRUE,'Skrytý list se vzorci'!G28,0)","v":0}]
[null,null,{"$f":"IF('Skrytý list se vzorci'!$B$4=TRUE,'Skrytý list se vzorci'!B29,0)","v":0},{"$f":"IF('Skrytý list se vzorci'!$B$4=TRUE,'Skrytý list se vzorci'!C29,0)","v":0},{"$f":"IF('Skrytý list se vzorci'!$B$4=TRUE,'Skrytý list se vzorci'!E29,0)","v":0},{"$f":"IF('Skrytý list se vzorci'!$B$4=TRUE,'Skrytý list se vzorci'!D29,0)","v":0},null,{"$f":"IF('Skrytý list se vzorci'!$B$4=TRUE,'Skrytý list se vzorci'!F29,0)","v":0},{"$f":"IF('Skrytý list se vzorci'!$B$4=TRUE,'Skrytý list se vzorci'!G29,0)","v":0}]
[null,null,{"$f":"IF('Skrytý list se vzorci'!$B$4=TRUE,'Skrytý list se vzorci'!B30,0)","v":0},{"$f":"IF('Skrytý list se vzorci'!$B$4=TRUE,'Skrytý list se vzorci'!C30,0)","v":0},{"$f":"IF('Skrytý list se vzorci'!$B$4=TRUE,'Skrytý list se vzorci'!E30,0)","v":0},{"$f":"IF('Skrytý list se vzorci'!$B$4=TRUE,'Skrytý list se vzorci'!D30,0)","v":0},null,{"$f":"IF('Skrytý list se vzorci'!$B$4=TRUE,'Skrytý list se vzorci'!F30,0)","v":0},{"$f":"IF('Skrytý list se vzorci'!$B$4=TRUE,'Skrytý list se vzorci'!G30,0)","v":0}]
[null,null,{"$f":"IF('Skrytý list se vzorci'!$B$4=TRUE,'Skrytý list se vzorci'!B31,0)","v":0},{"$f":"IF('Skrytý list se vzorci'!$B$4=TRUE,'Skrytý list se vzorci'!C31,0)","v":0},{"$f":"IF('Skrytý list se vzorci'!$B$4=TRUE,'Skrytý list se vzorci'!E31,0)","v":0},{"$f":"IF('Skrytý list se vzorci'!$B$4=TRUE,'Skrytý list se vzorci'!D31,0)","v":0},null,{"$f":"IF('Skrytý list se vzorci'!$B$4=TRUE,'Skrytý list se vzorci'!F31,0)","v":0},{"$f":"IF('Skrytý list se vzorci'!$B$4=TRUE,'Skrytý list se vzorci'!G31,0)","v":0}]
[null,null,{"$f":"IF('Skrytý list se vzorci'!$B$4=TRUE,'Skrytý list se vzorci'!B32,0)","v":0},{"$f":"IF('Skrytý list se vzorci'!$B$4=TRUE,'Skrytý list se vzorci'!C32,0)","v":0},{"$f":"IF('Skrytý list se vzorci'!$B$4=TRUE,'Skrytý list se vzorci'!E32,0)","v":0},{"$f":"IF('Skrytý list se vzorci'!$B$4=TRUE,'Skrytý list se vzorci'!D32,0)","v":0},null,{"$f":"IF('Skrytý list se vzorci'!$B$4=TRUE,'Skrytý list se vzorci'!F32,0)","v":0},{"$f":"IF('Skrytý list se vzorci'!$B$4=TRUE,'Skrytý list se vzorci'!G32,0)","v":0}]
[null,null,{"$f":"IF('Skrytý list se vzorci'!$B$4=TRUE,'Skrytý list se vzorci'!B33,0)","v":0},{"$f":"IF('Skrytý list se vzorci'!$B$4=TRUE,'Skrytý list se vzorci'!C33,0)","v":0},{"$f":"IF('Skrytý list se vzorci'!$B$4=TRUE,'Skrytý list se vzorci'!E33,0)","v":0},{"$f":"IF('Skrytý list se vzorci'!$B$4=TRUE,'Skrytý list se vzorci'!D33,0)","v":0},null,{"$f":"IF('Skrytý list se vzorci'!$B$4=TRUE,'Skrytý list se vzorci'!F33,0)","v":0},{"$f":"IF('Skrytý list se vzorci'!$B$4=TRUE,'Skrytý list se vzorci'!G33,0)","v":0}]
[{"$f":"IF('Skrytý list se vzorci'!B6=TRUE,'Skrytý list se vzorci'!A34,0)","v":"02_Materiál nosných konstrukcí \n"}]
[null,{"$f":"IF('Skrytý list se vzorci'!$B$6=TRUE,'Skrytý list se vzorci'!A35,0)","v":"Beton"}]
[null,null,{"$f":"IF('Skrytý list se vzorci'!$B$6=TRUE,'Skrytý list se vzorci'!B34,0)","v":1},{"$f":"IF('Skrytý list se vzorci'!$B$6=TRUE,'Skrytý list se vzorci'!C34,0)","v":"Příprava před zahájením prací"},{"$f":"IF('Skrytý list se vzorci'!$B$6=TRUE,'Skrytý list se vzorci'!E34,0)","v":"Vizuální kontrola\nKaždá dodávka\nKaždý doklad"},{"$f":"IF('Skrytý list se vzorci'!$B$6=TRUE,'Skrytý list se vzorci'!D34,0)","v":"a) Projektová dokumentace \nb) Technologický postup \nc) Kontrola vstupních materiálů \nd) Doložení kvality materiálů "},null,{"$f":"IF('Skrytý list se vzorci'!$B$6=TRUE,'Skrytý list se vzorci'!F34,0)","v":"a) Odsouhlasena objednatelem; platnost označena na výkresech\nb) Aktualizovaný TP )datum, podpis) je předán před zahájením prací\nc) Převzetí materiálu - kompletnost a kvalita dle PD - zápis v dodacím listu \nd) Certifikáty, atesty a prohlášení o shodě dle zákona č. 22/1997 Sb., Nařízení vlády č. 163/2002 Sb. Nebo Nařízení vlády č. 190/2002 Sb. "},{"$f":"IF('Skrytý list se vzorci'!$B$6=TRUE,'Skrytý list se vzorci'!G34,0)","v":"Záznam o kontrole kvality, SD"}]
[null,null,{"$f":"IF('Skrytý list se vzorci'!$B$6=TRUE,'Skrytý list se vzorci'!B35,0)","v":2},{"$f":"IF('Skrytý list se vzorci'!$B$6=TRUE,'Skrytý list se vzorci'!C35,0)","v":"Geodetické vytyčení"},{"$f":"IF('Skrytý list se vzorci'!$B$6=TRUE,'Skrytý list se vzorci'!E35,0)","v":"Přeměření"},{"$f":"IF('Skrytý list se vzorci'!$B$6=TRUE,'Skrytý list se vzorci'!D35,0)","v":"Vytyčení a osazení výškových bodů"},null,{"$f":"IF('Skrytý list se vzorci'!$B$6=TRUE,'Skrytý list se vzorci'!F35,0)","v":"Vytyčení dle PD a ČSN 730420\nVodorovnost montážní roviny max. ± 10mm."},{"$f":"IF('Skrytý list se vzorci'!$B$6=TRUE,'Skrytý list se vzorci'!G35,0)","v":"Geodetický protokol\nZáznam o kontrole kvality"}]
[null,null,{"$f":"IF('Skrytý list se vzorci'!$B$6=TRUE,'Skrytý list se vzorci'!B36,0)","v":3},{"$f":"IF('Skrytý list se vzorci'!$B$6=TRUE,'Skrytý list se vzorci'!C36,0)","v":"Příprava a práce před betonáží"},{"$f":"IF('Skrytý list se vzorci'!$B$6=TRUE,'Skrytý list se vzorci'!E36,0)","v":"Vizuální kontrola\nPřeměření\nKaždá sekce\n"},{"$f":"IF('Skrytý list se vzorci'!$B$6=TRUE,'Skrytý list se vzorci'!D36,0)","v":"a) Bednění\nb) Chráničky\nc) Výroba betonové směsi\nd) Konzistence betonové směsi"},null,{"$f":"IF('Skrytý list se vzorci'!$B$6=TRUE,'Skrytý list se vzorci'!F36,0)","v":"a) ČSN 73 0210 - 2; Délka, výška tolerance: ± 20mm, odklon od svislice ± 6mm; světlý rozměr otvorů ± 12mm. Bez zbytků materiálu a prachu, těsné, prostorově tuhé, proveden ochranný nástřik.\nb) Materiál, DN a osazení dle PD.\nc) Druh betonu C 25/30 - XC3  - Cl 0,4  - Dmax 22  - S4 - Certifikát betonárky, kvalita směsi dle  ČSN EN 13 670-1 ověření vyrobené betonové směsi krychelnými zkouškami. \nd) Pro konzistenci bude provedena zkouška sednutí kužele, která se provede ze vzorku směsi po vyprázdnění cca 0,3 m3 betonové směsi z autodomíchávače. Na rovnou plochu se položí podkladní deska, která se navlhčí a uložen íse na ni forma tvaru kužele, tato forma se plní po třetinách, každá vrstva se hutní 25 vpichy tyčí, druhá a třetí vrstva se hutní tak, aby vpichy zasahovali mírně do předchozí vrstvy. Po zarovnání se forma pomalým pohybem odstraní a ihned se změří rozdíl mezi formou a betonovým kuželem. Pro stupeň konzistence S4, ve které se dodává, musí být sednutí 160 - 210 mm. Zkoušku provést na vzorku z každé dodávky směsi.\nPro laboratorní zkoušky pevnosti betonu a průsaku tlakovou vodou bude odebrán beton na zkušební tělesa 150 x 150 mm\\."},{"$f":"IF('Skrytý list se vzorci'!$B$6=TRUE,'Skrytý list se vzorci'!G36,0)","v":"Záznam o kontrole kvality"}]
[null,null,{"$f":"IF('Skrytý list se vzorci'!$B$6=TRUE,'Skrytý list se vzorci'!B37,0)","v":4},{"$f":"IF('Skrytý list se vzorci'!$B$6=TRUE,'Skrytý list se vzorci'!C37,0)","v":"Výztuž"},{"$f":"IF('Skrytý list se vzorci'!$B$6=TRUE,'Skrytý list se vzorci'!E37,0)","v":"Vizuální kontrola\nPřeměření\nKaždá sekce\n"},{"$f":"IF('Skrytý list se vzorci'!$B$6=TRUE,'Skrytý list se vzorci'!D37,0)","v":"a) Správnost použitých profilů\nb) Poloha uložených prutů a styků výztuže\nc) Osazení distančních podlažek - krytí výztuže"},null,{"$f":"IF('Skrytý list se vzorci'!$B$6=TRUE,'Skrytý list se vzorci'!F37,0)","v":"Betonářská ocel B500B\na) Shoda s PD statiky.\nb) Max. odchylka polohy osy výztuže, vzdálenosti výztuže nebo posunu: ± 30mm.\nC) Dilatační podložky dle PD a TP. Krytí výztuže: Dle ČSN 73 12 01."},{"$f":"IF('Skrytý list se vzorci'!$B$6=TRUE,'Skrytý list se vzorci'!G37,0)","v":"Záznam o kontrole kvality"}]
[null,null,{"$f":"IF('Skrytý list se vzorci'!$B$6=TRUE,'Skrytý list se vzorci'!B38,0)","v":5},{"$f":"IF('Skrytý list se vzorci'!$B$6=TRUE,'Skrytý list se vzorci'!C38,0)","v":"Betonování"},{"$f":"IF('Skrytý list se vzorci'!$B$6=TRUE,'Skrytý list se vzorci'!E38,0)","v":"Vizuální kontrola\nPřeměření\nKaždá sekce\n"},{"$f":"IF('Skrytý list se vzorci'!$B$6=TRUE,'Skrytý list se vzorci'!D38,0)","v":"a) Teplotní podmínky\nb) Uložení betonové směsi\nc) Úprava povrchu"},null,{"$f":"IF('Skrytý list se vzorci'!$B$6=TRUE,'Skrytý list se vzorci'!F38,0)","v":"Betonáž je prováděna v souladu TP.\na) Teplota betonu min. +10°C, teplota povrchu min. +5°C\nb) Rovnoměrné a nepřerušované s vibrováním.\nC) Povrch pod stěrky; viditelné hrany skosené."},{"$f":"IF('Skrytý list se vzorci'!$B$6=TRUE,'Skrytý list se vzorci'!G38,0)","v":"Záznam o kontrole kvality"}]
[null,null,{"$f":"IF('Skrytý list se vzorci'!$B$6=TRUE,'Skrytý list se vzorci'!B39,0)","v":6},{"$f":"IF('Skrytý list se vzorci'!$B$6=TRUE,'Skrytý list se vzorci'!C39,0)","v":"Technická prohlídka a zkoušky"},{"$f":"IF('Skrytý list se vzorci'!$B$6=TRUE,'Skrytý list se vzorci'!E39,0)","v":"Vizuální kontrola Přeměření\nKaždá sekce"},{"$f":"IF('Skrytý list se vzorci'!$B$6=TRUE,'Skrytý list se vzorci'!D39,0)","v":"a) Vzhled povrchu\nb) Celkové rozměry a poloha\nc) Průřezy konstrukcí\nd) Svislost\ne) Místní rovinnost\nf) Pevnost betonu"},null,{"$f":"IF('Skrytý list se vzorci'!$B$6=TRUE,'Skrytý list se vzorci'!F39,0)","v":"ČSN 73 0210-2\na) Bez hnízd, trhlin a výstupků, pukliny max. do 5%\nplochy, stejnorodý povrch.\nb) Tab. A.1.1  25mm.\nc)Tab. A.1.2–stěny do 0,5m8mm; sloupy do 0,5m5mm.\nd)Tab. A.3.1–stěny do 2,5m5mm; sloupy do 2,5m4mm.\ne) Tab. A.2.2 – stěny 6mm/2m.\nf) Výsledky zkoušek po 28 dnech k datu betonáže."},{"$f":"IF('Skrytý list se vzorci'!$B$6=TRUE,'Skrytý list se vzorci'!G39,0)","v":"Záznam o kontrole kvality"}]
[null,null,{"$f":"IF('Skrytý list se vzorci'!$B$6=TRUE,'Skrytý list se vzorci'!B40,0)","v":7},{"$f":"IF('Skrytý list se vzorci'!$B$6=TRUE,'Skrytý list se vzorci'!C40,0)","v":"Geodetické zaměření\ntvaru a rozměrů"},{"$f":"IF('Skrytý list se vzorci'!$B$6=TRUE,'Skrytý list se vzorci'!E40,0)","v":"Přeměření\nCelá konstrukce"},{"$f":"IF('Skrytý list se vzorci'!$B$6=TRUE,'Skrytý list se vzorci'!D40,0)","v":"a) Zaměření skutečného provedení\nb) namátkové provedení kontroly\nmístní rovinnosti"},null,{"$f":"IF('Skrytý list se vzorci'!$B$6=TRUE,'Skrytý list se vzorci'!F40,0)","v":"ČSN 73 0210 – 1 tab. A2, A3\na) Rozměry dle skutečnosti.\nb) délka, výška tolerance  10 mm, odklon od svislice\ntolerance  5 mm."},{"$f":"IF('Skrytý list se vzorci'!$B$6=TRUE,'Skrytý list se vzorci'!G40,0)","v":"Záznam o kontrole\nkvality\nGeodetický protokol"}]
[null,null,{"$f":"IF('Skrytý list se vzorci'!$B$6=TRUE,'Skrytý list se vzorci'!B41,0)","v":8},{"$f":"IF('Skrytý list se vzorci'!$B$6=TRUE,'Skrytý list se vzorci'!C41,0)","v":"Závěrečná výstupní\nkontrola kvality\ndokončené zakázky,\nnebo ucelené části\nzakázky"},{"$f":"IF('Skrytý list se vzorci'!$B$6=TRUE,'Skrytý list se vzorci'!E41,0)","v":"Kontrola celého rozsahu zakázky\nP – prohlídka a posouzení stavu\nD – porovnání s PD a TPř, TPo\nN – porovnání s technickými\nnormami\nA – atesty (prohlášení o shodě,\ncertifikáty)"},{"$f":"IF('Skrytý list se vzorci'!$B$6=TRUE,'Skrytý list se vzorci'!D41,0)","v":"a) závěrečná kontrola provedení\nb) kontrola odstranění a vypořádání\nneshod zjištěných v průběhu\nrealizace\nc) kontrola dokladů o kvalitě\nzabudovaných materiálů"},null,{"$f":"IF('Skrytý list se vzorci'!$B$6=TRUE,'Skrytý list se vzorci'!F41,0)","v":"a) měřicí protokoly prokazující bezpečnou a spolehlivou\nfunkci zařízení\nb) požadavky PD, TPř, TPo a odstranění neshod,\nsoulad s normovými požadavky a odstranění neshod\nzjištěných v průběhu realizace\nc) platné doklady o předepsané kvalitě materiálů."},{"$f":"IF('Skrytý list se vzorci'!$B$6=TRUE,'Skrytý list se vzorci'!G41,0)","v":"Protokol o výstupní\nkontrole zakázky\nnebo\npro každou\nsamostatně\npředávanou část"}]
[{"$f":"IF('Skrytý list se vzorci'!$D$6=TRUE,'Skrytý list se vzorci'!A42,0)","v":0}]
[null,{"$f":"IF('Skrytý list se vzorci'!$D$6=TRUE,'Skrytý list se vzorci'!A43,0)","v":0}]
[null,null,{"$f":"IF('Skrytý list se vzorci'!$D$6=TRUE,'Skrytý list se vzorci'!B42,0)","v":0},{"$f":"IF('Skrytý list se vzorci'!$D$6=TRUE,'Skrytý list se vzorci'!C42,0)","v":0},{"$f":"IF('Skrytý list se vzorci'!$D$6=TRUE,'Skrytý list se vzorci'!E42,0)","v":0},{"$f":"IF('Skrytý list se vzorci'!$D$6=TRUE,'Skrytý list se vzorci'!D42,0)","v":0},null,{"$f":"IF('Skrytý list se vzorci'!$D$6=TRUE,'Skrytý list se vzorci'!F42,0)","v":0},{"$f":"IF('Skrytý list se vzorci'!$D$6=TRUE,'Skrytý list se vzorci'!G42,0)","v":0}]
[null,null,{"$f":"IF('Skrytý list se vzorci'!$D$6=TRUE,'Skrytý list se vzorci'!B43,0)","v":0},{"$f":"IF('Skrytý list se vzorci'!$D$6=TRUE,'Skrytý list se vzorci'!C43,0)","v":0},{"$f":"IF('Skrytý list se vzorci'!$D$6=TRUE,'Skrytý list se vzorci'!E43,0)","v":0},{"$f":"IF('Skrytý list se vzorci'!$D$6=TRUE,'Skrytý list se vzorci'!D43,0)","v":0},null,{"$f":"IF('Skrytý list se vzorci'!$D$6=TRUE,'Skrytý list se vzorci'!F43,0)","v":0},{"$f":"IF('Skrytý list se vzorci'!$D$6=TRUE,'Skrytý list se vzorci'!G43,0)","v":0}]
[null,null,{"$f":"IF('Skrytý list se vzorci'!$D$6=TRUE,'Skrytý list se vzorci'!B44,0)","v":0},{"$f":"IF('Skrytý list se vzorci'!$D$6=TRUE,'Skrytý list se vzorci'!C44,0)","v":0},{"$f":"IF('Skrytý list se vzorci'!$D$6=TRUE,'Skrytý list se vzorci'!E44,0)","v":0},{"$f":"IF('Skrytý list se vzorci'!$D$6=TRUE,'Skrytý list se vzorci'!D44,0)","v":0},null,{"$f":"IF('Skrytý list se vzorci'!$D$6=TRUE,'Skrytý list se vzorci'!F44,0)","v":0},{"$f":"IF('Skrytý list se vzorci'!$D$6=TRUE,'Skrytý list se vzorci'!G44,0)","v":0}]
[null,null,{"$f":"IF('Skrytý list se vzorci'!$D$6=TRUE,'Skrytý list se vzorci'!B45,0)","v":0},{"$f":"IF('Skrytý list se vzorci'!$D$6=TRUE,'Skrytý list se vzorci'!C45,0)","v":0},{"$f":"IF('Skrytý list se vzorci'!$D$6=TRUE,'Skrytý list se vzorci'!E45,0)","v":0},{"$f":"IF('Skrytý list se vzorci'!$D$6=TRUE,'Skrytý list se vzorci'!D45,0)","v":0},null,{"$f":"IF('Skrytý list se vzorci'!$D$6=TRUE,'Skrytý list se vzorci'!F45,0)","v":0},{"$f":"IF('Skrytý list se vzorci'!$D$6=TRUE,'Skrytý list se vzorci'!G45,0)","v":0}]
[null,null,{"$f":"IF('Skrytý list se vzorci'!$D$6=TRUE,'Skrytý list se vzorci'!B46,0)","v":0},{"$f":"IF('Skrytý list se vzorci'!$D$6=TRUE,'Skrytý list se vzorci'!C46,0)","v":0},{"$f":"IF('Skrytý list se vzorci'!$D$6=TRUE,'Skrytý list se vzorci'!E46,0)","v":0},{"$f":"IF('Skrytý list se vzorci'!$D$6=TRUE,'Skrytý list se vzorci'!D46,0)","v":0},null,{"$f":"IF('Skrytý list se vzorci'!$D$6=TRUE,'Skrytý list se vzorci'!F46,0)","v":0},{"$f":"IF('Skrytý list se vzorci'!$D$6=TRUE,'Skrytý list se vzorci'!G46,0)","v":0}]
[null,null,{"$f":"IF('Skrytý list se vzorci'!$D$6=TRUE,'Skrytý list se vzorci'!B47,0)","v":0},{"$f":"IF('Skrytý list se vzorci'!$D$6=TRUE,'Skrytý list se vzorci'!C47,0)","v":0},{"$f":"IF('Skrytý list se vzorci'!$D$6=TRUE,'Skrytý list se vzorci'!E47,0)","v":0},{"$f":"IF('Skrytý list se vzorci'!$D$6=TRUE,'Skrytý list se vzorci'!D47,0)","v":0},null,{"$f":"IF('Skrytý list se vzorci'!$D$6=TRUE,'Skrytý list se vzorci'!F47,0)","v":0},{"$f":"IF('Skrytý list se vzorci'!$D$6=TRUE,'Skrytý list se vzorci'!G47,0)","v":0}]
[null,null,{"$f":"IF('Skrytý list se vzorci'!$D$6=TRUE,'Skrytý list se vzorci'!B48,0)","v":0},{"$f":"IF('Skrytý list se vzorci'!$D$6=TRUE,'Skrytý list se vzorci'!C48,0)","v":0},{"$f":"IF('Skrytý list se vzorci'!$D$6=TRUE,'Skrytý list se vzorci'!E48,0)","v":0},{"$f":"IF('Skrytý list se vzorci'!$D$6=TRUE,'Skrytý list se vzorci'!D48,0)","v":0},null,{"$f":"IF('Skrytý list se vzorci'!$D$6=TRUE,'Skrytý list se vzorci'!F48,0)","v":0},{"$f":"IF('Skrytý list se vzorci'!$D$6=TRUE,'Skrytý list se vzorci'!G48,0)","v":0}]
[{"$f":"IF('Skrytý list se vzorci'!C6=TRUE,'Skrytý list se vzorci'!A49,0)","v":0}]
[null,{"$f":"IF('Skrytý list se vzorci'!C6=TRUE,'Skrytý list se vzorci'!A50,0)","v":0}]
[null,null,{"$f":"IF('Skrytý list se vzorci'!$C$6=TRUE,'Skrytý list se vzorci'!B49,0)","v":0},{"$f":"IF('Skrytý list se vzorci'!$C$6=TRUE,'Skrytý list se vzorci'!C49,0)","v":0},{"$f":"IF('Skrytý list se vzorci'!$C$6=TRUE,'Skrytý list se vzorci'!E49,0)","v":0},{"$f":"IF('Skrytý list se vzorci'!$C$6=TRUE,'Skrytý list se vzorci'!D49,0)","v":0},null,{"$f":"IF('Skrytý list se vzorci'!$C$6=TRUE,'Skrytý list se vzorci'!F49,0)","v":0},{"$f":"IF('Skrytý list se vzorci'!$C$6=TRUE,'Skrytý list se vzorci'!G49,0)","v":0}]
[null,null,{"$f":"IF('Skrytý list se vzorci'!$C$6=TRUE,'Skrytý list se vzorci'!B50,0)","v":0},{"$f":"IF('Skrytý list se vzorci'!$C$6=TRUE,'Skrytý list se vzorci'!C50,0)","v":0},{"$f":"IF('Skrytý list se vzorci'!$C$6=TRUE,'Skrytý list se vzorci'!E50,0)","v":0},{"$f":"IF('Skrytý list se vzorci'!$C$6=TRUE,'Skrytý list se vzorci'!D50,0)","v":0},null,{"$f":"IF('Skrytý list se vzorci'!$C$6=TRUE,'Skrytý list se vzorci'!F50,0)","v":0},{"$f":"IF('Skrytý list se vzorci'!$C$6=TRUE,'Skrytý list se vzorci'!G50,0)","v":0}]
[null,null,{"$f":"IF('Skrytý list se vzorci'!$C$6=TRUE,'Skrytý list se vzorci'!B51,0)","v":0},{"$f":"IF('Skrytý list se vzorci'!$C$6=TRUE,'Skrytý list se vzorci'!C51,0)","v":0},{"$f":"IF('Skrytý list se vzorci'!$C$6=TRUE,'Skrytý list se vzorci'!E51,0)","v":0},{"$f":"IF('Skrytý list se vzorci'!$C$6=TRUE,'Skrytý list se vzorci'!D51,0)","v":0},null,{"$f":"IF('Skrytý list se vzorci'!$C$6=TRUE,'Skrytý list se vzorci'!F51,0)","v":0},{"$f":"IF('Skrytý list se vzorci'!$C$6=TRUE,'Skrytý list se vzorci'!G51,0)","v":0}]
[null,null,{"$f":"IF('Skrytý list se vzorci'!$C$6=TRUE,'Skrytý list se vzorci'!B52,0)","v":0},{"$f":"IF('Skrytý list se vzorci'!$C$6=TRUE,'Skrytý list se vzorci'!C52,0)","v":0},{"$f":"IF('Skrytý list se vzorci'!$C$6=TRUE,'Skrytý list se vzorci'!E52,0)","v":0},{"$f":"IF('Skrytý list se vzorci'!$C$6=TRUE,'Skrytý list se vzorci'!D52,0)","v":0},null,{"$f":"IF('Skrytý list se vzorci'!$C$6=TRUE,'Skrytý list se vzorci'!F52,0)","v":0},{"$f":"IF('Skrytý list se vzorci'!$C$6=TRUE,'Skrytý list se vzorci'!G52,0)","v":0}]
[null,null,{"$f":"IF('Skrytý list se vzorci'!$C$6=TRUE,'Skrytý list se vzorci'!B53,0)","v":0},{"$f":"IF('Skrytý list se vzorci'!$C$6=TRUE,'Skrytý list se vzorci'!C53,0)","v":0},{"$f":"IF('Skrytý list se vzorci'!$C$6=TRUE,'Skrytý list se vzorci'!E53,0)","v":0},{"$f":"IF('Skrytý list se vzorci'!$C$6=TRUE,'Skrytý list se vzorci'!D53,0)","v":0},null,{"$f":"IF('Skrytý list se vzorci'!$C$6=TRUE,'Skrytý list se vzorci'!F53,0)","v":0},{"$f":"IF('Skrytý list se vzorci'!$C$6=TRUE,'Skrytý list se vzorci'!G53,0)","v":0}]
[null,null,{"$f":"IF('Skrytý list se vzorci'!$C$6=TRUE,'Skrytý list se vzorci'!B54,0)","v":0},{"$f":"IF('Skrytý list se vzorci'!$C$6=TRUE,'Skrytý list se vzorci'!C54,0)","v":0},{"$f":"IF('Skrytý list se vzorci'!$C$6=TRUE,'Skrytý list se vzorci'!E54,0)","v":0},{"$f":"IF('Skrytý list se vzorci'!$C$6=TRUE,'Skrytý list se vzorci'!D54,0)","v":0},null,{"$f":"IF('Skrytý list se vzorci'!$C$6=TRUE,'Skrytý list se vzorci'!F54,0)","v":0},{"$f":"IF('Skrytý list se vzorci'!$C$6=TRUE,'Skrytý list se vzorci'!G54,0)","v":0}]
[null,null,{"$f":"IF('Skrytý list se vzorci'!$C$6=TRUE,'Skrytý list se vzorci'!B55,0)","v":0},{"$f":"IF('Skrytý list se vzorci'!$C$6=TRUE,'Skrytý list se vzorci'!C55,0)","v":0},{"$f":"IF('Skrytý list se vzorci'!$C$6=TRUE,'Skrytý list se vzorci'!E55,0)","v":0},{"$f":"IF('Skrytý list se vzorci'!$C$6=TRUE,'Skrytý list se vzorci'!D55,0)","v":0},null,{"$f":"IF('Skrytý list se vzorci'!$C$6=TRUE,'Skrytý list se vzorci'!F55,0)","v":0},{"$f":"IF('Skrytý list se vzorci'!$C$6=TRUE,'Skrytý list se vzorci'!G55,0)","v":0}]
[null,null,{"$f":"IF('Skrytý list se vzorci'!$C$6=TRUE,'Skrytý list se vzorci'!B56,0)","v":0},{"$f":"IF('Skrytý list se vzorci'!$C$6=TRUE,'Skrytý list se vzorci'!C56,0)","v":0},{"$f":"IF('Skrytý list se vzorci'!$C$6=TRUE,'Skrytý list se vzorci'!E56,0)","v":0},{"$f":"IF('Skrytý list se vzorci'!$C$6=TRUE,'Skrytý list se vzorci'!D56,0)","v":0},null,{"$f":"IF('Skrytý list se vzorci'!$C$6=TRUE,'Skrytý list se vzorci'!F56,0)","v":0},{"$f":"IF('Skrytý list se vzorci'!$C$6=TRUE,'Skrytý list se vzorci'!G56,0)","v":0}]
[{"$f":"IF('Skrytý list se vzorci'!$B$8=TRUE,'Skrytý list se vzorci'!A57,0)","v":0}]
[null,{"$f":"IF('Skrytý list se vzorci'!$B$8=TRUE,'Skrytý list se vzorci'!A58,0)","v":0}]
[null,null,{"$f":"IF('Skrytý list se vzorci'!$B$8=TRUE,'Skrytý list se vzorci'!B57,0)","v":0},{"$f":"IF('Skrytý list se vzorci'!$B$8=TRUE,'Skrytý list se vzorci'!C57,0)","v":0},{"$f":"IF('Skrytý list se vzorci'!$B$8=TRUE,'Skrytý list se vzorci'!E57,0)","v":0},{"$f":"IF('Skrytý list se vzorci'!$B$8=TRUE,'Skrytý list se vzorci'!D57,0)","v":0},null,{"$f":"IF('Skrytý list se vzorci'!$B$8=TRUE,'Skrytý list se vzorci'!F57,0)","v":0},{"$f":"IF('Skrytý list se vzorci'!$B$8=TRUE,'Skrytý list se vzorci'!G57,0)","v":0}]
[null,null,{"$f":"IF('Skrytý list se vzorci'!$B$8=TRUE,'Skrytý list se vzorci'!B58,0)","v":0},{"$f":"IF('Skrytý list se vzorci'!$B$8=TRUE,'Skrytý list se vzorci'!C58,0)","v":0},{"$f":"IF('Skrytý list se vzorci'!$B$8=TRUE,'Skrytý list se vzorci'!E58,0)","v":0},{"$f":"IF('Skrytý list se vzorci'!$B$8=TRUE,'Skrytý list se vzorci'!D58,0)","v":0},null,{"$f":"IF('Skrytý list se vzorci'!$B$8=TRUE,'Skrytý list se vzorci'!F58,0)","v":0},{"$f":"IF('Skrytý list se vzorci'!$B$8=TRUE,'Skrytý list se vzorci'!G58,0)","v":0}]
[null,null,{"$f":"IF('Skrytý list se vzorci'!$B$8=TRUE,'Skrytý list se vzorci'!B59,0)","v":0},{"$f":"IF('Skrytý list se vzorci'!$B$8=TRUE,'Skrytý list se vzorci'!C59,0)","v":0},{"$f":"IF('Skrytý list se vzorci'!$B$8=TRUE,'Skrytý list se vzorci'!E59,0)","v":0},{"$f":"IF('Skrytý list se vzorci'!$B$8=TRUE,'Skrytý list se vzorci'!D59,0)","v":0},null,{"$f":"IF('Skrytý list se vzorci'!$B$8=TRUE,'Skrytý list se vzorci'!F59,0)","v":0},{"$f":"IF('Skrytý list se vzorci'!$B$8=TRUE,'Skrytý list se vzorci'!G59,0)","v":0}]
[null,null,{"$f":"IF('Skrytý list se vzorci'!$B$8=TRUE,'Skrytý list se vzorci'!B60,0)","v":0},{"$f":"IF('Skrytý list se vzorci'!$B$8=TRUE,'Skrytý list se vzorci'!C60,0)","v":0},{"$f":"IF('Skrytý list se vzorci'!$B$8=TRUE,'Skrytý list se vzorci'!E60,0)","v":0},{"$f":"IF('Skrytý list se vzorci'!$B$8=TRUE,'Skrytý list se vzorci'!D60,0)","v":0},null,{"$f":"IF('Skrytý list se vzorci'!$B$8=TRUE,'Skrytý list se vzorci'!F60,0)","v":0},{"$f":"IF('Skrytý list se vzorci'!$B$8=TRUE,'Skrytý list se vzorci'!G60,0)","v":0}]
[null,null,{"$f":"IF('Skrytý list se vzorci'!$B$8=TRUE,'Skrytý list se vzorci'!B61,0)","v":0},{"$f":"IF('Skrytý list se vzorci'!$B$8=TRUE,'Skrytý list se vzorci'!C61,0)","v":0},{"$f":"IF('Skrytý list se vzorci'!$B$8=TRUE,'Skrytý list se vzorci'!E61,0)","v":0},{"$f":"IF('Skrytý list se vzorci'!$B$8=TRUE,'Skrytý list se vzorci'!D61,0)","v":0},null,{"$f":"IF('Skrytý list se vzorci'!$B$8=TRUE,'Skrytý list se vzorci'!F61,0)","v":0},{"$f":"IF('Skrytý list se vzorci'!$B$8=TRUE,'Skrytý list se vzorci'!G61,0)","v":0}]
[null,null,{"$f":"IF('Skrytý list se vzorci'!$B$8=TRUE,'Skrytý list se vzorci'!B62,0)","v":0},{"$f":"IF('Skrytý list se vzorci'!$B$8=TRUE,'Skrytý list se vzorci'!C62,0)","v":0},{"$f":"IF('Skrytý list se vzorci'!$B$8=TRUE,'Skrytý list se vzorci'!E62,0)","v":0},{"$f":"IF('Skrytý list se vzorci'!$B$8=TRUE,'Skrytý list se vzorci'!D62,0)","v":0},null,{"$f":"IF('Skrytý list se vzorci'!$B$8=TRUE,'Skrytý list se vzorci'!F62,0)","v":0},{"$f":"IF('Skrytý list se vzorci'!$B$8=TRUE,'Skrytý list se vzorci'!G62,0)","v":0}]
[null,null,{"$f":"IF('Skrytý list se vzorci'!$B$8=TRUE,'Skrytý list se vzorci'!B63,0)","v":0},{"$f":"IF('Skrytý list se vzorci'!$B$8=TRUE,'Skrytý list se vzorci'!C63,0)","v":0},{"$f":"IF('Skrytý list se vzorci'!$B$8=TRUE,'Skrytý list se vzorci'!E63,0)","v":0},{"$f":"IF('Skrytý list se vzorci'!$B$8=TRUE,'Skrytý list se vzorci'!D63,0)","v":0},null,{"$f":"IF('Skrytý list se vzorci'!$B$8=TRUE,'Skrytý list se vzorci'!F63,0)","v":0},{"$f":"IF('Skrytý list se vzorci'!$B$8=TRUE,'Skrytý list se vzorci'!G63,0)","v":0}]
[{"$f":"IF('Skrytý list se vzorci'!$C$8=TRUE,'Skrytý list se vzorci'!A64,0)","v":"Typ střechy"}]
[null,{"$f":"IF('Skrytý list se vzorci'!$C$8=TRUE,'Skrytý list se vzorci'!A65,0)","v":"Šikmá střecha"}]
[null,null,{"$f":"IF('Skrytý list se vzorci'!$C$8=TRUE,'Skrytý list se vzorci'!B64,0)","v":1},{"$f":"IF('Skrytý list se vzorci'!$C$8=TRUE,'Skrytý list se vzorci'!C64,0)","v":"Kontrola PD a jiných dokumentů"},{"$f":"IF('Skrytý list se vzorci'!$C$8=TRUE,'Skrytý list se vzorci'!E64,0)","v":"Vizuální kontrola\nKaždý doklad\nKaždá dodávka"},{"$f":"IF('Skrytý list se vzorci'!$C$8=TRUE,'Skrytý list se vzorci'!D64,0)","v":"a) Projektová dokumentace\nb) Technologický postup\nc) Kontrola vstupních materiálů\nd) Doložení kvality materiálů"},null,{"$f":"IF('Skrytý list se vzorci'!$C$8=TRUE,'Skrytý list se vzorci'!F64,0)","v":"Kontroluje se úplnost a rozsah dokumentace podle vyhl. 499/2006Sb. a ČSN EN 1090-2+A1. Kontroluje se shoda výrobní dokumentace s objednávkou dle PD."},{"$f":"IF('Skrytý list se vzorci'!$C$8=TRUE,'Skrytý list se vzorci'!G64,0)","v":"Záznam o kontrole\nkvality, SD"}]
[null,null,{"$f":"IF('Skrytý list se vzorci'!$C$8=TRUE,'Skrytý list se vzorci'!B65,0)","v":2},{"$f":"IF('Skrytý list se vzorci'!$C$8=TRUE,'Skrytý list se vzorci'!C65,0)","v":"Příprava pro provádění prací"},{"$f":"IF('Skrytý list se vzorci'!$C$8=TRUE,'Skrytý list se vzorci'!E65,0)","v":"Vizuální kontrola\nPřeměření\nKaždá dodávka\n"},{"$f":"IF('Skrytý list se vzorci'!$C$8=TRUE,'Skrytý list se vzorci'!D65,0)","v":"a) pracoviště\nb) vstupních materiálů\nc) uskladnění\nd) klimatické podmínky"},null,{"$f":"IF('Skrytý list se vzorci'!$C$8=TRUE,'Skrytý list se vzorci'!F65,0)","v":"a) Zkontrolovat hlavně strop, štítové stěny provedení věnce a atiku - základní rozměry střechy, dokončenost a úplnost konstrukcí, výšku podezdívky. Dále se kontroluje konstrukce podkladu - povrch nesmí být výrazně hrubý, s ostrými hranami a výstupky. Zbaven volných nečistot. Na povrchu nesmí být stojící voda, led nebo sníh. Povrch stropní konstrukce by měl vykazovat mezní výchylku nejvýše 5 mm na 2 metrové lati. Dovolené odchylky rovnoběžnosti: ±10 mm (do 4m); ±12 mm (od 4 m do 8 m); ±20 mm (od 8m do 16 m).\nb) Kontroluje se druh, rozměry, množství a jakost dodaných ocelových a dřevěných prvků a to dle dodacích listů, kusovníků z výroby a PD.\nc) Materiál nesmí být v průběhu skladování ani při ukládání na skládku znehodnocen, poškozen nebo jiným způsobem snížena jeho kvalita a jakost. Skládka je určena dle výkresu zařízení staveniště. Skladování materiálů dle podmínek výrobce, materiál chráněn před povětrnostními vlivy. Jsou zřízeny zamykatelné sklady pro drobný materiál\nd) Kontroluje se stav klimatických podmínek při příchodu na stavbu, případně před započetím prací a provádí záznam každý den do SD. Technologický předpis stanovuje, za jakých podmínek není možné pracovat nebo jaká opatření je nutno provést, aby se pokračovat mohlo. Za tyto podmínky se považuje:\n- bouře, déšť, sněžení nebo tvoření námrazy\n- čerstvý vítr o rychlosti nad 11 m.s-1\n- dohlednost v místě práce menší než 30 m\n- teplota prostředí během provádění prací nižší než -10 °C "},{"$f":"IF('Skrytý list se vzorci'!$C$8=TRUE,'Skrytý list se vzorci'!G65,0)","v":"Záznam o kontrole kvality, zápis ve stavebním deníku"}]
[null,null,{"$f":"IF('Skrytý list se vzorci'!$C$8=TRUE,'Skrytý list se vzorci'!B66,0)","v":3},{"$f":"IF('Skrytý list se vzorci'!$C$8=TRUE,'Skrytý list se vzorci'!C66,0)","v":"Kontrola prvků krovu"},{"$f":"IF('Skrytý list se vzorci'!$C$8=TRUE,'Skrytý list se vzorci'!E66,0)","v":"Vizuální kontrola\nPřeměření\nKaždý prvek"},{"$f":"IF('Skrytý list se vzorci'!$C$8=TRUE,'Skrytý list se vzorci'!D66,0)","v":"a) pozednice\nb) sloupků\nc) vaznice\nd) krokve a kleštiny"},null,{"$f":"IF('Skrytý list se vzorci'!$C$8=TRUE,'Skrytý list se vzorci'!F66,0)","v":"a) Kontroluje se správné vyvrtání otvorů do osazovaných pozednic podle hloubky a vzdáleností závitových tyčí. Následná kontrola provedení osazení pozednic a s tím spojená rovinnost. Odchylka maximálně 5mm na 2 metrech. Kontroluje se správné utažení matek a použitý materiál a následné uřezání přesahu závitových tyčí.\nb) Kontroluje se přesnost osazení ocelových sloupků na připojovací plechy patek dle projektové dokumentace. Odchylka sloupků musí být maximálně 2mm ve vertikálním směru. Svislost se kontroluje pomocí trubicové libely. Vychýlení ocelových vaznic v \nhorizontálním směru musí být maximálně 10mm po délce vaznice.\nc) Kontroluje se přesnost osazení ocelových vaznic na sloupky dle projektové dokumentace. Odchylka vaznic musí být maximálně 2mm ve vertikálním směru. Kontroluje se kvalita, délka a tloušťka použitých koutových svarů. Svary kontrolujeme vizuálně a musíme dát pozor, aby nebyly ve svarech trhliny, dutiny, neprůvary a aby se neobjevovali vměstky.\nd) Kontroluje se provedení osedlání krokví na pozednice a vaznice. Průřez osedlání nesmí být více jak 1/3 výšky krokví a následné prošroubování správnými šrouby.\nKontrolujeme správnou osovou vzdálenost mezi krokvemi, která nesmí být větší než 1200mm. Vzdálenost přesahu za osedláním na pozednici musí být v maximální vzdálenosti podle projektové dokumentace. Dáváme pozor, aby vzdálenosti mezi středovými vaznice a vrcholovou vaznicí nebyl vetší než dle výkresové dokumentace. Kontrolujeme, aby minimální vzdálenost krokví od komínového tělesa nebyla menší než 50mm. Kontrolujeme jestli jsou správně osazeny kleštiny na sloupky a vaznice."},{"$f":"IF('Skrytý list se vzorci'!$C$8=TRUE,'Skrytý list se vzorci'!G66,0)","v":"Záznam o kontrole kvality, zápis ve stavebním deníku"}]
[null,null,{"$f":"IF('Skrytý list se vzorci'!$C$8=TRUE,'Skrytý list se vzorci'!B67,0)","v":4},{"$f":"IF('Skrytý list se vzorci'!$C$8=TRUE,'Skrytý list se vzorci'!C67,0)","v":"Kontrola tuhosti"},{"$f":"IF('Skrytý list se vzorci'!$C$8=TRUE,'Skrytý list se vzorci'!E67,0)","v":"Vizuální kontrola\nKaždý spoj"},{"$f":"IF('Skrytý list se vzorci'!$C$8=TRUE,'Skrytý list se vzorci'!D67,0)","v":"Kontrola spojů"},null,{"$f":"IF('Skrytý list se vzorci'!$C$8=TRUE,'Skrytý list se vzorci'!F67,0)","v":"Kontroluje se správné dotažení všech spojovacích šroubů. U hřebíkových spojů se kontroluje správné zaražení hřebíku do dřeva. Hlava zaraženého hřebíku musí být v jedné rovině s rovinou dřeva. Svorníky musí být utaženy, tak aby spojovaný materiál spolu lícoval a nedocházelo k prokluzování materiálu. V případě výrazného vysychání dřeva se potom dle potřeby dotahují. Spoje všech bednících prvků musí být na sráz vedlejších desek a pomocí správných hřebíků se musí přichytit do krokví."},{"$f":"IF('Skrytý list se vzorci'!$C$8=TRUE,'Skrytý list se vzorci'!G67,0)","v":"Záznam o kontrole kvality, zápis ve stavebním deníku"}]
[null,null,{"$f":"IF('Skrytý list se vzorci'!$C$8=TRUE,'Skrytý list se vzorci'!B68,0)","v":5},{"$f":"IF('Skrytý list se vzorci'!$C$8=TRUE,'Skrytý list se vzorci'!C68,0)","v":"Provedení hydroizolace"},{"$f":"IF('Skrytý list se vzorci'!$C$8=TRUE,'Skrytý list se vzorci'!E68,0)","v":"Vizuální kontrola\nPřeměření\nKaždý prvek"},{"$f":"IF('Skrytý list se vzorci'!$C$8=TRUE,'Skrytý list se vzorci'!D68,0)","v":"Kontrola pásů"},null,{"$f":"IF('Skrytý list se vzorci'!$C$8=TRUE,'Skrytý list se vzorci'!F68,0)","v":"Kontroluje se zejména rozvrstvení pásů izolace a jejich následné překrytí, které by mělo být dle přesahu 150mm. Odchylka maximálně 50mm. Kontrolujeme že tmel byl nanášen v pruzích o průměru 3-5mm na okraj folie. Zajištění dostatečného přesahu folií s ohledem na dilatace. Tloušťka lepidla ve spojích 1-2mm a minimální šířka 25mm. Provádění při teplotě +5°C až +50°C (PE folie)"},{"$f":"IF('Skrytý list se vzorci'!$C$8=TRUE,'Skrytý list se vzorci'!G68,0)","v":"Záznam o kontrole kvality, zápis ve stavebním deníku"}]
[null,null,{"$f":"IF('Skrytý list se vzorci'!$C$8=TRUE,'Skrytý list se vzorci'!B69,0)","v":6},{"$f":"IF('Skrytý list se vzorci'!$C$8=TRUE,'Skrytý list se vzorci'!C69,0)","v":"Kontrola konstrukce střechy"},{"$f":"IF('Skrytý list se vzorci'!$C$8=TRUE,'Skrytý list se vzorci'!E69,0)","v":"Vizuální kontrola\nPřeměření\nKaždý prvek"},{"$f":"IF('Skrytý list se vzorci'!$C$8=TRUE,'Skrytý list se vzorci'!D69,0)","v":"a) laťování\nb) Klempířské prvky\nc) střešní krytina"},null,{"$f":"IF('Skrytý list se vzorci'!$C$8=TRUE,'Skrytý list se vzorci'!F69,0)","v":"a) Kontrolují se osové vzdálenosti mezi kontra-latěmi, které musí odpovídat délce mezi krokvemi. Rozteče mezi latěmi musí být do vzdálenosti maximálně 340mm. Kontrola přibití, které musí být minimálně ve vzdálenosti 750mm pro dva hřebíky. Kontroluje se kvalita provedení, kdy se musí zachovat rovinnost, nesmí nic vyčnívat z roviny bednění. Kontrola laťování se provádí pomocí měření, maximální odchylka je 10mm. Kontrola rovinnosti se provádí pomocí provázku. Kontroluje se správnost přibití do kontra-latí pomocí hřebíků, které nesmí vyčnívat a musí lícovat s rovinou přibití.\nb) Kontrola žlabových háků, přibití min. na dva hřebíky 120 mm a max. 60 mm od sebe. Kontroluje se vzdálenost žlabových háků podle projektové dokumentace. Kontrola okapního žlabu překrytí musí být minimálně 150mm, správné otvory pro trouby, jejich správný průměr, spojení prvků. Musíme kontrolovat správný spád pro odtok vody, který musí být minimálně 0,5%. Kontrola oplechování komína se provádí pro obě vrstvy, napřed se musí zkontrolovat první vrstva, jestli je lemování spojeno se střechou a druhá vrstva, aby byla spojena s komínem, aby nedocházelo k pronikání vody do konstrukce vlivem sedání střešní konstrukce a následným vznikem mezer. Překrytí musí být minimálně 150mm.\nc) Kontroluje se správnost pokládky jednotlivých střešních tašek.Správné kotvení šrouby a jejich dotažení krytiny dle výrobce.Kontrolujeme správné uložení hřebenáčů, zejména výšku držáků pro hřebenové latě minimálně 2 vruty v každém držáku, jejich přišroubování do držáků. "},{"$f":"IF('Skrytý list se vzorci'!$C$8=TRUE,'Skrytý list se vzorci'!G69,0)","v":"Záznam o kontrole kvality, zápis ve stavebním deníku"}]
[null,null,{"$f":"IF('Skrytý list se vzorci'!$C$8=TRUE,'Skrytý list se vzorci'!B70,0)","v":7},{"$f":"IF('Skrytý list se vzorci'!$C$8=TRUE,'Skrytý list se vzorci'!C70,0)","v":"Výstupní kontrola"},{"$f":"IF('Skrytý list se vzorci'!$C$8=TRUE,'Skrytý list se vzorci'!E70,0)","v":"Vizuální kontrola\nPřeměřením\nCelá střecha"},{"$f":"IF('Skrytý list se vzorci'!$C$8=TRUE,'Skrytý list se vzorci'!D70,0)","v":"Kontrola rozměrů a tvaru hotové konstrukce"},null,{"$f":"IF('Skrytý list se vzorci'!$C$8=TRUE,'Skrytý list se vzorci'!F70,0)","v":"Kontroluje se správnost a celistvost provedení všech klempířských, pokrývačských, zámečnických a tesařských prací."},{"$f":"IF('Skrytý list se vzorci'!$C$8=TRUE,'Skrytý list se vzorci'!G70,0)","v":"Záznam o kontrole kvality, zápis ve stavebním deníku"}]
[{"$f":"IF('Skrytý list se vzorci'!$B$10=TRUE,'Skrytý list se vzorci'!A71,0)","v":"04_Technologie provádění výplňových konstrukcí\n"}]
[null,{"$f":"IF('Skrytý list se vzorci'!$B$10=TRUE,'Skrytý list se vzorci'!A72,0)","v":"Zděnné"}]
[null,null,{"$f":"IF('Skrytý list se vzorci'!$B$10=TRUE,'Skrytý list se vzorci'!B71,0)","v":1},{"$f":"IF('Skrytý list se vzorci'!$B$10=TRUE,'Skrytý list se vzorci'!C71,0)","v":"Příprava před zahájením\nprací"},{"$f":"IF('Skrytý list se vzorci'!$B$10=TRUE,'Skrytý list se vzorci'!E71,0)","v":"Vizuální kontrola\nKaždý doklad\nKaždá dodávka"},{"$f":"IF('Skrytý list se vzorci'!$B$10=TRUE,'Skrytý list se vzorci'!D71,0)","v":"a) Projektová dokumentace\nb) Technologický postup\nc) Kontrola vstupních materiálů\nd) Doložení kvality materiálů"},null,{"$f":"IF('Skrytý list se vzorci'!$B$10=TRUE,'Skrytý list se vzorci'!F71,0)","v":"a) Odsouhlasena objednatelem; platnost označena na\nvýkresech\nb Aktualizovaný TP (datum, podpis) je předán před\nzahájením prací.\nc) Převzetí materiálů - kompletnost a kvalita dle PD –\nzápis přímo na dodacím listu\nd) Certifikáty, atesty a Prohlášení o shodě dle NV\nč.163/2002 Sb a Zák. č.22/1997/Sb."},{"$f":"IF('Skrytý list se vzorci'!$B$10=TRUE,'Skrytý list se vzorci'!G71,0)","v":"Záznam o kontrole\nkvality, SD"}]
[null,null,{"$f":"IF('Skrytý list se vzorci'!$B$10=TRUE,'Skrytý list se vzorci'!B72,0)","v":2},{"$f":"IF('Skrytý list se vzorci'!$B$10=TRUE,'Skrytý list se vzorci'!C72,0)","v":"Příprava a práce před\nzděním"},{"$f":"IF('Skrytý list se vzorci'!$B$10=TRUE,'Skrytý list se vzorci'!E72,0)","v":"Vizuální kontrola\nPřeměření\nKaždé podlaží nebo sekce"},{"$f":"IF('Skrytý list se vzorci'!$B$10=TRUE,'Skrytý list se vzorci'!D72,0)","v":"a) Doprava a skladování\nb) Rovinnost podkladu\nc) Připravenost podkladu\nd) Vytyčení a založení zdiva"},null,{"$f":"IF('Skrytý list se vzorci'!$B$10=TRUE,'Skrytý list se vzorci'!F72,0)","v":"ČSN EN 1996-2, ČSN 73 0205\na) Zdící prvky nejsou poškozeny, skladová plocha rovná\na odvodněná\nb) Dle TP pro cihly broušené\nc) Povrch bez prachu a ropných látek, dostatečně\nprovlhčený\nd) ČSN 73 0205\nDle TP výrobce zdícího materiálu.\nU cihel broušených dbát zvýšené pozornosti\nvýškovému založení, rovinnosti."},{"$f":"IF('Skrytý list se vzorci'!$B$10=TRUE,'Skrytý list se vzorci'!G72,0)","v":"Záznam o kontrole\nkvality"}]
[null,null,{"$f":"IF('Skrytý list se vzorci'!$B$10=TRUE,'Skrytý list se vzorci'!B73,0)","v":3},{"$f":"IF('Skrytý list se vzorci'!$B$10=TRUE,'Skrytý list se vzorci'!C73,0)","v":"Zdění za nízkých teplot\npod 0°C"},{"$f":"IF('Skrytý list se vzorci'!$B$10=TRUE,'Skrytý list se vzorci'!E73,0)","v":"Vizuální kontrola\nPřeměření – na začátku směny\nnebo při náhlém poklesu teploty"},{"$f":"IF('Skrytý list se vzorci'!$B$10=TRUE,'Skrytý list se vzorci'!D73,0)","v":"1. Zdění na lepidlo nebo maltu\na) Značka a teplota malty\nb) Ochrana zdících prvků\nc) Teplota podkladu\nd) Ochrana zdiva\n2. Zdění na pěnu\na) Zdící pěna\nb) Ochrana zdících prvků\nc) Teplota"},null,{"$f":"IF('Skrytý list se vzorci'!$B$10=TRUE,'Skrytý list se vzorci'!F73,0)","v":"1.a) O jeden stupeň vyšší, než je v PD; min. + 15°C\nb) Chráněny před deštěm, sněhem a zmrznutím\nc) Min. + 10°C\nd) Čerstvě uložené zdivo chráněno, pokud krychelná\npevnost malty nedosáhla min. 50% pevnosti.\n2.a) Zdící pěna W-FIX\nb) Chráněny před deštěm, sněhem a zmrznutím\nc) Zdění možno provádět do - 5°C"},{"$f":"IF('Skrytý list se vzorci'!$B$10=TRUE,'Skrytý list se vzorci'!G73,0)","v":"Záznam o kontrole\nkvality"}]
[null,null,{"$f":"IF('Skrytý list se vzorci'!$B$10=TRUE,'Skrytý list se vzorci'!B74,0)","v":4},{"$f":"IF('Skrytý list se vzorci'!$B$10=TRUE,'Skrytý list se vzorci'!C74,0)","v":"Zdivo a příčky z\ncihel"},{"$f":"IF('Skrytý list se vzorci'!$B$10=TRUE,'Skrytý list se vzorci'!E74,0)","v":"Vizuální kontrola\nPřeměření\nKaždé podlaží nebo sekce"},{"$f":"IF('Skrytý list se vzorci'!$B$10=TRUE,'Skrytý list se vzorci'!D74,0)","v":"a) Použité materiály\nb) Ukládání cihel\nc) Ložné spáry\nd) Kotvení příček\ne) Lícování příček"},null,{"$f":"IF('Skrytý list se vzorci'!$B$10=TRUE,'Skrytý list se vzorci'!F74,0)","v":"ČSN EN 1996-2\na) Shoda s PD: Porotherm AKU P20, YTONG. Typ zdícího materiálu dle PD. Zvýšená pozornost na\npožadovanou akustiku.\nb) Do vodorovných vrstev tak, aby nevznikaly svislé\nprůběžné spáry. Dozdění cca 3cm ke stropu, spára\nbude pružně vyplněna (PU pěna). Dělení a doměrky\nbloků budou prováděny řezáním.( bloková pila). Malta:\ncementová, pevnost dle PD.\nc) Zdění na maltu:\nPrůměrná šířka 10 – 12,5 mm; šířka jednotlivé spáry\nmin. 6 mm a max. 15 mm. Spára do níž se klade\nvýztužná vložka min. o 4 mm širší než  výztužné\nvložky.\nZdění na lepidlo:\nLepidlo se nanáší speciálním válečkem ve vrstvě 1mm.\nZdění na pěnu:\n2 pasy pěny široké cca 3cm vzdálené od okraje cihly\n5cm. Cihly ukládat do 3min. od nanešení pěny.\nd) Dle TP výrobce zdícího materiálu a PD.\ne) Jednostranně\nVšechny způsoby zdění jsou prováděny dle TP."},{"$f":"IF('Skrytý list se vzorci'!$B$10=TRUE,'Skrytý list se vzorci'!G74,0)","v":"Záznam o kontrole\nkvality"}]
[null,null,{"$f":"IF('Skrytý list se vzorci'!$B$10=TRUE,'Skrytý list se vzorci'!B75,0)","v":5},{"$f":"IF('Skrytý list se vzorci'!$B$10=TRUE,'Skrytý list se vzorci'!C75,0)","v":"Montáž zárubní"},{"$f":"IF('Skrytý list se vzorci'!$B$10=TRUE,'Skrytý list se vzorci'!E75,0)","v":"Vizuální kontrola\nPřeměření\nKaždé patro,sekce\n5 zárubní na patře"},{"$f":"IF('Skrytý list se vzorci'!$B$10=TRUE,'Skrytý list se vzorci'!D75,0)","v":"a) Kotvení\nb) Překlad v nadpraží\nc) Vyplnění svislých spár"},null,{"$f":"IF('Skrytý list se vzorci'!$B$10=TRUE,'Skrytý list se vzorci'!F75,0)","v":"a) Min. 3 ks na každé straně stojky zárubně\nb) Dle PD.\nc) Spáry zplna zality v průběhu zdění"},{"$f":"IF('Skrytý list se vzorci'!$B$10=TRUE,'Skrytý list se vzorci'!G75,0)","v":"Záznam o kontrole\nkvality"}]
[null,null,{"$f":"IF('Skrytý list se vzorci'!$B$10=TRUE,'Skrytý list se vzorci'!B76,0)","v":6},{"$f":"IF('Skrytý list se vzorci'!$B$10=TRUE,'Skrytý list se vzorci'!C76,0)","v":"Zdivo a příčky po\ndokončení"},{"$f":"IF('Skrytý list se vzorci'!$B$10=TRUE,'Skrytý list se vzorci'!E76,0)","v":"Vizuální kontrola\nPřeměření\nKaždé podlaží nebo sekce"},{"$f":"IF('Skrytý list se vzorci'!$B$10=TRUE,'Skrytý list se vzorci'!D76,0)","v":"Mezní odchylky v mm jsou uvedeny\npouze pro nejmenší rozsah\nrozměrů:\na) Rozměry konstrukce\nb) Vzdálenost protilehlých kcí\nc) Mezní odchylky orientace\nkonstrukcí\nd) Místní rovinnost\ne) Přímost hran"},null,{"$f":"IF('Skrytý list se vzorci'!$B$10=TRUE,'Skrytý list se vzorci'!F76,0)","v":"ČSN 73 0205, čl. 4, tab. A.1 až A.5\na) Délka, šířka (hloubka): do 4 m  20 mm;\nVýška: do 4 m  25 mm\nb) Délka, šířka (hloubka): do 4 m  15 mm;\nVýška: do 4 m  20 mm\nc) Svislost stěn a sloupů v jednom podlaží do 4 m délky\nkon. 10 mm.Úhel mezi svis. rovin. konstrukcemi ve\nvodorov směru do 4 m 5mm.\nd) Stěny s dokončeným povrchem: 2mm/2m\ne) Celková přímost: do 4 m – 5 mm; Místní přímost: 3\nmm / 2 mm"},{"$f":"IF('Skrytý list se vzorci'!$B$10=TRUE,'Skrytý list se vzorci'!G76,0)","v":"Záznam o kontrole\nkvality"}]
[null,null,{"$f":"IF('Skrytý list se vzorci'!$B$10=TRUE,'Skrytý list se vzorci'!B77,0)","v":7},{"$f":"IF('Skrytý list se vzorci'!$B$10=TRUE,'Skrytý list se vzorci'!C77,0)","v":"Osazené zárubně"},{"$f":"IF('Skrytý list se vzorci'!$B$10=TRUE,'Skrytý list se vzorci'!E77,0)","v":"Vizuální kontrola\nPřeměření\nKaždé\npatro,sekce\n5 zárubní na patře (protokol)"},{"$f":"IF('Skrytý list se vzorci'!$B$10=TRUE,'Skrytý list se vzorci'!D77,0)","v":"a) Odchylka od pravého úhlu\nb) Výška zárubně od úrovně hrubé\npodlahy\nc) Prohnutí stojky zárubně\nd) Výška nadpraží od nivelety\npodlaží\ne) Rovinnost se zdivem"},null,{"$f":"IF('Skrytý list se vzorci'!$B$10=TRUE,'Skrytý list se vzorci'!F77,0)","v":"a) 1,5 mm\nb) 0 – 3 mm\nc) max. 1,5 mm\nd) 0 – 3 mm\ne) 3 mm / 2 m"},{"$f":"IF('Skrytý list se vzorci'!$B$10=TRUE,'Skrytý list se vzorci'!G77,0)","v":"Záznam o kontrole kvality"}]
[null,null,{"$f":"IF('Skrytý list se vzorci'!$B$10=TRUE,'Skrytý list se vzorci'!B78,0)","v":8},{"$f":"IF('Skrytý list se vzorci'!$B$10=TRUE,'Skrytý list se vzorci'!C78,0)","v":"Závěrečná výstupní\nkontrola kvality\ndokončené zakázky,\nnebo ucelené části\nzakázky"},{"$f":"IF('Skrytý list se vzorci'!$B$10=TRUE,'Skrytý list se vzorci'!E78,0)","v":"Kontrola celého rozsahu zakázky\nP – prohlídka a posouzení stavu\nD – porovnání s PD a TPř, TPo\nN – porovnání s technickými\nnormami\nA – atesty (prohlášení o shodě,\ncertifikáty)"},{"$f":"IF('Skrytý list se vzorci'!$B$10=TRUE,'Skrytý list se vzorci'!D78,0)","v":"a) závěrečná kontrola provedení\nb) kontrola odstranění a vypořádání\nneshod zjištěných v průběhu\nrealizace\nc) kontrola dokladů o kvalitě\nzabudovaných materiálů"},null,{"$f":"IF('Skrytý list se vzorci'!$B$10=TRUE,'Skrytý list se vzorci'!F78,0)","v":"a) revizní zprávy a měřicí protokoly prokazující\nbezpečnou a spolehlivou funkci zařízení\nb) požadavky PD, TPř, TPo a odstranění neshod,\nsoulad s normovými požadavky a odstranění neshod\nzjištěných v průběhu realizace\nc) platné doklady o předepsané kvalitě materiálů."},{"$f":"IF('Skrytý list se vzorci'!$B$10=TRUE,'Skrytý list se vzorci'!G78,0)","v":"Protokol o výstupní\nkontrole zakázky\nnebo\npro každou\nsamostatně\npředávanou část"}]
[{"$f":"IF('Skrytý list se vzorci'!$C$10=TRUE,'Skrytý list se vzorci'!A79,0)","v":"Technologie provádění výplňových konstrukcí\n"}]
[null,{"$f":"IF('Skrytý list se vzorci'!$C$10=TRUE,'Skrytý list se vzorci'!A80,0)","v":"SDK montované"}]
[null,null,{"$f":"IF('Skrytý list se vzorci'!$C$10=TRUE,'Skrytý list se vzorci'!B79,0)","v":1},{"$f":"IF('Skrytý list se vzorci'!$C$10=TRUE,'Skrytý list se vzorci'!C79,0)","v":"Příprava před\nzahájením prací"},{"$f":"IF('Skrytý list se vzorci'!$C$10=TRUE,'Skrytý list se vzorci'!E79,0)","v":"Vizuální kontrola\nKaždý doklad\nKaždá dodávka"},{"$f":"IF('Skrytý list se vzorci'!$C$10=TRUE,'Skrytý list se vzorci'!D79,0)","v":"a) Projektová dokumentace\nb) Technologický postup\nc) Kontrola vstupních materiálů\nd) Doložení kvality materiálů"},null,{"$f":"IF('Skrytý list se vzorci'!$C$10=TRUE,'Skrytý list se vzorci'!F79,0)","v":"a) Odsouhlasena objednatelem; platnost označena\nna výkresech\nb Aktualizovaný TP (datum, podpis) je předán před\nzahájením prací.\nc) Převzetí materiálů - kompletnost a kvalita dle PD\n– zápis přímo na dodacím listu\nd) Certifikáty, atesty a Prohlášení o shodě dle NV\nč.163/2002 Sb a Zák. č.22/1997/Sb."},{"$f":"IF('Skrytý list se vzorci'!$C$10=TRUE,'Skrytý list se vzorci'!G79,0)","v":"Záznam o kontrole\nkvality, SD"}]
[null,null,{"$f":"IF('Skrytý list se vzorci'!$C$10=TRUE,'Skrytý list se vzorci'!B80,0)","v":2},{"$f":"IF('Skrytý list se vzorci'!$C$10=TRUE,'Skrytý list se vzorci'!C80,0)","v":"Nosná konstrukce -\npříčky"},{"$f":"IF('Skrytý list se vzorci'!$C$10=TRUE,'Skrytý list se vzorci'!E80,0)","v":"Vizuální kontrola\nPřeměření\nKaždá sekce, patro"},{"$f":"IF('Skrytý list se vzorci'!$C$10=TRUE,'Skrytý list se vzorci'!D80,0)","v":"a) Podklad\nb) Montáž vodících UW profilů a sloupků CW"},null,{"$f":"IF('Skrytý list se vzorci'!$C$10=TRUE,'Skrytý list se vzorci'!F80,0)","v":"a) Vlhkost stěn a stropů ustálená, rovinnost do 10\nmm na 10m délky; návaznost na otvory a prostupy.\nb) Rozteč sloupků max. 625mm; v místech kde\nbude keramický obklad max. 400mm; mezera mezi\nhorním koncem sloupku a stojinou vodítka 10 - 15\nmm; Rozmístění připevňovacích prostředků, rozteč\nmax. 800 mm."},{"$f":"IF('Skrytý list se vzorci'!$C$10=TRUE,'Skrytý list se vzorci'!G80,0)","v":"Záznam o kontrole\nkvality\nGeodetický protokol"}]
[null,null,{"$f":"IF('Skrytý list se vzorci'!$C$10=TRUE,'Skrytý list se vzorci'!B81,0)","v":3},{"$f":"IF('Skrytý list se vzorci'!$C$10=TRUE,'Skrytý list se vzorci'!C81,0)","v":"Opláštění příček SDK deskami"},{"$f":"IF('Skrytý list se vzorci'!$C$10=TRUE,'Skrytý list se vzorci'!E81,0)","v":"Vizuální kontrola\nPřeměření\nKaždá sekce, patro"},{"$f":"IF('Skrytý list se vzorci'!$C$10=TRUE,'Skrytý list se vzorci'!D81,0)","v":"a) Instalace v příčkách\nb) Montáž opláštění"},null,{"$f":"IF('Skrytý list se vzorci'!$C$10=TRUE,'Skrytý list se vzorci'!F81,0)","v":"a) Elektroinstalace, ZTI a VZT jsou dokončeny dle\nPD.\nb) Zásadně používat celé desky; u 1 strany příčky\nse začíná deskou o celé šířce; šířka spáry max. 1\naž 2mm; desky osazeny 15mm nad podlahou;\nspára nad zárubní min. 150mm od hrany bočního\nostění; přířezy -min. výška 400mm; min. přesazení\nsousedních příčných spár 400mm; nastavené části\nv sousedních polích vystřídány; rozteče šroubů\nmax. 250mm; při 2 vrstvách opláštění v 1 vrstvě\nrozteče 750mm; hlava šroubů musí být zapuštěna\nod okraje desky min. 10mm, u řezaných hran min.\n15mm (šrouby nesmí trhat desku)."},{"$f":"IF('Skrytý list se vzorci'!$C$10=TRUE,'Skrytý list se vzorci'!G81,0)","v":"Záznam o kontrole\nkvality"}]
[null,null,{"$f":"IF('Skrytý list se vzorci'!$C$10=TRUE,'Skrytý list se vzorci'!B82,0)","v":4},{"$f":"IF('Skrytý list se vzorci'!$C$10=TRUE,'Skrytý list se vzorci'!C82,0)","v":"Zvuková izolace"},{"$f":"IF('Skrytý list se vzorci'!$C$10=TRUE,'Skrytý list se vzorci'!E82,0)","v":"Vizuální kontrola\nKaždá sekce, patro"},{"$f":"IF('Skrytý list se vzorci'!$C$10=TRUE,'Skrytý list se vzorci'!D82,0)","v":"Uložení izolačních desek"},null,{"$f":"IF('Skrytý list se vzorci'!$C$10=TRUE,'Skrytý list se vzorci'!F82,0)","v":"Prostor mezi nosnými prvky je vyplněn v celé\nploše."},{"$f":"IF('Skrytý list se vzorci'!$C$10=TRUE,'Skrytý list se vzorci'!G82,0)","v":"Záznam o kontrole\nkvality"}]
[null,null,{"$f":"IF('Skrytý list se vzorci'!$C$10=TRUE,'Skrytý list se vzorci'!B83,0)","v":5},{"$f":"IF('Skrytý list se vzorci'!$C$10=TRUE,'Skrytý list se vzorci'!C83,0)","v":"Ocelové zárubně"},{"$f":"IF('Skrytý list se vzorci'!$C$10=TRUE,'Skrytý list se vzorci'!E83,0)","v":"Vizuální kontrola\nKaždá sekce, patro"},{"$f":"IF('Skrytý list se vzorci'!$C$10=TRUE,'Skrytý list se vzorci'!D83,0)","v":"Montáž nosné konstrukce a\nosazení zárubně"},null,{"$f":"IF('Skrytý list se vzorci'!$C$10=TRUE,'Skrytý list se vzorci'!F83,0)","v":"UW profil je na obou stranách ukotven 2 šrouby,\nNad otvorem je zabudován překlad z UW profilu,\nv nadpraží jsou 2 stojiny CW."},{"$f":"IF('Skrytý list se vzorci'!$C$10=TRUE,'Skrytý list se vzorci'!G83,0)","v":"Záznam o kontrole\nkvality"}]
[null,null,{"$f":"IF('Skrytý list se vzorci'!$C$10=TRUE,'Skrytý list se vzorci'!B84,0)","v":6},{"$f":"IF('Skrytý list se vzorci'!$C$10=TRUE,'Skrytý list se vzorci'!C84,0)","v":"Tmelení"},{"$f":"IF('Skrytý list se vzorci'!$C$10=TRUE,'Skrytý list se vzorci'!E84,0)","v":"Vizuální kontrola\nKaždá stěna\nKaždá sekce, patro"},{"$f":"IF('Skrytý list se vzorci'!$C$10=TRUE,'Skrytý list se vzorci'!D84,0)","v":"Tmelení spár (s výztužnou\npáskou) a hlav šroubů"},null,{"$f":"IF('Skrytý list se vzorci'!$C$10=TRUE,'Skrytý list se vzorci'!F84,0)","v":"Zaplnění podélných spár tmelem na celou hloubku;\nzkosení příčných hran; vtlačení pásky do 1 vrstvy\ntmelu; přestěrkování po cca 30min, roztažení tmelu\na uhlazení do ztracena; u koutů a vnějších rohů\nvrstva tmelu roztažena do šířky 250 až 300mm;\npřebroušení 2 vrstvy po zaschnutí."},{"$f":"IF('Skrytý list se vzorci'!$C$10=TRUE,'Skrytý list se vzorci'!G84,0)","v":"Záznam o kontrole\nkvality\nProtokol"}]
[null,null,{"$f":"IF('Skrytý list se vzorci'!$C$10=TRUE,'Skrytý list se vzorci'!B85,0)","v":7},{"$f":"IF('Skrytý list se vzorci'!$C$10=TRUE,'Skrytý list se vzorci'!C85,0)","v":"Příčky po dokončení"},{"$f":"IF('Skrytý list se vzorci'!$C$10=TRUE,'Skrytý list se vzorci'!E85,0)","v":"Vizuální kontrola\nPřeměření\n1 x v každé místnosti\nKaždá zárubeň\n(min.1zápis ze sekce, patra)"},{"$f":"IF('Skrytý list se vzorci'!$C$10=TRUE,'Skrytý list se vzorci'!D85,0)","v":"a) Povrch příček\nb) Svislost a rovinnost\nc) Osazení zárubní"},null,{"$f":"IF('Skrytý list se vzorci'!$C$10=TRUE,'Skrytý list se vzorci'!F85,0)","v":"a) Hladký, zabroušený, kouty vyplněny\nakrylátovým tmelem.\nb) 5 mm/2m.\nc) Odchylka od prav. úhlu: 1,5mm; svislost ostění\nmax. - 1,5mm; výška zárubně od úrovně podlahy\nmax. + 10mm; odchylka ve zkřížení max. 1,5mm."},{"$f":"IF('Skrytý list se vzorci'!$C$10=TRUE,'Skrytý list se vzorci'!G85,0)","v":"Záznam o kontrole\nkvality\nProtokol"}]
[null,null,{"$f":"IF('Skrytý list se vzorci'!$C$10=TRUE,'Skrytý list se vzorci'!B86,0)","v":8},{"$f":"IF('Skrytý list se vzorci'!$C$10=TRUE,'Skrytý list se vzorci'!C86,0)","v":"Závěrečná výstupní kontrola kvality dokončené zakázky, nebo ucelené části zakázky"},{"$f":"IF('Skrytý list se vzorci'!$C$10=TRUE,'Skrytý list se vzorci'!E86,0)","v":"Kontrola celého rozsahu\nzakázky\nP – prohlídka a posouzení\nstavu\nD – porovnání s PD a TPř, TPo\nN – porovnání s technickými\nnormami\nA – atesty (prohlášení o shodě,\ncertifikáty)"},{"$f":"IF('Skrytý list se vzorci'!$C$10=TRUE,'Skrytý list se vzorci'!D86,0)","v":"a) závěrečná kontrola provedení\nb) kontrola odstranění a vypořádání neshod zjištěných v průběhu realizace\nc) kontrola dokladů o kvalitě zabudovaných materiálů"},null,{"$f":"IF('Skrytý list se vzorci'!$C$10=TRUE,'Skrytý list se vzorci'!F86,0)","v":"a) revizní zprávy a měřicí protokoly prokazující bezpečnou a spolehlivou funkci zařízení\nb) požadavky PD, TPř, TPo a odstranění neshod.\nc) soulad s normovými požadavky a odstranění neshod zjištěných v průběhu realizace\nd) platné doklady o předepsané kvalitě materiálů."},{"$f":"IF('Skrytý list se vzorci'!$C$10=TRUE,'Skrytý list se vzorci'!G86,0)","v":"Záznam o kontrole\nkvality\nProtokol"}]
[{"$f":"IF('Skrytý list se vzorci'!$D$10=TRUE,'Skrytý list se vzorci'!A87,0)","v":0}]
[null,{"$f":"IF('Skrytý list se vzorci'!$D$10=TRUE,'Skrytý list se vzorci'!A88,0)","v":0}]
[null,null,{"$f":"IF('Skrytý list se vzorci'!$D$10=TRUE,'Skrytý list se vzorci'!B87,0)","v":0},{"$f":"IF('Skrytý list se vzorci'!$D$10=TRUE,'Skrytý list se vzorci'!C87,0)","v":0},{"$f":"IF('Skrytý list se vzorci'!$D$10=TRUE,'Skrytý list se vzorci'!E87,0)","v":0},{"$f":"IF('Skrytý list se vzorci'!$D$10=TRUE,'Skrytý list se vzorci'!D87,0)","v":0},null,{"$f":"IF('Skrytý list se vzorci'!$D$10=TRUE,'Skrytý list se vzorci'!F87,0)","v":0},{"$f":"IF('Skrytý list se vzorci'!$D$10=TRUE,'Skrytý list se vzorci'!G87,0)","v":0}]
[null,null,{"$f":"IF('Skrytý list se vzorci'!$D$10=TRUE,'Skrytý list se vzorci'!B88,0)","v":0},{"$f":"IF('Skrytý list se vzorci'!$D$10=TRUE,'Skrytý list se vzorci'!C88,0)","v":0},{"$f":"IF('Skrytý list se vzorci'!$D$10=TRUE,'Skrytý list se vzorci'!E88,0)","v":0},{"$f":"IF('Skrytý list se vzorci'!$D$10=TRUE,'Skrytý list se vzorci'!D88,0)","v":0},null,{"$f":"IF('Skrytý list se vzorci'!$D$10=TRUE,'Skrytý list se vzorci'!F88,0)","v":0},{"$f":"IF('Skrytý list se vzorci'!$D$10=TRUE,'Skrytý list se vzorci'!G88,0)","v":0}]
[null,null,{"$f":"IF('Skrytý list se vzorci'!$D$10=TRUE,'Skrytý list se vzorci'!B89,0)","v":0},{"$f":"IF('Skrytý list se vzorci'!$D$10=TRUE,'Skrytý list se vzorci'!C89,0)","v":0},{"$f":"IF('Skrytý list se vzorci'!$D$10=TRUE,'Skrytý list se vzorci'!E89,0)","v":0},{"$f":"IF('Skrytý list se vzorci'!$D$10=TRUE,'Skrytý list se vzorci'!D89,0)","v":0},null,{"$f":"IF('Skrytý list se vzorci'!$D$10=TRUE,'Skrytý list se vzorci'!F89,0)","v":0},{"$f":"IF('Skrytý list se vzorci'!$D$10=TRUE,'Skrytý list se vzorci'!G89,0)","v":0}]
[null,null,{"$f":"IF('Skrytý list se vzorci'!$D$10=TRUE,'Skrytý list se vzorci'!B90,0)","v":0},{"$f":"IF('Skrytý list se vzorci'!$D$10=TRUE,'Skrytý list se vzorci'!C90,0)","v":0},{"$f":"IF('Skrytý list se vzorci'!$D$10=TRUE,'Skrytý list se vzorci'!E90,0)","v":0},{"$f":"IF('Skrytý list se vzorci'!$D$10=TRUE,'Skrytý list se vzorci'!D90,0)","v":0},null,{"$f":"IF('Skrytý list se vzorci'!$D$10=TRUE,'Skrytý list se vzorci'!F90,0)","v":0},{"$f":"IF('Skrytý list se vzorci'!$D$10=TRUE,'Skrytý list se vzorci'!G90,0)","v":0}]
[null,null,{"$f":"IF('Skrytý list se vzorci'!$D$10=TRUE,'Skrytý list se vzorci'!B91,0)","v":0},{"$f":"IF('Skrytý list se vzorci'!$D$10=TRUE,'Skrytý list se vzorci'!C91,0)","v":0},{"$f":"IF('Skrytý list se vzorci'!$D$10=TRUE,'Skrytý list se vzorci'!E91,0)","v":0},{"$f":"IF('Skrytý list se vzorci'!$D$10=TRUE,'Skrytý list se vzorci'!D91,0)","v":0},null,{"$f":"IF('Skrytý list se vzorci'!$D$10=TRUE,'Skrytý list se vzorci'!F91,0)","v":0},{"$f":"IF('Skrytý list se vzorci'!$D$10=TRUE,'Skrytý list se vzorci'!G91,0)","v":0}]
[null,null,{"$f":"IF('Skrytý list se vzorci'!$D$10=TRUE,'Skrytý list se vzorci'!B92,0)","v":0},{"$f":"IF('Skrytý list se vzorci'!$D$10=TRUE,'Skrytý list se vzorci'!C92,0)","v":0},{"$f":"IF('Skrytý list se vzorci'!$D$10=TRUE,'Skrytý list se vzorci'!E92,0)","v":0},{"$f":"IF('Skrytý list se vzorci'!$D$10=TRUE,'Skrytý list se vzorci'!D92,0)","v":0},null,{"$f":"IF('Skrytý list se vzorci'!$D$10=TRUE,'Skrytý list se vzorci'!F92,0)","v":0},{"$f":"IF('Skrytý list se vzorci'!$D$10=TRUE,'Skrytý list se vzorci'!G92,0)","v":0}]
[null,null,{"$f":"IF('Skrytý list se vzorci'!$D$10=TRUE,'Skrytý list se vzorci'!B93,0)","v":0},{"$f":"IF('Skrytý list se vzorci'!$D$10=TRUE,'Skrytý list se vzorci'!C93,0)","v":0},{"$f":"IF('Skrytý list se vzorci'!$D$10=TRUE,'Skrytý list se vzorci'!E93,0)","v":0},{"$f":"IF('Skrytý list se vzorci'!$D$10=TRUE,'Skrytý list se vzorci'!D93,0)","v":0},null,{"$f":"IF('Skrytý list se vzorci'!$D$10=TRUE,'Skrytý list se vzorci'!F93,0)","v":0},{"$f":"IF('Skrytý list se vzorci'!$D$10=TRUE,'Skrytý list se vzorci'!G93,0)","v":0}]
[null,null,{"$f":"IF('Skrytý list se vzorci'!$D$10=TRUE,'Skrytý list se vzorci'!B94,0)","v":0},{"$f":"IF('Skrytý list se vzorci'!$D$10=TRUE,'Skrytý list se vzorci'!C94,0)","v":0},{"$f":"IF('Skrytý list se vzorci'!$D$10=TRUE,'Skrytý list se vzorci'!E94,0)","v":0},{"$f":"IF('Skrytý list se vzorci'!$D$10=TRUE,'Skrytý list se vzorci'!D94,0)","v":0},null,{"$f":"IF('Skrytý list se vzorci'!$D$10=TRUE,'Skrytý list se vzorci'!F94,0)","v":0},{"$f":"IF('Skrytý list se vzorci'!$D$10=TRUE,'Skrytý list se vzorci'!G94,0)","v":0}]
[{"$f":"IF('Skrytý list se vzorci'!$B$12=TRUE,'Skrytý list se vzorci'!A95,0)","v":"05_Typ povrchových úprav stěn\n"}]
[null,{"$f":"IF('Skrytý list se vzorci'!$B$12=TRUE,'Skrytý list se vzorci'!A96,0)","v":"Omítky"}]
[null,null,{"$f":"IF('Skrytý list se vzorci'!$B$12=TRUE,'Skrytý list se vzorci'!B95,0)","v":1},{"$f":"IF('Skrytý list se vzorci'!$B$12=TRUE,'Skrytý list se vzorci'!C95,0)","v":"Příprava před zahájením\nprací"},{"$f":"IF('Skrytý list se vzorci'!$B$12=TRUE,'Skrytý list se vzorci'!E95,0)","v":"Vizuální kontrola\nDoklady\n1x"},{"$f":"IF('Skrytý list se vzorci'!$B$12=TRUE,'Skrytý list se vzorci'!D95,0)","v":"a) Projektová dokumentace\nb) Technologický postup\nc) Kontrola vstupních materiálů\nd) Doložení kvality materiálů"},null,{"$f":"IF('Skrytý list se vzorci'!$B$12=TRUE,'Skrytý list se vzorci'!F95,0)","v":"a) Odsouhlasena objednatelem; platnost označena na\nvýkresech\nb Aktualizovaný TP (datum, podpis) je předán před\nzahájením prací.\nc) Převzetí materiálů - kompletnost a kvalita dle PD –\nzápis přímo na dodacím listu\nd) Certifikáty, atesty a Prohlášení o shodě dle NV\nč.163/2002 Sb a Zák. č.22/1997/Sb."},{"$f":"IF('Skrytý list se vzorci'!$B$12=TRUE,'Skrytý list se vzorci'!G95,0)","v":"Záznam o prohlídkách"}]
[null,null,{"$f":"IF('Skrytý list se vzorci'!$B$12=TRUE,'Skrytý list se vzorci'!B96,0)","v":2},{"$f":"IF('Skrytý list se vzorci'!$B$12=TRUE,'Skrytý list se vzorci'!C96,0)","v":"Podklad"},{"$f":"IF('Skrytý list se vzorci'!$B$12=TRUE,'Skrytý list se vzorci'!E96,0)","v":"Vizuální kontrola\nPřeměření\n2 x"},{"$f":"IF('Skrytý list se vzorci'!$B$12=TRUE,'Skrytý list se vzorci'!D96,0)","v":"a) Kvalita podkladu\nb) Klimatické podmínky"},null,{"$f":"IF('Skrytý list se vzorci'!$B$12=TRUE,'Skrytý list se vzorci'!F96,0)","v":"a) Podklad je pevný vyzrálý, očištění od prachu, zbavený mastnot. Kabely uchyceny cementovým, sádrovým tmelem. Kovové prvky vystupující nad povrch omítek natřeny antikorozním nátěrem.\nb) Teplota vzduchu a podkladu: min. 5°C."},{"$f":"IF('Skrytý list se vzorci'!$B$12=TRUE,'Skrytý list se vzorci'!G96,0)","v":"Záznam o prohlídkách"}]
[null,null,{"$f":"IF('Skrytý list se vzorci'!$B$12=TRUE,'Skrytý list se vzorci'!B97,0)","v":3},{"$f":"IF('Skrytý list se vzorci'!$B$12=TRUE,'Skrytý list se vzorci'!C97,0)","v":"Příprava pro omítání"},{"$f":"IF('Skrytý list se vzorci'!$B$12=TRUE,'Skrytý list se vzorci'!E97,0)","v":"Vizuální kontrola\nPřeměření\n2x"},{"$f":"IF('Skrytý list se vzorci'!$B$12=TRUE,'Skrytý list se vzorci'!D97,0)","v":"a) Zakrytí kcí a zařizovacích\npředmětů\nb) Technologická přestávka"},null,{"$f":"IF('Skrytý list se vzorci'!$B$12=TRUE,'Skrytý list se vzorci'!F97,0)","v":"a) Všechny okenní rámy, dveřní zárubně, zařizovací předměty a potrubí jsou zakryty.\nb) Min. 12 hod. pro aplikaci dalšího materiálu."},{"$f":"IF('Skrytý list se vzorci'!$B$12=TRUE,'Skrytý list se vzorci'!G97,0)","v":"Záznam o prohlídkách"}]
[null,null,{"$f":"IF('Skrytý list se vzorci'!$B$12=TRUE,'Skrytý list se vzorci'!B98,0)","v":4},{"$f":"IF('Skrytý list se vzorci'!$B$12=TRUE,'Skrytý list se vzorci'!C98,0)","v":"Úprava podkladu před\nomítáním"},{"$f":"IF('Skrytý list se vzorci'!$B$12=TRUE,'Skrytý list se vzorci'!E98,0)","v":"Vizuální kontrola\nKaždá stěna"},{"$f":"IF('Skrytý list se vzorci'!$B$12=TRUE,'Skrytý list se vzorci'!D98,0)","v":"a) Sanace podkladu\nb) Betonový podklad\nc) Zděný podklad"},null,{"$f":"IF('Skrytý list se vzorci'!$B$12=TRUE,'Skrytý list se vzorci'!F98,0)","v":"a) Vizuální kontrolou zjištěné mezery, díry ve zdivu nebo výtluky větší než 10mm, je nutné dozdít zdícím materiálem min. 30 dnů před prováděním omítek.\nb) Všechny betonové povrchy, na které bude nanášena omítka musí být napenetrovány, povrch před aplikací penetrace musí být suchý.\nc) U cihel P+D v ostěních a v rozích stěn drážky na bocích cihel vyplnit maltou a to alespoň 5 dnů před omítáním. Cihelný podklad je potřeba před omítáním navlhčit (pod\n10°C se postřik vodou neprovádí)."},{"$f":"IF('Skrytý list se vzorci'!$B$12=TRUE,'Skrytý list se vzorci'!G98,0)","v":"Záznam o prohlídkách"}]
[null,null,{"$f":"IF('Skrytý list se vzorci'!$B$12=TRUE,'Skrytý list se vzorci'!B99,0)","v":5},{"$f":"IF('Skrytý list se vzorci'!$B$12=TRUE,'Skrytý list se vzorci'!C99,0)","v":"Vyztužení omítky"},{"$f":"IF('Skrytý list se vzorci'!$B$12=TRUE,'Skrytý list se vzorci'!E99,0)","v":"Vizuální kontrola\nKaždá stěna"},{"$f":"IF('Skrytý list se vzorci'!$B$12=TRUE,'Skrytý list se vzorci'!D99,0)","v":"a) Nalepení výztužného pletiva\nb) Rozměry a umístění výztužného\npletiva"},null,{"$f":"IF('Skrytý list se vzorci'!$B$12=TRUE,'Skrytý list se vzorci'!F99,0)","v":"a) Výztuž se osazuje v místech styku rozdílného podkladního materiálu, v místech vedení instalací při povrchu, diagonálně v rozích otvorů pro okna a dveře. \nb) Výstužná síťka s velikostí ok cca 8x8mm. Výztuž se klade do jádrové omítky pod její povrch (krytí min. 3mm, max. do 1/3 tloušťky omítky), jádrová omítka se provádí ve dvou vrstvách, do první se vmáčkne výztuž a hned se nanese další vrstva Minimální přesah vyztužení přes vyztužované místo je 150mm (minimální šířka vyztužovacího pásku je 300mm), diagonální vyztužení rohů otvorů o rozměrech min. 300mmx200mm."},{"$f":"IF('Skrytý list se vzorci'!$B$12=TRUE,'Skrytý list se vzorci'!G99,0)","v":"Záznam o prohlídkách"}]
[null,null,{"$f":"IF('Skrytý list se vzorci'!$B$12=TRUE,'Skrytý list se vzorci'!B100,0)","v":6},{"$f":"IF('Skrytý list se vzorci'!$B$12=TRUE,'Skrytý list se vzorci'!C100,0)","v":"Osazení výztužných a\nukončovacích lišt"},{"$f":"IF('Skrytý list se vzorci'!$B$12=TRUE,'Skrytý list se vzorci'!E100,0)","v":"Vizuální kontrola\na) Hrany stěn, ostění, nadpraží,\nparapetů, průvlaků apod.\nb) Kouty ostění a nadpraží u\nvýplní otvorů z vnitřní strany"},{"$f":"IF('Skrytý list se vzorci'!$B$12=TRUE,'Skrytý list se vzorci'!D100,0)","v":"a) Osazení\nb) Napojení omítky a výplní otvorů\n(okna+dveře)"},null,{"$f":"IF('Skrytý list se vzorci'!$B$12=TRUE,'Skrytý list se vzorci'!F100,0)","v":"a) Lišta není promáčknuta ani jinak poškozena, na každou hranu osazena celistvá lišta (výrobní délka lišt max. 3 metry). Delší hrany s nastavením v méně viditelné oblasti nebo dle písemné dohody.\nb) Osazení APU lišt (je-li požadováno)"},{"$f":"IF('Skrytý list se vzorci'!$B$12=TRUE,'Skrytý list se vzorci'!G100,0)","v":"Záznam o prohlídkách"}]
[null,null,{"$f":"IF('Skrytý list se vzorci'!$B$12=TRUE,'Skrytý list se vzorci'!B101,0)","v":7},{"$f":"IF('Skrytý list se vzorci'!$B$12=TRUE,'Skrytý list se vzorci'!C101,0)","v":"Dilatační spáry"},{"$f":"IF('Skrytý list se vzorci'!$B$12=TRUE,'Skrytý list se vzorci'!E101,0)","v":"V místě dilatační spáry objektu.\nV místě lícování omítky s jiným\nmateriálem (betonem, dřevem\napod.).\nb) Dle ČSN 73 0212-3\nPřímost hran - pomocí 2m latě\n(popř. napnutý provázek), každá\nhrana, do 3m – 5 měření, každý\ndalší 1m - jedno měření navíc."},{"$f":"IF('Skrytý list se vzorci'!$B$12=TRUE,'Skrytý list se vzorci'!D101,0)","v":"a) Umístění dilatací\nb) Přímost hran\nc) Osazení dilatačních lišt"},null,{"$f":"IF('Skrytý list se vzorci'!$B$12=TRUE,'Skrytý list se vzorci'!F101,0)","v":"a) Na stejném místě jako dilatace nosné konstrukce. Lícuje-li omítka s jiným materiálem musí se oddělit spárou min. 5mm širokou a 5mm hlubokou.\nb) Přímost hran - 2mm na 2m dlouhé lati\nc) Dilatační spára provedena celistvou lištou. Delší spáry s nastavením v méně viditelné oblasti nebo dle písemné dohody. Lišta není promáčknuta ani jinak poškozena."},{"$f":"IF('Skrytý list se vzorci'!$B$12=TRUE,'Skrytý list se vzorci'!G101,0)","v":"Záznam o prohlídkách"}]
[null,null,{"$f":"IF('Skrytý list se vzorci'!$B$12=TRUE,'Skrytý list se vzorci'!B102,0)","v":8},{"$f":"IF('Skrytý list se vzorci'!$B$12=TRUE,'Skrytý list se vzorci'!C102,0)","v":"Provedení jádrové\nomítky"},{"$f":"IF('Skrytý list se vzorci'!$B$12=TRUE,'Skrytý list se vzorci'!E102,0)","v":"Vizuální kontrola\nKaždá stěna"},{"$f":"IF('Skrytý list se vzorci'!$B$12=TRUE,'Skrytý list se vzorci'!D102,0)","v":"a) Tloušťka omítky\nb) Zrání omítky"},null,{"$f":"IF('Skrytý list se vzorci'!$B$12=TRUE,'Skrytý list se vzorci'!F102,0)","v":"a) Pro velice rovné zdivo lze použít omítky se zrnitostí do 1,5mm v tloušťce do 10mm, pro méně rovné zdivo omítky se zrnitostí do 2,5mm v tloušťce od 10 do 20mm. Pro větší tloušťky omítky než 20mm volíme omítky se zrnitostí do 4mm. Nanášení omítky provádíme dle Technického listu výrobce.\nb) Jeden den na každý milimetr tloušťky, nejméně však 14 dní, a to i při minimální tloušťce vrstvy 10mm. Pro zamezení vzniku smršťovacích trhlin vrstvu omítky v prvních dvou dnech udržovat ve vlhkém stavu."},{"$f":"IF('Skrytý list se vzorci'!$B$12=TRUE,'Skrytý list se vzorci'!G102,0)","v":"Záznam o prohlídkách"}]
[null,null,{"$f":"IF('Skrytý list se vzorci'!$B$12=TRUE,'Skrytý list se vzorci'!B103,0)","v":9},{"$f":"IF('Skrytý list se vzorci'!$B$12=TRUE,'Skrytý list se vzorci'!C103,0)","v":"Provedení štukové\nomítky (dle 8)"},{"$f":"IF('Skrytý list se vzorci'!$B$12=TRUE,'Skrytý list se vzorci'!E103,0)","v":"Vizuální kontrola\nKaždá stěna"},{"$f":"IF('Skrytý list se vzorci'!$B$12=TRUE,'Skrytý list se vzorci'!D103,0)","v":"a) Štukování – nanášení štuku\nb) Úprava naneseného štukového povrchu"},null,{"$f":"IF('Skrytý list se vzorci'!$B$12=TRUE,'Skrytý list se vzorci'!F103,0)","v":"a) Štuková vápenná nebo vápenocementová omítka s velmi jemnou zrnitostí do cca 0,5mm nebo jemnou zrnitostí do cca 1mm. Štuk lze nanášet až po vyschnutí jádrové omítky.\nb) Po mírném zavadnutí se povrch upraví pomocí filcového nebo pěnového hladítka za současného zkrápění vodou nebo máčení hladítka ve vodě."},{"$f":"IF('Skrytý list se vzorci'!$B$12=TRUE,'Skrytý list se vzorci'!G103,0)","v":"Záznam o prohlídkách"}]
[null,null,{"$f":"IF('Skrytý list se vzorci'!$B$12=TRUE,'Skrytý list se vzorci'!B104,0)","v":10},{"$f":"IF('Skrytý list se vzorci'!$B$12=TRUE,'Skrytý list se vzorci'!C104,0)","v":"Dokončená omítka"},{"$f":"IF('Skrytý list se vzorci'!$B$12=TRUE,'Skrytý list se vzorci'!E104,0)","v":"Vizuální kontrola\nPřeměření\n3x\nb) Místní rovinnost - 2m lať na podložkách, na každých 25m2 plochy min. 5 kladů latě vrovnoměrně rozmístěných, min. počet kladů na jednu plochu (stěna) je 5.\nc) Svislost – 100mm od podlahy a stropu a 100mm od svislých hran kce geodeticky nebo k vztažné přímce (provázek, laserový paprsek)\nd) Úhel ostění -100mm od hran ve svislém i vodorovném směru, měřit úhelníkem Úhly místností – měřit 100 nad podlahou, pomocí pravoúhlého trojúhelníku 3-4-5 (provázek, ocel. lanko s vyznačenými stejnými díly), odchylku změřit na nejkratším rameni"},{"$f":"IF('Skrytý list se vzorci'!$B$12=TRUE,'Skrytý list se vzorci'!D104,0)","v":"a) Vzhled povrchu\nb) Rovinnost\nc) Svislost povrchu\nd) Úhel ostění a stěn"},null,{"$f":"IF('Skrytý list se vzorci'!$B$12=TRUE,'Skrytý list se vzorci'!F104,0)","v":"ČSN 73 0205, ČSN EN 13914-2\na) Povrch omítek nesmí vykazovat puchýře, pecky ani trhliny (kromě vlasových trhlinek vzniklých smrštěním malty). Vrstva omítky musí být pevně spojena s omítaným povrchem.\nb) Místní rovinnost je Dle ČSN EN 13914-2, Tab.1: (Rovinnost omítky závisí na rovinnosti podkladu, pro podkladní beton rovinnosti ±9mm/2m je doporučena třída 3) ±5mm/2m pro rovinnost podkladu ±10mm/2m; (vyšší přesnost rovinnosti omítky lze požadovat pouze při vyšší přesnosti rovinnosti podkladu). \nMístní rovinnost dle ČSN 73 0205, Tab.A.4: Místnosti pro pobyt osob - ±2mm/2m.\nU detailů v okolí dveří, podlahových lišt a dalších obkladových prvků, které by mohly zvýraznit nerovnost omítek je požadována max. odchylka rovinnosti ±2mm/2m. \nMěřeno 2m lať na podložkách, na každých 25m2 plochy min. 5 kladů latě vrovnoměrně rozmístěných, min. počet kladů na jednu plochu (stěna) je 5.\nc) Svislost povrchu - Dle ČSN 73 0205, Tab.A.7: ±10mm do 4m, ±12mm pro 4-8m, ±15mm nad 8m. Měřeno 100mm od podlahy a stropu a 100mm od svislých hran kce geodeticky nebo k vztažné přímce (provázek, laserový paprsek).\nd) Úhel ostění a stěn je Dle ČSN EN 13914-2, Tab.2: ±3mm do vzdálenosti 0,25m od rohu, ±5mm do 0,5m, ±6mm do 1m, ±8mm do 3m. Měřeno 100mm od hran ve svislém i vodorovném směru, měřit úhelníkem. Úhly místností – měřit 100 nad podlahou, pomocí pravoúhlého trojúhelníku 3-4-5 (provázek, ocel. lanko s vyznačenými stejnými díly), odchylku změřit na nejkratším rameni."},{"$f":"IF('Skrytý list se vzorci'!$B$12=TRUE,'Skrytý list se vzorci'!G104,0)","v":"Záznam o prohlídkách"}]
[null,null,{"$f":"IF('Skrytý list se vzorci'!$B$12=TRUE,'Skrytý list se vzorci'!B105,0)","v":11},{"$f":"IF('Skrytý list se vzorci'!$B$12=TRUE,'Skrytý list se vzorci'!C105,0)","v":"Závěrečná výstupní\nkontrola kvality\ndokončené zakázky,\nnebo ucelené části\nzakázky"},{"$f":"IF('Skrytý list se vzorci'!$B$12=TRUE,'Skrytý list se vzorci'!E105,0)","v":"Kontrola celého rozsahu zakázky\nP – prohlídka a posouzení stavu\nD – porovnání s PD a TPř, TPo\nN – porovnání s technickými\nnormami\nA – atesty (prohlášení o shodě,\ncertifikáty)"},{"$f":"IF('Skrytý list se vzorci'!$B$12=TRUE,'Skrytý list se vzorci'!D105,0)","v":"a) závěrečná kontrola provedení\nb) kontrola odstranění a vypořádání\nneshod zjištěných v průběhu\nrealizace\nc) kontrola dokladů o kvalitě\nzabudovaných materiálů"},null,{"$f":"IF('Skrytý list se vzorci'!$B$12=TRUE,'Skrytý list se vzorci'!F105,0)","v":"a) revizní zprávy a měřicí protokoly prokazující bezpečnou a spolehlivou funkci zařízení\nb) požadavky PD, TPř, TPo a odstranění neshod, soulad s normovými požadavky a odstranění neshod zjištěných v průběhu realizace\nc) platné doklady o předepsané kvalitě materiálů."},{"$f":"IF('Skrytý list se vzorci'!$B$12=TRUE,'Skrytý list se vzorci'!G105,0)","v":"Protokol o výstupní kontrole zakázky nebo pro každou samostatně předávanou část"}]
[{"$f":"IF('Skrytý list se vzorci'!$C$12=TRUE,'Skrytý list se vzorci'!A106,0)","v":"Typ povrchových úprav stěn\n"}]
[null,{"$f":"IF('Skrytý list se vzorci'!$C$12=TRUE,'Skrytý list se vzorci'!A107,0)","v":"Keramický obklad"}]
[null,null,{"$f":"IF('Skrytý list se vzorci'!$C$12=TRUE,'Skrytý list se vzorci'!B106,0)","v":1},{"$f":"IF('Skrytý list se vzorci'!$C$12=TRUE,'Skrytý list se vzorci'!C106,0)","v":"Příprava před zahájením\nprací"},{"$f":"IF('Skrytý list se vzorci'!$C$12=TRUE,'Skrytý list se vzorci'!E106,0)","v":"Vizuální kontrola\nKaždý doklad\nKaždá dodávka"},{"$f":"IF('Skrytý list se vzorci'!$C$12=TRUE,'Skrytý list se vzorci'!D106,0)","v":"a) Projektová dokumentace\nb) Technologický postup\nc) Kontrola vstupních materiálů\nd) Doložení kvality materiálů"},null,{"$f":"IF('Skrytý list se vzorci'!$C$12=TRUE,'Skrytý list se vzorci'!F106,0)","v":"a) Odsouhlasena objednatelem; platnost označena na výkresech \nb) Aktualizovaný TP (datum, podpis) je předán před zahájením prací.\nc) Převzetí materiálů - kompletnost a kvalita dle PD – zápis přímo na dodacím listu\nd) Certifikáty, atesty a Prohlášení o shodě dle NV č.163/2002 Sb a Zák. č.22/1997/Sb."},{"$f":"IF('Skrytý list se vzorci'!$C$12=TRUE,'Skrytý list se vzorci'!G106,0)","v":"Záznam o kontrole\nkvality, SD"}]
[null,null,{"$f":"IF('Skrytý list se vzorci'!$C$12=TRUE,'Skrytý list se vzorci'!B107,0)","v":2},{"$f":"IF('Skrytý list se vzorci'!$C$12=TRUE,'Skrytý list se vzorci'!C107,0)","v":"Příprava před zahájením\nprací"},{"$f":"IF('Skrytý list se vzorci'!$C$12=TRUE,'Skrytý list se vzorci'!E107,0)","v":"Vizuální kontrola\nPřeměření\nKaždá sekce"},{"$f":"IF('Skrytý list se vzorci'!$C$12=TRUE,'Skrytý list se vzorci'!D107,0)","v":"a) Klimatické podmínky\nb) Podklad pro obklad\nc) Podklad pro dlažbu"},null,{"$f":"IF('Skrytý list se vzorci'!$C$12=TRUE,'Skrytý list se vzorci'!F107,0)","v":"a) ČSN 73 3450 čl. 36 Stálá teplota vzduchu nad 5°C.\nb) Podklad je pevný vyzrálý, očištění od prachu, zbavený mastnot; Svislost a rovinnost: max. ±2mm/2m.\nc) ČSN 74 4505: čl. 3.8 - pevnost v tlaku podkladní vrstvy pro keramické dlažby pochůzné 11,5MPa; čl. 3.1 - podklad i obvodové zdivo čisté; instalace dokončeny, prostupy upraveny vhodným způsobem, umožňujícím splnit dilataci od konstrukce, prahová spojka zárubně nevystupuje z plochy podkladu; vodor. a rovinnost ±2mm/2m."},{"$f":"IF('Skrytý list se vzorci'!$C$12=TRUE,'Skrytý list se vzorci'!G107,0)","v":"Záznam o kontrole\nkvality"}]
[null,null,{"$f":"IF('Skrytý list se vzorci'!$C$12=TRUE,'Skrytý list se vzorci'!B108,0)","v":3},{"$f":"IF('Skrytý list se vzorci'!$C$12=TRUE,'Skrytý list se vzorci'!C108,0)","v":"Provádění obkladů"},{"$f":"IF('Skrytý list se vzorci'!$C$12=TRUE,'Skrytý list se vzorci'!E108,0)","v":"Vizuální kontrola\nPřeměření\nKaždá sekce"},{"$f":"IF('Skrytý list se vzorci'!$C$12=TRUE,'Skrytý list se vzorci'!D108,0)","v":"a) Materiál\nb) Osazení zakončovacích lišt, profilů\nc) Otvory pro ZTI a elektroinstalaci\nd) Spárořez, šířka spár\ne) Vnitřní rohy"},null,{"$f":"IF('Skrytý list se vzorci'!$C$12=TRUE,'Skrytý list se vzorci'!F108,0)","v":"a) Dle PD + klientské změny\nb) Umístění a typ dle PD.\nc) ČSN 73 3450 včetně Z1 Čl. 66 Šířka spáry mezi obkladačkou a instalačními vývody max. 5mm, u krabic elektroinstalací max. 2mm.\nd) Dle kladeč. plánu, šířka spár 2 ; 3mm dle PD.\ne) Vnitřní rohy ve styku obklad x obklad a obklad x dlažba ( +styk různých materiálů) ošetřeny silikonem v barvě spárovací hmoty."},{"$f":"IF('Skrytý list se vzorci'!$C$12=TRUE,'Skrytý list se vzorci'!G108,0)","v":"Záznam o kontrole\nkvality"}]
[null,null,{"$f":"IF('Skrytý list se vzorci'!$C$12=TRUE,'Skrytý list se vzorci'!B109,0)","v":4},{"$f":"IF('Skrytý list se vzorci'!$C$12=TRUE,'Skrytý list se vzorci'!C109,0)","v":"Kontrola dokončeného\nobkladu"},{"$f":"IF('Skrytý list se vzorci'!$C$12=TRUE,'Skrytý list se vzorci'!E109,0)","v":"Vizuální kontrola\nPřeměření\nKaždá sekce"},{"$f":"IF('Skrytý list se vzorci'!$C$12=TRUE,'Skrytý list se vzorci'!D109,0)","v":"a) Celkový vzhled\nb) Svislost a rovinnost\nc) Spáry\nd) Přilnavost k podkladu"},null,{"$f":"IF('Skrytý list se vzorci'!$C$12=TRUE,'Skrytý list se vzorci'!F109,0)","v":"ČSN 73 3450 včetně Z1\na) Čl. 71 Návaznost spár na ostění nebo jiné členění plochy; výrazná kresba a barevnost shodná na všech obkladačkách, čl. 72, odst. b) rohy a kouty vyvážené.\nb) Čl. 72, odst a) 1,5 mm / 2m; jednotlivá obkladačka nesmí vyčnívat z plochy mimo povolenou toleranci tloušťky.\nc) Čl. 72, odst d) Pravidelný a stejnoměrný průběh svislých i vodorovných spár, spáry ladké, rovné, stejně hluboké a široké.\nd) Čl. 72, odst e) nesmí se ozvat dutý zvuk."},{"$f":"IF('Skrytý list se vzorci'!$C$12=TRUE,'Skrytý list se vzorci'!G109,0)","v":"Záznam o kontrole\nkvality"}]
[null,null,{"$f":"IF('Skrytý list se vzorci'!$C$12=TRUE,'Skrytý list se vzorci'!B110,0)","v":5},{"$f":"IF('Skrytý list se vzorci'!$C$12=TRUE,'Skrytý list se vzorci'!C110,0)","v":"Provádění dlažby"},{"$f":"IF('Skrytý list se vzorci'!$C$12=TRUE,'Skrytý list se vzorci'!E110,0)","v":"Vizuální kontrola\nPřeměření\nKaždá sekce"},{"$f":"IF('Skrytý list se vzorci'!$C$12=TRUE,'Skrytý list se vzorci'!D110,0)","v":"a) Materiál\nb) Dilatace\nc) Vodorovnost a rovinnost\nd) Spárořez, šířka spár"},null,{"$f":"IF('Skrytý list se vzorci'!$C$12=TRUE,'Skrytý list se vzorci'!F110,0)","v":"a) Dle PD + klientské změny\nb) Plynulé přímé pevně osazené nedeformované, typ dle PD.\nc) 2mm/2m.\nd) Dle kladeč. plánu; šířka spár 2 ; 3mm dle PD."},{"$f":"IF('Skrytý list se vzorci'!$C$12=TRUE,'Skrytý list se vzorci'!G110,0)","v":"Záznam o kontrole\nkvality"}]
[null,null,{"$f":"IF('Skrytý list se vzorci'!$C$12=TRUE,'Skrytý list se vzorci'!B111,0)","v":6},{"$f":"IF('Skrytý list se vzorci'!$C$12=TRUE,'Skrytý list se vzorci'!C111,0)","v":"Kontrola dokončené\ndlažby"},{"$f":"IF('Skrytý list se vzorci'!$C$12=TRUE,'Skrytý list se vzorci'!E111,0)","v":"Vizuální kontrola\nPřeměření\nKaždá sekce"},{"$f":"IF('Skrytý list se vzorci'!$C$12=TRUE,'Skrytý list se vzorci'!D111,0)","v":"a) Celkový vzhled\nb) Vodorovnost a rovinnost\nc) Spáry\nd) Přilnavost k podkladu"},null,{"$f":"IF('Skrytý list se vzorci'!$C$12=TRUE,'Skrytý list se vzorci'!F111,0)","v":"ČSN 74 4505\na) Jednotná skladba prvků; povrch bez viditelných závad; výrazná kresba a barevnost shodná na všech prvcích (včetně soklu), styk podlahy se stěnou proveden plynule.\nb) 2mm/2m; bez výrazně patrných vystoupení nebo zapuštění jednotlivých prvků mimo povolenou toleranci tloušťky prvku.\nc) Spáry stejnoměrně široké, rovné, přímé a nepropadlé.\nd) Nesmí se ozvat dutý zvuk."},{"$f":"IF('Skrytý list se vzorci'!$C$12=TRUE,'Skrytý list se vzorci'!G111,0)","v":"Záznam o kontrole\nkvality"}]
[null,null,{"$f":"IF('Skrytý list se vzorci'!$C$12=TRUE,'Skrytý list se vzorci'!B112,0)","v":7},{"$f":"IF('Skrytý list se vzorci'!$C$12=TRUE,'Skrytý list se vzorci'!C112,0)","v":"Závěrečná výstupní\nkontrola kvality\ndokončené zakázky,\nnebo ucelené části\nzakázky"},{"$f":"IF('Skrytý list se vzorci'!$C$12=TRUE,'Skrytý list se vzorci'!E112,0)","v":"Kontrola celého rozsahu zakázky\nP – prohlídka a posouzení stavu\nD – porovnání s PD a TPř, TPo\nN – porovnání s technickými\nnormami\nA – atesty (prohlášení o shodě,\ncertifikáty)"},{"$f":"IF('Skrytý list se vzorci'!$C$12=TRUE,'Skrytý list se vzorci'!D112,0)","v":"a) závěrečná kontrola provedení\nb) kontrola odstranění avypořádání neshod zjištěných v průběhu realizace\nc) kontrola dokladů o kvalitě zabudovaných materiálů"},null,{"$f":"IF('Skrytý list se vzorci'!$C$12=TRUE,'Skrytý list se vzorci'!F112,0)","v":"a) Odsouhlasena dle PP č.18/VTŘ; platnost označena\nna výkresech\nb) Aktualizovaný TPo Dle PPč.8/VTŘ, čl. 7 předán před\nzahájením prací.\nc) Převzetí materiálů – kompletnost a kvalita dle PD –\nzápis přímo na dodacím listu.\nd) Certifikáty, atesty a Prohlášení o shodě dle\nZákona č. 22/1997 Sb., Nařízení vlády č 163/2002 Sb.\nnebo Nařízení vlády č 190/2002 Sb."},{"$f":"IF('Skrytý list se vzorci'!$C$12=TRUE,'Skrytý list se vzorci'!G112,0)","v":"Záznam o prohlídkách\nnebo SD"}]
[{"$f":"IF('Skrytý list se vzorci'!$C$14=TRUE,'Skrytý list se vzorci'!A113,0)","v":"06_Typ provádění podlah\n"}]
[null,{"$f":"IF('Skrytý list se vzorci'!$C$14=TRUE,'Skrytý list se vzorci'!A114,0)","v":"Betonové podlahy"}]
[null,null,{"$f":"IF('Skrytý list se vzorci'!$C$14=TRUE,'Skrytý list se vzorci'!B113,0)","v":1},{"$f":"IF('Skrytý list se vzorci'!$C$14=TRUE,'Skrytý list se vzorci'!C113,0)","v":"Příprava před zahájením\nprací"},{"$f":"IF('Skrytý list se vzorci'!$C$14=TRUE,'Skrytý list se vzorci'!E113,0)","v":"Vizuální kontrola\nKaždý doklad\nKaždá dodávka"},{"$f":"IF('Skrytý list se vzorci'!$C$14=TRUE,'Skrytý list se vzorci'!D113,0)","v":"a) Projektová dokumentace\nb) Technologický postup\nc) Kontrola vstupních materiálů\nd) Doložení kvality materiálů"},null,{"$f":"IF('Skrytý list se vzorci'!$C$14=TRUE,'Skrytý list se vzorci'!F113,0)","v":"a) Odsouhlasena objednatelem; platnost označena na výkresech \nb) Aktualizovaný TP (datum, podpis) je předán před zahájením prací.\nc) Převzetí materiálů - kompletnost a kvalita dle PD – zápis přímo na dodacím listu\nd) Certifikáty, atesty a Prohlášení o shodě dle NV č.163/2002 Sb a Zák. č.22/1997/Sb."},{"$f":"IF('Skrytý list se vzorci'!$C$14=TRUE,'Skrytý list se vzorci'!G113,0)","v":"Záznam o kontrole\nkvality, SD"}]
[null,null,{"$f":"IF('Skrytý list se vzorci'!$C$14=TRUE,'Skrytý list se vzorci'!B114,0)","v":2},{"$f":"IF('Skrytý list se vzorci'!$C$14=TRUE,'Skrytý list se vzorci'!C114,0)","v":"Podkladní vrstvy"},{"$f":"IF('Skrytý list se vzorci'!$C$14=TRUE,'Skrytý list se vzorci'!E114,0)","v":"Vizuální kontrola\nPřeměření\nKaždé podlaží nebo sekce"},{"$f":"IF('Skrytý list se vzorci'!$C$14=TRUE,'Skrytý list se vzorci'!D114,0)","v":"a) Podklad\nb) Separace konstrukcí\nc) Rozvody instalací\n"},null,{"$f":"IF('Skrytý list se vzorci'!$C$14=TRUE,'Skrytý list se vzorci'!F114,0)","v":"a) Povrch bez zbytků materiálů, včetně skvrn od ropných látek, nezaprášený; okna a zárubně jsou osazeny; provedeny omítky s dokončeným povrchem.\nb) Svislé konstrukce separovány materiálem Mirelon tl. 5mm + plošná separační folie dle TP.\nc) Kompletní, ukotveny."},{"$f":"IF('Skrytý list se vzorci'!$C$14=TRUE,'Skrytý list se vzorci'!G114,0)","v":"Záznam o\nprohlídkách"}]
[null,null,{"$f":"IF('Skrytý list se vzorci'!$C$14=TRUE,'Skrytý list se vzorci'!B115,0)","v":3},{"$f":"IF('Skrytý list se vzorci'!$C$14=TRUE,'Skrytý list se vzorci'!C115,0)","v":"Betonáž podlah"},{"$f":"IF('Skrytý list se vzorci'!$C$14=TRUE,'Skrytý list se vzorci'!E115,0)","v":"Vizuální kontrola\nPřeměření\nKaždé podlaží nebo sekce\n"},{"$f":"IF('Skrytý list se vzorci'!$C$14=TRUE,'Skrytý list se vzorci'!D115,0)","v":"a) Klimatické podmínky\nb) Betonová mazanina\nc) Úprava povrchu\nd) Tloušťka a vodorovnost čisté podlahy"},null,{"$f":"IF('Skrytý list se vzorci'!$C$14=TRUE,'Skrytý list se vzorci'!F115,0)","v":"a) Teplota prostředí a povrchu podkladu minimálně +5°C.\nb) Beton dle PD a TP se sítí 4/100-4/100 v místnostech s podlahovým topením beton upraven dle požadavků TP topení.\nc) Dle PD a TP.\nd) Tloušťka jednotlivých podlah dle PD, vodorovnost a rovinnost: 2mm/2m."},{"$f":"IF('Skrytý list se vzorci'!$C$14=TRUE,'Skrytý list se vzorci'!G115,0)","v":"Záznam o\nprohlídkách"}]
[null,null,{"$f":"IF('Skrytý list se vzorci'!$C$14=TRUE,'Skrytý list se vzorci'!B116,0)","v":4},{"$f":"IF('Skrytý list se vzorci'!$C$14=TRUE,'Skrytý list se vzorci'!C116,0)","v":"Ochrana podlah po dokončení"},{"$f":"IF('Skrytý list se vzorci'!$C$14=TRUE,'Skrytý list se vzorci'!E116,0)","v":"Vizuální kontrola\nKaždé podlaží nebo sekce"},{"$f":"IF('Skrytý list se vzorci'!$C$14=TRUE,'Skrytý list se vzorci'!D116,0)","v":"a) Ochrana před poškozením\nb) Zajištění vysychání"},null,{"$f":"IF('Skrytý list se vzorci'!$C$14=TRUE,'Skrytý list se vzorci'!F116,0)","v":"a) Po dobu 24 hod. zabezpečeny proti vstupu\nb) Ošetření v souladu s TP."},{"$f":"IF('Skrytý list se vzorci'!$C$14=TRUE,'Skrytý list se vzorci'!G116,0)","v":"Záznam o\nprohlídkách"}]
[null,null,{"$f":"IF('Skrytý list se vzorci'!$C$14=TRUE,'Skrytý list se vzorci'!B117,0)","v":5},{"$f":"IF('Skrytý list se vzorci'!$C$14=TRUE,'Skrytý list se vzorci'!C117,0)","v":"Kontrola po dokončení podlah"},{"$f":"IF('Skrytý list se vzorci'!$C$14=TRUE,'Skrytý list se vzorci'!E117,0)","v":"Vizuální kontrola Přeměření\nKaždé podlaží nebo sekce"},{"$f":"IF('Skrytý list se vzorci'!$C$14=TRUE,'Skrytý list se vzorci'!D117,0)","v":"a) Vzhled povrchu\nb) Vodorovnost a rovinnost"},null,{"$f":"IF('Skrytý list se vzorci'!$C$14=TRUE,'Skrytý list se vzorci'!F117,0)","v":"a) Vzhled povrchu je bez puklin a výstupků, jednolitý povrch.\nb) Nutno zkontrolovat vodorovnost a rovinnost. Pro místní rovinnost platí přípustná mezní odchylka  ±2mm/2m. Měří se dvoumetrovou latí, která může mít na obou koncích gumové podložky. Jednotlivé klady latě se rozmístí po kontrolované ploše, lať musí být min. 100 mm od hran kontrolované plochy a především tam, kde předpokládáme největší odchylky. Pro vodorovné konstrukce se na každých 100 m2 kontrolované plochy se provede nejméně 5 měření, nejmenší počet kladů latě na ucelené ploše je 5. "},{"$f":"IF('Skrytý list se vzorci'!$C$14=TRUE,'Skrytý list se vzorci'!G117,0)","v":"Záznam o\nprohlídkách"}]
[null,null,{"$f":"IF('Skrytý list se vzorci'!$C$14=TRUE,'Skrytý list se vzorci'!B118,0)","v":6},{"$f":"IF('Skrytý list se vzorci'!$C$14=TRUE,'Skrytý list se vzorci'!C118,0)","v":"Závěrečná výstupní kontrola kvality dokončené zakázky, nebo ucelené části zakázky"},{"$f":"IF('Skrytý list se vzorci'!$C$14=TRUE,'Skrytý list se vzorci'!E118,0)","v":"Kontrola celého rozsahu zakázky\nP – prohlídka a posouzení stavu\nD – porovnání s PD a TPř, TPo\nN – porovnání s technickými\nnormami\nA – atesty (prohlášení o shodě,\ncertifikáty)"},{"$f":"IF('Skrytý list se vzorci'!$C$14=TRUE,'Skrytý list se vzorci'!D118,0)","v":"a) závěrečná kontrola provedení\nb) kontrola odstranění a vypořádání neshod zjištěných v průběhu realizace\nc) kontrola dokladů o kvalitě zabudovaných materiálů"},null,{"$f":"IF('Skrytý list se vzorci'!$C$14=TRUE,'Skrytý list se vzorci'!F118,0)","v":"a) měřicí protokoly\nb) požadavky PD, TPř, TPo a odstranění neshod, soulad s normovými požadavky a odstranění neshod zjištěných v průběhu realizace\nc) platné doklady o předepsané kvalitě materiálů."},{"$f":"IF('Skrytý list se vzorci'!$C$14=TRUE,'Skrytý list se vzorci'!G118,0)","v":"Protokol o výstupní kontrole zakázky nebo pro každou samostatně předávanou část"}]
[{"$f":"IF('Skrytý list se vzorci'!$B$14=TRUE,'Skrytý list se vzorci'!A119,0)","v":0}]
[null,{"$f":"IF('Skrytý list se vzorci'!$B$14=TRUE,'Skrytý list se vzorci'!A120,0)","v":0}]
[null,null,{"$f":"IF('Skrytý list se vzorci'!$B$14=TRUE,'Skrytý list se vzorci'!B119,0)","v":0},{"$f":"IF('Skrytý list se vzorci'!$B$14=TRUE,'Skrytý list se vzorci'!C119,0)","v":0},{"$f":"IF('Skrytý list se vzorci'!$B$14=TRUE,'Skrytý list se vzorci'!E119,0)","v":0},{"$f":"IF('Skrytý list se vzorci'!$B$14=TRUE,'Skrytý list se vzorci'!D119,0)","v":0},null,{"$f":"IF('Skrytý list se vzorci'!$B$14=TRUE,'Skrytý list se vzorci'!F119,0)","v":0},{"$f":"IF('Skrytý list se vzorci'!$B$14=TRUE,'Skrytý list se vzorci'!G119,0)","v":0}]
[null,null,{"$f":"IF('Skrytý list se vzorci'!$B$14=TRUE,'Skrytý list se vzorci'!B120,0)","v":0},{"$f":"IF('Skrytý list se vzorci'!$B$14=TRUE,'Skrytý list se vzorci'!C120,0)","v":0},{"$f":"IF('Skrytý list se vzorci'!$B$14=TRUE,'Skrytý list se vzorci'!E120,0)","v":0},{"$f":"IF('Skrytý list se vzorci'!$B$14=TRUE,'Skrytý list se vzorci'!D120,0)","v":0},null,{"$f":"IF('Skrytý list se vzorci'!$B$14=TRUE,'Skrytý list se vzorci'!F120,0)","v":0},{"$f":"IF('Skrytý list se vzorci'!$B$14=TRUE,'Skrytý list se vzorci'!G120,0)","v":0}]
[null,null,{"$f":"IF('Skrytý list se vzorci'!$B$14=TRUE,'Skrytý list se vzorci'!B121,0)","v":0},{"$f":"IF('Skrytý list se vzorci'!$B$14=TRUE,'Skrytý list se vzorci'!C121,0)","v":0},{"$f":"IF('Skrytý list se vzorci'!$B$14=TRUE,'Skrytý list se vzorci'!E121,0)","v":0},{"$f":"IF('Skrytý list se vzorci'!$B$14=TRUE,'Skrytý list se vzorci'!D121,0)","v":0},null,{"$f":"IF('Skrytý list se vzorci'!$B$14=TRUE,'Skrytý list se vzorci'!F121,0)","v":0},{"$f":"IF('Skrytý list se vzorci'!$B$14=TRUE,'Skrytý list se vzorci'!G121,0)","v":0}]
[null,null,{"$f":"IF('Skrytý list se vzorci'!$B$14=TRUE,'Skrytý list se vzorci'!B122,0)","v":0},{"$f":"IF('Skrytý list se vzorci'!$B$14=TRUE,'Skrytý list se vzorci'!C122,0)","v":0},{"$f":"IF('Skrytý list se vzorci'!$B$14=TRUE,'Skrytý list se vzorci'!E122,0)","v":0},{"$f":"IF('Skrytý list se vzorci'!$B$14=TRUE,'Skrytý list se vzorci'!D122,0)","v":0},null,{"$f":"IF('Skrytý list se vzorci'!$B$14=TRUE,'Skrytý list se vzorci'!F122,0)","v":0},{"$f":"IF('Skrytý list se vzorci'!$B$14=TRUE,'Skrytý list se vzorci'!G122,0)","v":0}]
[null,null,{"$f":"IF('Skrytý list se vzorci'!$B$14=TRUE,'Skrytý list se vzorci'!B123,0)","v":0},{"$f":"IF('Skrytý list se vzorci'!$B$14=TRUE,'Skrytý list se vzorci'!C123,0)","v":0},{"$f":"IF('Skrytý list se vzorci'!$B$14=TRUE,'Skrytý list se vzorci'!E123,0)","v":0},{"$f":"IF('Skrytý list se vzorci'!$B$14=TRUE,'Skrytý list se vzorci'!D123,0)","v":0},null,{"$f":"IF('Skrytý list se vzorci'!$B$14=TRUE,'Skrytý list se vzorci'!F123,0)","v":0},{"$f":"IF('Skrytý list se vzorci'!$B$14=TRUE,'Skrytý list se vzorci'!G123,0)","v":0}]
[null,null,{"$f":"IF('Skrytý list se vzorci'!$B$14=TRUE,'Skrytý list se vzorci'!B124,0)","v":0},{"$f":"IF('Skrytý list se vzorci'!$B$14=TRUE,'Skrytý list se vzorci'!C124,0)","v":0},{"$f":"IF('Skrytý list se vzorci'!$B$14=TRUE,'Skrytý list se vzorci'!E124,0)","v":0},{"$f":"IF('Skrytý list se vzorci'!$B$14=TRUE,'Skrytý list se vzorci'!D124,0)","v":0},null,{"$f":"IF('Skrytý list se vzorci'!$B$14=TRUE,'Skrytý list se vzorci'!F124,0)","v":0},{"$f":"IF('Skrytý list se vzorci'!$B$14=TRUE,'Skrytý list se vzorci'!G124,0)","v":0}]
[{"$f":"IF('Skrytý list se vzorci'!$B$16=TRUE,'Skrytý list se vzorci'!A125,0)","v":0}]
[null,{"$f":"IF('Skrytý list se vzorci'!$B$16=TRUE,'Skrytý list se vzorci'!A126,0)","v":0}]
[null,null,{"$f":"IF('Skrytý list se vzorci'!$B$16=TRUE,'Skrytý list se vzorci'!B125,0)","v":0},{"$f":"IF('Skrytý list se vzorci'!$B$16=TRUE,'Skrytý list se vzorci'!C125,0)","v":0},{"$f":"IF('Skrytý list se vzorci'!$B$16=TRUE,'Skrytý list se vzorci'!E125,0)","v":0},{"$f":"IF('Skrytý list se vzorci'!$B$16=TRUE,'Skrytý list se vzorci'!D125,0)","v":0},null,{"$f":"IF('Skrytý list se vzorci'!$B$16=TRUE,'Skrytý list se vzorci'!F125,0)","v":0},{"$f":"IF('Skrytý list se vzorci'!$B$16=TRUE,'Skrytý list se vzorci'!G125,0)","v":0}]
[null,null,{"$f":"IF('Skrytý list se vzorci'!$B$16=TRUE,'Skrytý list se vzorci'!B126,0)","v":0},{"$f":"IF('Skrytý list se vzorci'!$B$16=TRUE,'Skrytý list se vzorci'!C126,0)","v":0},{"$f":"IF('Skrytý list se vzorci'!$B$16=TRUE,'Skrytý list se vzorci'!E126,0)","v":0},{"$f":"IF('Skrytý list se vzorci'!$B$16=TRUE,'Skrytý list se vzorci'!D126,0)","v":0},null,{"$f":"IF('Skrytý list se vzorci'!$B$16=TRUE,'Skrytý list se vzorci'!F126,0)","v":0},{"$f":"IF('Skrytý list se vzorci'!$B$16=TRUE,'Skrytý list se vzorci'!G126,0)","v":0}]
[null,null,{"$f":"IF('Skrytý list se vzorci'!$B$16=TRUE,'Skrytý list se vzorci'!B127,0)","v":0},{"$f":"IF('Skrytý list se vzorci'!$B$16=TRUE,'Skrytý list se vzorci'!C127,0)","v":0},{"$f":"IF('Skrytý list se vzorci'!$B$16=TRUE,'Skrytý list se vzorci'!E127,0)","v":0},{"$f":"IF('Skrytý list se vzorci'!$B$16=TRUE,'Skrytý list se vzorci'!D127,0)","v":0},null,{"$f":"IF('Skrytý list se vzorci'!$B$16=TRUE,'Skrytý list se vzorci'!F127,0)","v":0},{"$f":"IF('Skrytý list se vzorci'!$B$16=TRUE,'Skrytý list se vzorci'!G127,0)","v":0}]
[null,null,{"$f":"IF('Skrytý list se vzorci'!$B$16=TRUE,'Skrytý list se vzorci'!B128,0)","v":0},{"$f":"IF('Skrytý list se vzorci'!$B$16=TRUE,'Skrytý list se vzorci'!C128,0)","v":0},{"$f":"IF('Skrytý list se vzorci'!$B$16=TRUE,'Skrytý list se vzorci'!E128,0)","v":0},{"$f":"IF('Skrytý list se vzorci'!$B$16=TRUE,'Skrytý list se vzorci'!D128,0)","v":0},null,{"$f":"IF('Skrytý list se vzorci'!$B$16=TRUE,'Skrytý list se vzorci'!F128,0)","v":0},{"$f":"IF('Skrytý list se vzorci'!$B$16=TRUE,'Skrytý list se vzorci'!G128,0)","v":0}]
[null,null,{"$f":"IF('Skrytý list se vzorci'!$B$16=TRUE,'Skrytý list se vzorci'!B129,0)","v":0},{"$f":"IF('Skrytý list se vzorci'!$B$16=TRUE,'Skrytý list se vzorci'!C129,0)","v":0},{"$f":"IF('Skrytý list se vzorci'!$B$16=TRUE,'Skrytý list se vzorci'!E129,0)","v":0},{"$f":"IF('Skrytý list se vzorci'!$B$16=TRUE,'Skrytý list se vzorci'!D129,0)","v":0},null,{"$f":"IF('Skrytý list se vzorci'!$B$16=TRUE,'Skrytý list se vzorci'!F129,0)","v":0},{"$f":"IF('Skrytý list se vzorci'!$B$16=TRUE,'Skrytý list se vzorci'!G129,0)","v":0}]
[null,null,{"$f":"IF('Skrytý list se vzorci'!$B$16=TRUE,'Skrytý list se vzorci'!B130,0)","v":0},{"$f":"IF('Skrytý list se vzorci'!$B$16=TRUE,'Skrytý list se vzorci'!C130,0)","v":0},{"$f":"IF('Skrytý list se vzorci'!$B$16=TRUE,'Skrytý list se vzorci'!E130,0)","v":0},{"$f":"IF('Skrytý list se vzorci'!$B$16=TRUE,'Skrytý list se vzorci'!D130,0)","v":0},null,{"$f":"IF('Skrytý list se vzorci'!$B$16=TRUE,'Skrytý list se vzorci'!F130,0)","v":0},{"$f":"IF('Skrytý list se vzorci'!$B$16=TRUE,'Skrytý list se vzorci'!G130,0)","v":0}]
[{"$f":"IF('Skrytý list se vzorci'!$C$16=TRUE,'Skrytý list se vzorci'!A131,0)","v":"Typ fasády\n"}]
[null,{"$f":"IF('Skrytý list se vzorci'!$C$16=TRUE,'Skrytý list se vzorci'!A132,0)","v":"ETICS"}]
[null,null,{"$f":"IF('Skrytý list se vzorci'!$C$16=TRUE,'Skrytý list se vzorci'!B131,0)","v":1},{"$f":"IF('Skrytý list se vzorci'!$C$16=TRUE,'Skrytý list se vzorci'!C131,0)","v":"Příprava před zahájením prací"},{"$f":"IF('Skrytý list se vzorci'!$C$16=TRUE,'Skrytý list se vzorci'!E131,0)","v":"Vizuální kontrola\nKaždý doklad\nKaždá dodávka"},{"$f":"IF('Skrytý list se vzorci'!$C$16=TRUE,'Skrytý list se vzorci'!D131,0)","v":"a) Projektová dokumentace\nb) Technologický postup\nc) Kontrola vstupních materiálů\nd) Doložení kvality materiálů"},null,{"$f":"IF('Skrytý list se vzorci'!$C$16=TRUE,'Skrytý list se vzorci'!F131,0)","v":"a) Odsouhlasena objednatelem; platnost označena na výkresech\nb) Aktualizovaný TP (datum, podpis) je předán předzahájením prací.\nc) Převzetí materiálů - kompletnost a kvalita dle PD – zápis přímo na dodacím listu\nd) Certifikáty, atesty a Prohlášení o shodě dle NV č.163/2002 Sb a Zák. č.22/1997/Sb."},{"$f":"IF('Skrytý list se vzorci'!$C$16=TRUE,'Skrytý list se vzorci'!G131,0)","v":"Záznam o kontrole\nkvality, SD"}]
[null,null,{"$f":"IF('Skrytý list se vzorci'!$C$16=TRUE,'Skrytý list se vzorci'!B132,0)","v":2},{"$f":"IF('Skrytý list se vzorci'!$C$16=TRUE,'Skrytý list se vzorci'!C132,0)","v":"Příprava podkladu"},{"$f":"IF('Skrytý list se vzorci'!$C$16=TRUE,'Skrytý list se vzorci'!E132,0)","v":"Vizuální kontrola\nMěření\nOrientační zkouška održením bloku\nKaždý doklad\nKaždá dodávka"},{"$f":"IF('Skrytý list se vzorci'!$C$16=TRUE,'Skrytý list se vzorci'!D132,0)","v":"a) výskyt nečistot, nesoudržných částic na povrchu\nb) teplota prostředí\nc) kvalita přípravku pro penetraci\nd) účinnost penetrace"},null,{"$f":"IF('Skrytý list se vzorci'!$C$16=TRUE,'Skrytý list se vzorci'!F132,0)","v":"a) Odstranit nesoudržné částice a jiné nečistoty, především mastné\nb) Teploty prostředí vzduchu nesmí být menší než +5°C\nc) Zkontrolovat zda použitý přípravek vykazuje znaky znehodnocení (sraženina na dně nebo přitomnost plísně), přípravek byl nevhodně naředěn\nd) Provést orientační zkoušku održením bloku nalepeného fasádního polystyrenu, nesmí dojít k porušení přídržnosti v penetrovaném podkladu"},{"$f":"IF('Skrytý list se vzorci'!$C$16=TRUE,'Skrytý list se vzorci'!G132,0)","v":"Záznam o kontrole\nkvality, SD"}]
[null,null,{"$f":"IF('Skrytý list se vzorci'!$C$16=TRUE,'Skrytý list se vzorci'!B133,0)","v":3},{"$f":"IF('Skrytý list se vzorci'!$C$16=TRUE,'Skrytý list se vzorci'!C133,0)","v":"Kontrola komponentů systému ETICS"},{"$f":"IF('Skrytý list se vzorci'!$C$16=TRUE,'Skrytý list se vzorci'!E133,0)","v":"Vizuální kontrola\nMěření\nKaždý doklad\nKaždá dodávka"},{"$f":"IF('Skrytý list se vzorci'!$C$16=TRUE,'Skrytý list se vzorci'!D133,0)","v":"a) Kontrola lhůty použitelnosti komponentů\nb) kontrola izolantu - desky MW\nc) vlastnosti příslušenství soklová lišta\nd) vlastnosti příslušenství"},null,{"$f":"IF('Skrytý list se vzorci'!$C$16=TRUE,'Skrytý list se vzorci'!F133,0)","v":"a) Kompoonent nesmí mít prošlou lhůtu použitelnosti\nb) Kontrola typu desky MW (TR 15 / EN 13 162), deska MW není učena pro fasádní systémy, deska má kolmou orientaci vláken\nc) Kontrola dimenze profilu lišty, hliníková soklová lišta je z plechu tloušťky pod 0,7 mm\nd) Kontrola původu příslušenství, neprokázaný původ (výrobce)"},{"$f":"IF('Skrytý list se vzorci'!$C$16=TRUE,'Skrytý list se vzorci'!G133,0)","v":"Záznam o kontrole\nkvality, SD"}]
[null,null,{"$f":"IF('Skrytý list se vzorci'!$C$16=TRUE,'Skrytý list se vzorci'!B134,0)","v":4},{"$f":"IF('Skrytý list se vzorci'!$C$16=TRUE,'Skrytý list se vzorci'!C134,0)","v":"Lepení desek tepelné izolace"},{"$f":"IF('Skrytý list se vzorci'!$C$16=TRUE,'Skrytý list se vzorci'!E134,0)","v":"Vizuální kontrola\nMěření\nKaždý doklad\nKaždá dodávka"},{"$f":"IF('Skrytý list se vzorci'!$C$16=TRUE,'Skrytý list se vzorci'!D134,0)","v":"a) Příprava lepící malty\nb) Teplota prostředí\nc) Nanášení lepící malty na izolant\nd) Kontrola místní rovinnosti\ne) Kontrola styčných spár mezi deskami\nf) Kontrola vazby desek\ng) Přiznání konstrukční dilatančních spar\nh) celistvost\ni) doba expozice desek EPS"},null,{"$f":"IF('Skrytý list se vzorci'!$C$16=TRUE,'Skrytý list se vzorci'!F134,0)","v":"a) Kontrola malty zda je připravována v souladu s návodem výrobcem\nb) Teplota prostředí nebo podkladu nesmí být pod +5° C nebo nad +25° C\nc) Malta je nanášena na rub desky a je nanášena po obvodu desky a ve 3 bodech v ose, krytí rubu desky maltou je minimálně 40% plochy\nd) Desky jsou lepeny v souladu s požadavky smlouvy o dílo, doporučená rovinnost +5 mm na 2m\ne) Desky jsou lepeny na těsný sraz, ve styčných sparách mezi deskami je malta\nf) Desky jsou v ploše nebo na nároží lepeny na vazbu, desky na nároží otvorů jsou přesazeny o tloušťku izolantu ostění, ložná nebo styčná spára nenavazuje na náhlou změnu profilu v podkladu\ng) Konstrukční dilatační spára je přiznána v líci ETICS\nh) Zkontrolovat výskyt míst s omezenou tloušťkou nebo porušením celistvosti izolační vrstvy\ni) Desky EPS nebyly vystaveny UV záření na fasádě po dobu delší než 14 dnů"},{"$f":"IF('Skrytý list se vzorci'!$C$16=TRUE,'Skrytý list se vzorci'!G134,0)","v":"Záznam o kontrole\nkvality, SD"}]
[null,null,{"$f":"IF('Skrytý list se vzorci'!$C$16=TRUE,'Skrytý list se vzorci'!B135,0)","v":5},{"$f":"IF('Skrytý list se vzorci'!$C$16=TRUE,'Skrytý list se vzorci'!C135,0)","v":"Kotvení nalepeného izolantu hmoždinkami"},{"$f":"IF('Skrytý list se vzorci'!$C$16=TRUE,'Skrytý list se vzorci'!E135,0)","v":"Vizuální kontrola\nMěření\nKaždý doklad\nKaždá dodávka"},{"$f":"IF('Skrytý list se vzorci'!$C$16=TRUE,'Skrytý list se vzorci'!D135,0)","v":"a) minimální efektivní hloubka kotvení\nb) kvalita vývrtu pro hmoždinku\nc) spolehlivost mechanických kotvení\nd) spolehlivost kotvení se zapuštěnou montáží hmmoždinky\ne) zapuštění talíře hmoždinky pod líc izolantu\nf) počet hmoždinek v ploše\ng) rozmístění hmoždinek v ploše\nh) kotvící efekt hmoždinky"},null,{"$f":"IF('Skrytý list se vzorci'!$C$16=TRUE,'Skrytý list se vzorci'!F135,0)","v":"a) Hmoždinka má potřebnou délku s ohledem na podklad a skutečné tloušťky izolantu a lepícího lože, je v souladu s PD\nb) Průměr vrtáku nebo režim příklepu pro daný podklad odpovídá požadavku výrobce hmoždinky, hloubka vývrtu je min. o 10 mm hlubší (min. o 25 mm u STR-U), než je délka dříku po zapuštění hmoždinky\nc) Ověření typu hmoždinky a rozpěrného trnu ve vazbě na druh a tloušťku izolantu z MW, rozpěrný trn hmoždinky pro izolant MW je kovový\nd) Izolant má tloušťku min. 100 (80) mm\ne) Talíř hmoždinky je zapuštěn minimálně 2 mm pod vnější líc izolantu\nf) Počet hmoždinek je větší než: 4ks/m2 při kotvení EPS, 6ks/m2 při kotvení MW tl. do 120 mm, 8ks/m2 při kotvení MW tl. nad 120 mm\ng) Zkontrolovat možné odchylky od projektu, nesmí být výrazné odchylky od směrného kotevního plánu výrobce hmoždinky\nh) Hmoždinka není tvarově deformovaná, nepruží při zatlačení "},{"$f":"IF('Skrytý list se vzorci'!$C$16=TRUE,'Skrytý list se vzorci'!G135,0)","v":"Záznam o kontrole\nkvality, SD"}]
[null,null,{"$f":"IF('Skrytý list se vzorci'!$C$16=TRUE,'Skrytý list se vzorci'!B136,0)","v":6},{"$f":"IF('Skrytý list se vzorci'!$C$16=TRUE,'Skrytý list se vzorci'!C136,0)","v":"Provádění základní vrstvy"},{"$f":"IF('Skrytý list se vzorci'!$C$16=TRUE,'Skrytý list se vzorci'!E136,0)","v":"Vizuální kontrola\nMěření\nKaždý doklad\nKaždá dodávka"},{"$f":"IF('Skrytý list se vzorci'!$C$16=TRUE,'Skrytý list se vzorci'!D136,0)","v":"a) nerovnosti na styku desek\nb) vyplnění styčných spar\nc) teplota prostředí\nd) příprava malty\ne) výztuž v rozích otvorů\nf) přidavná výztuž\ng) osazení profilů\nh) plošné vyztužení\ni) základní vrstva"},null,{"$f":"IF('Skrytý list se vzorci'!$C$16=TRUE,'Skrytý list se vzorci'!F136,0)","v":"a) Rovinnost ±2 mm na 2m, měřeno 2m latí.\nb) Šířka nevyplněné styčné spáry musí být menší než 1 mm\nc) Teplota prostředí nebo podkladu nesmí být pod +5° C nebo nad +30° C\nd) Malta je připravena v souladu s návodem od výrobce\ne) Diagonální výztuž je uložena do malty, osnova výztuže svíra úhel 45° s osovou celoplošného vyztužení, diagonální výztuž má větší rozměry než 200 x 300 mm\nf) Přídavná výztuž má šířku větší než 300 mm, přesahy min. 150 mm, výztuž je uložena do malty\ng) profily jsou uloženy do malty, profily příslušenství jsou kryty základní vrstvou podle požadavku od výrobce\nh) výztužná tkanina je uložena do malty, je stykována s přesahy 100mm, je dostatečně vypnutá, je celoplošně kryta maltou tl. 1mm\ni) Tloušťka základní vrstvy lokálně dosahuje hodnoty 2mm, střední tloušťka základní vrstvy dosahuje hodnoty 3 mm"},{"$f":"IF('Skrytý list se vzorci'!$C$16=TRUE,'Skrytý list se vzorci'!G136,0)","v":"Záznam o kontrole\nkvality, SD"}]
[null,null,{"$f":"IF('Skrytý list se vzorci'!$C$16=TRUE,'Skrytý list se vzorci'!B137,0)","v":7},{"$f":"IF('Skrytý list se vzorci'!$C$16=TRUE,'Skrytý list se vzorci'!C137,0)","v":"Provádění konečné povrchové úpravy"},{"$f":"IF('Skrytý list se vzorci'!$C$16=TRUE,'Skrytý list se vzorci'!E137,0)","v":"Vizuální kontrola\nMěření\nKaždý doklad\nKaždá dodávka"},{"$f":"IF('Skrytý list se vzorci'!$C$16=TRUE,'Skrytý list se vzorci'!D137,0)","v":"a) barevnost\nb) teplota\nc) penetrace\nd) struktura omítky"},null,{"$f":"IF('Skrytý list se vzorci'!$C$16=TRUE,'Skrytý list se vzorci'!F137,0)","v":"a) povrchová úprava vykazuje činitel světelné odrazivosti nad 30%\nb) Teplota prostředí nebo podkladu nesmí být pod +5° C nebo nad +25° C\nc) penetrace je systémovým doplňkem vrchní omítkoviny, penetrace pod rýhované struktury je kolorovaná na odstín omítky\nd) struktura omítka je v ploše rovnoměrná, nejsou zde esteticky rušivé předěly na místech pracovních záběrů"},{"$f":"IF('Skrytý list se vzorci'!$C$16=TRUE,'Skrytý list se vzorci'!G137,0)","v":"Záznam o kontrole\nkvality, SD"}]
[null,null,{"$f":"IF('Skrytý list se vzorci'!$C$16=TRUE,'Skrytý list se vzorci'!B138,0)","v":8},{"$f":"IF('Skrytý list se vzorci'!$C$16=TRUE,'Skrytý list se vzorci'!C138,0)","v":"Závěrečná výstupní kontrola kvality dokončené zakázky, nebo ucelené části zakázky"},{"$f":"IF('Skrytý list se vzorci'!$C$16=TRUE,'Skrytý list se vzorci'!E138,0)","v":"Kontrola celého rozsahu zakázky\nP – prohlídka a posouzení stavu\nD – porovnání s PD a TPř, TPo\nN – porovnání s technickými normami\nA – atesty (prohlášení o shodě, certifikáty)"},{"$f":"IF('Skrytý list se vzorci'!$C$16=TRUE,'Skrytý list se vzorci'!D138,0)","v":"a) závěrečná kontrola provedení\nb) kontrola odstranění a vypořádání neshod zjištěných v průběhu realizace\nc) kontrola dokladů o kvalitě zabudovaných materiálů"},null,{"$f":"IF('Skrytý list se vzorci'!$C$16=TRUE,'Skrytý list se vzorci'!F138,0)","v":"a) revizní zprávy a měřicí protokoly prokazující bezpečnou a spolehlivou funkci zařízení\nb) požadavky PD, TPř, TPo a odstranění neshod, soulad s normovými požadavky a odstranění neshod zjištěných v průběhu realizace\nc) platné doklady o předepsané kvalitě materiálů."},{"$f":"IF('Skrytý list se vzorci'!$C$16=TRUE,'Skrytý list se vzorci'!G138,0)","v":"Protokol o výstupní kontrole zakázky nebo pro každou samostatně předávanou část"}]
[0]
[null,0]
[null,null,0,0,0,0,0,0,0]